Body,Body name,Service label,Service divison label,Expenditure category,Detailed expenses type,Detailed expense code,Date paid,Transaction number,Net amount,Capital or revenue,Supplier name 
http://statistics.data.gov.uk/doc/local-authority/00DA,Leeds City Council,Central & Corporate Functions,Commercial Services Trading Services,Supplies and Services,Other Hired And Contracted Services,265,23-Apr-2012,1204-00001,485.00,R,A Bush (Engineering Services) Ltd
http://statistics.data.gov.uk/doc/local-authority/00DA,Leeds City Council,Adult Social Care,Roseville Enterprises,Supplies and Services,Operational Furniture And Equipment,203,27-Apr-2012,1204-00002,470.00,R,A D G Engineering Ltd
http://statistics.data.gov.uk/doc/local-authority/00DA,East - North East                    ,East - North East,Construction Services,Supplies and Services,Other Hired And Contracted Services,265,25-Apr-2012,1204-00003,708.94,R,A D Simpson Construction Ltd
http://statistics.data.gov.uk/doc/local-authority/00DA,East - North East                    ,East - North East,Construction Services,Supplies and Services,Other Hired And Contracted Services,265,25-Apr-2012,1204-00004,788.60,R,A D Simpson Construction Ltd
http://statistics.data.gov.uk/doc/local-authority/00DA,Leeds City Council,Childrens Services,Learning Skills & Universal,Third Party Payments,Services Rendered By Voluntary Sector,505,16-Apr-2012,1204-00005,14705.28,R,REDACTED PERSONAL DATA
http://statistics.data.gov.uk/doc/local-authority/00DA,Leeds City Council,City Development,Highways,Capital,Other Costs,7,05-Apr-2012,1204-00006,6123.18,C,A E Yates Ltd
http://statistics.data.gov.uk/doc/local-authority/00DA,Leeds City Council,Environment & Neighbourhoods,Statutory Housing,Supplies and Services,Other Hired And Contracted Services,265,19-Apr-2012,1204-00007,650.00,R,REDACTED PERSONAL DATA
http://statistics.data.gov.uk/doc/local-authority/00DA,Leeds City Council,Childrens Services,Learning Skills & Universal,Third Party Payments,Services Rendered By Other Organisations,511,16-Apr-2012,1204-00008,1065.60,R,REDACTED PERSONAL DATA
http://statistics.data.gov.uk/doc/local-authority/00DA,Leeds City Council,Central & Corporate Functions,Commercial Services Trading Services,Supplies and Services,Operational Materials,205,13-Apr-2012,1204-00009,864.00,R,A J H  Pump Supply & Repair Ltd
http://statistics.data.gov.uk/doc/local-authority/00DA,Leeds City Council,Central & Corporate Functions,Commercial Services Trading Services,Supplies and Services,Operational Materials,205,13-Apr-2012,1204-00010,3971.00,R,A J H  Pump Supply & Repair Ltd
http://statistics.data.gov.uk/doc/local-authority/00DA,Leeds City Council,City Development,Recreation,Supplies and Services,Operational Materials,205,13-Apr-2012,1204-00011,1398.50,R,A J Promotions
http://statistics.data.gov.uk/doc/local-authority/00DA,Leeds City Council,Childrens Services,Learning Skills & Universal,Third Party Payments,Services Rendered By Other Organisations,511,16-Apr-2012,1204-00012,2664.00,R,REDACTED PERSONAL DATA
http://statistics.data.gov.uk/doc/local-authority/00DA,Leeds City Council,Adult Social Care,Services For Older People Under 65 P/Dis,Transfer Payments,Direct Payments,626,11-Apr-2012,1204-00013,1006.92,R,REDACTED PERSONAL DATA
http://statistics.data.gov.uk/doc/local-authority/00DA,Leeds City Council,Childrens Services,Learning Skills & Universal,Third Party Payments,Services Rendered By Other Organisations,511,16-Apr-2012,1204-00014,1065.60,R,REDACTED PERSONAL DATA
http://statistics.data.gov.uk/doc/local-authority/00DA,Leeds City Council,Childrens Services,Safeguarding Targeted & Specialist,Third Party Payments,Section 17,551,11-Apr-2012,1204-00015,450.00,R,REDACTED PERSONAL DATA
http://statistics.data.gov.uk/doc/local-authority/00DA,Leeds City Council,Childrens Services,Learning Skills & Universal,Third Party Payments,Services Rendered By Other Organisations,511,27-Apr-2012,1204-00016,577.20,R,REDACTED PERSONAL DATA
http://statistics.data.gov.uk/doc/local-authority/00DA,Leeds City Council,Adult Social Care,Services For Older People Under 65 P/Dis,Transfer Payments,Direct Payments,626,11-Apr-2012,1204-00017,1384.16,R,REDACTED PERSONAL DATA
http://statistics.data.gov.uk/doc/local-authority/00DA,Leeds City Council,Childrens Services,Safeguarding Targeted & Specialist,Third Party Payments,Adoptions - Allowances,560,26-Apr-2012,1204-00018,500.00,R,REDACTED PERSONAL DATA
http://statistics.data.gov.uk/doc/local-authority/00DA,Leeds City Council,Adult Social Care,Services For Older People - 65 And Over,Transfer Payments,Direct Payments,626,11-Apr-2012,1204-00019,1171.00,R,REDACTED PERSONAL DATA
http://statistics.data.gov.uk/doc/local-authority/00DA,Leeds City Council,Central & Corporate Functions,Information Technology,Supplies and Services,Computer Software & Equipment,214,16-Apr-2012,1204-00020,3880.00,R,Abbey Grange C Of E Academy Trust
http://statistics.data.gov.uk/doc/local-authority/00DA,Leeds City Council,Childrens Services,Safeguarding Targeted & Specialist,Supplies and Services,Other Hired And Contracted Services,265,04-Apr-2012,1204-00021,6000.00,R,Abbey Grange C Of E Academy Trust
http://statistics.data.gov.uk/doc/local-authority/00DA,Leeds City Council,Adult Social Care,Services For Older People - 65 And Over,Third Party Payments,Residential Care Emi,571,11-Apr-2012,1204-00022,1170.76,R,Abbey Lea Residential Care Home
http://statistics.data.gov.uk/doc/local-authority/00DA,Leeds City Council,Adult Social Care,Services For Adults Under 65 Mental/Dis,Third Party Payments,Residential,580,11-Apr-2012,1204-00023,1163.80,R,Abbeydale Care Home
http://statistics.data.gov.uk/doc/local-authority/00DA,Leeds City Council,Childrens Services,Learning Skills & Universal,Third Party Payments,Services Rendered By Other Organisations,511,16-Apr-2012,1204-00024,9590.40,R,Abc Nursery At Lufc
http://statistics.data.gov.uk/doc/local-authority/00DA,Leeds City Council,City Development,Libraries  Arts & Heritage,Supplies and Services,Printing,215,25-Apr-2012,1204-00025,483.70,R,Abc Promotional Gifts Ltd
http://statistics.data.gov.uk/doc/local-authority/00DA,Leeds City Council,Strategic Accounts,Strategic,Supplies and Services,Office Consumables,210,02-Apr-2012,1204-00026,11000.00,R,Aberford And District Parish Council
http://statistics.data.gov.uk/doc/local-authority/00DA,Leeds City Council,Adult Social Care,Services For Older People - 65 And Over,Third Party Payments,Nursing Home,570,11-Apr-2012,1204-00027,8953.44,R,Aberford Hall
http://statistics.data.gov.uk/doc/local-authority/00DA,Leeds City Council,Adult Social Care,Services For Older People - 65 And Over,Third Party Payments,Residential,580,11-Apr-2012,1204-00028,1146.36,R,Aberford Hall
http://statistics.data.gov.uk/doc/local-authority/00DA,Leeds City Council,Central & Corporate Functions,Commercial Services Trading Services,Supplies and Services,Operational Materials,205,20-Apr-2012,1204-00029,3520.00,R,Abi Garage Doors Ltd
http://statistics.data.gov.uk/doc/local-authority/00DA,Leeds City Council,Central & Corporate Functions,Commercial Services Trading Services,Supplies and Services,Operational Materials,205,05-Apr-2012,1204-00030,7040.00,R,Abi Garage Doors Ltd
http://statistics.data.gov.uk/doc/local-authority/00DA,Leeds City Council,Environment & Neighbourhoods,Environmental Health,Capital,Construction,3,18-Apr-2012,1204-00031,1500.00,C,Able Bathing & Building Contractors Ltd
http://statistics.data.gov.uk/doc/local-authority/00DA,Leeds City Council,Environment & Neighbourhoods,Environmental Health,Capital,Construction,3,11-Apr-2012,1204-00032,1500.00,C,Able Bathing & Building Contractors Ltd
http://statistics.data.gov.uk/doc/local-authority/00DA,Leeds City Council,Environment & Neighbourhoods,Environmental Health,Capital,Construction,3,27-Apr-2012,1204-00033,1500.00,C,Able Bathing & Building Contractors Ltd
http://statistics.data.gov.uk/doc/local-authority/00DA,Leeds City Council,Environment & Neighbourhoods,Environmental Health,Capital,Construction,3,18-Apr-2012,1204-00034,1590.00,C,Able Bathing & Building Contractors Ltd
http://statistics.data.gov.uk/doc/local-authority/00DA,Leeds City Council,Environment & Neighbourhoods,Environmental Health,Capital,Construction,3,10-Apr-2012,1204-00035,2806.49,C,Able Bathing & Building Contractors Ltd
http://statistics.data.gov.uk/doc/local-authority/00DA,Leeds City Council,Environment & Neighbourhoods,Environmental Health,Capital,Construction,3,27-Apr-2012,1204-00036,2890.00,C,Able Bathing & Building Contractors Ltd
http://statistics.data.gov.uk/doc/local-authority/00DA,Leeds City Council,Environment & Neighbourhoods,Environmental Health,Capital,Construction,3,18-Apr-2012,1204-00037,2890.00,C,Able Bathing & Building Contractors Ltd
http://statistics.data.gov.uk/doc/local-authority/00DA,Leeds City Council,Environment & Neighbourhoods,Environmental Health,Capital,Construction,3,18-Apr-2012,1204-00038,2890.00,C,Able Bathing & Building Contractors Ltd
http://statistics.data.gov.uk/doc/local-authority/00DA,Leeds City Council,Environment & Neighbourhoods,Environmental Health,Capital,Construction,3,23-Apr-2012,1204-00039,2890.00,C,Able Bathing & Building Contractors Ltd
http://statistics.data.gov.uk/doc/local-authority/00DA,Leeds City Council,Environment & Neighbourhoods,Environmental Health,Capital,Construction,3,10-Apr-2012,1204-00040,2890.00,C,Able Bathing & Building Contractors Ltd
http://statistics.data.gov.uk/doc/local-authority/00DA,Leeds City Council,Environment & Neighbourhoods,Environmental Health,Capital,Construction,3,20-Apr-2012,1204-00041,2890.00,C,Able Bathing & Building Contractors Ltd
http://statistics.data.gov.uk/doc/local-authority/00DA,Leeds City Council,Environment & Neighbourhoods,Environmental Health,Capital,Construction,3,10-Apr-2012,1204-00042,2890.00,C,Able Bathing & Building Contractors Ltd
http://statistics.data.gov.uk/doc/local-authority/00DA,Leeds City Council,Environment & Neighbourhoods,Environmental Health,Capital,Construction,3,23-Apr-2012,1204-00043,3282.00,C,Able Bathing & Building Contractors Ltd
http://statistics.data.gov.uk/doc/local-authority/00DA,Leeds City Council,Environment & Neighbourhoods,Environmental Health,Capital,Construction,3,10-Apr-2012,1204-00044,4150.00,C,Able Bathing & Building Contractors Ltd
http://statistics.data.gov.uk/doc/local-authority/00DA,Leeds City Council,Environment & Neighbourhoods,Environmental Health,Capital,Construction,3,18-Apr-2012,1204-00045,4150.00,C,Able Bathing & Building Contractors Ltd
http://statistics.data.gov.uk/doc/local-authority/00DA,Leeds City Council,Environment & Neighbourhoods,Environmental Health,Capital,Construction,3,10-Apr-2012,1204-00046,4150.00,C,Able Bathing & Building Contractors Ltd
http://statistics.data.gov.uk/doc/local-authority/00DA,Leeds City Council,Environment & Neighbourhoods,Environmental Health,Capital,Construction,3,18-Apr-2012,1204-00047,4150.00,C,Able Bathing & Building Contractors Ltd
http://statistics.data.gov.uk/doc/local-authority/00DA,Leeds City Council,Environment & Neighbourhoods,Environmental Health,Capital,Construction,3,27-Apr-2012,1204-00048,4150.00,C,Able Bathing & Building Contractors Ltd
http://statistics.data.gov.uk/doc/local-authority/00DA,Leeds City Council,Environment & Neighbourhoods,Environmental Health,Capital,Construction,3,10-Apr-2012,1204-00049,4150.00,C,Able Bathing & Building Contractors Ltd
http://statistics.data.gov.uk/doc/local-authority/00DA,Leeds City Council,Environment & Neighbourhoods,Environmental Health,Capital,Construction,3,27-Apr-2012,1204-00050,4150.00,C,Able Bathing & Building Contractors Ltd
http://statistics.data.gov.uk/doc/local-authority/00DA,Leeds City Council,Environment & Neighbourhoods,Environmental Health,Capital,Construction,3,27-Apr-2012,1204-00051,4150.00,C,Able Bathing & Building Contractors Ltd
http://statistics.data.gov.uk/doc/local-authority/00DA,Leeds City Council,Environment & Neighbourhoods,Environmental Health,Capital,Construction,3,23-Apr-2012,1204-00052,4150.00,C,Able Bathing & Building Contractors Ltd
http://statistics.data.gov.uk/doc/local-authority/00DA,Leeds City Council,Environment & Neighbourhoods,Environmental Health,Capital,Construction,3,10-Apr-2012,1204-00053,4150.00,C,Able Bathing & Building Contractors Ltd
http://statistics.data.gov.uk/doc/local-authority/00DA,Leeds City Council,Environment & Neighbourhoods,Environmental Health,Capital,Construction,3,11-Apr-2012,1204-00054,4150.00,C,Able Bathing & Building Contractors Ltd
http://statistics.data.gov.uk/doc/local-authority/00DA,Leeds City Council,Environment & Neighbourhoods,Environmental Health,Capital,Construction,3,10-Apr-2012,1204-00055,4150.00,C,Able Bathing & Building Contractors Ltd
http://statistics.data.gov.uk/doc/local-authority/00DA,Leeds City Council,Environment & Neighbourhoods,Environmental Health,Capital,Construction,3,27-Apr-2012,1204-00056,4150.00,C,Able Bathing & Building Contractors Ltd
http://statistics.data.gov.uk/doc/local-authority/00DA,Leeds City Council,Environment & Neighbourhoods,Environmental Health,Capital,Construction,3,18-Apr-2012,1204-00057,4150.00,C,Able Bathing & Building Contractors Ltd
http://statistics.data.gov.uk/doc/local-authority/00DA,Leeds City Council,Environment & Neighbourhoods,Environmental Health,Capital,Construction,3,18-Apr-2012,1204-00058,4200.00,C,Able Bathing & Building Contractors Ltd
http://statistics.data.gov.uk/doc/local-authority/00DA,Leeds City Council,Environment & Neighbourhoods,Environmental Health,Capital,Construction,3,10-Apr-2012,1204-00059,4420.00,C,Able Bathing & Building Contractors Ltd
http://statistics.data.gov.uk/doc/local-authority/00DA,Leeds City Council,Environment & Neighbourhoods,Environmental Health,Capital,Construction,3,23-Apr-2012,1204-00060,4720.00,C,Able Bathing & Building Contractors Ltd
http://statistics.data.gov.uk/doc/local-authority/00DA,Leeds City Council,Environment & Neighbourhoods,Environmental Health,Capital,Construction,3,18-Apr-2012,1204-00061,8000.00,C,Able Bathing & Building Contractors Ltd
http://statistics.data.gov.uk/doc/local-authority/00DA,Leeds City Council,Environment & Neighbourhoods,Environmental Health,Capital,Construction,3,10-Apr-2012,1204-00062,9200.00,C,Able Bathing & Building Contractors Ltd
http://statistics.data.gov.uk/doc/local-authority/00DA,Leeds City Council,Environment & Neighbourhoods,South South East,Capital,Construction,3,11-Apr-2012,1204-00063,8333.33,C,Able Bathing & Building Contractors Ltd
http://statistics.data.gov.uk/doc/local-authority/00DA,Leeds City Council,Central & Corporate Functions,Executive Support,Supplies and Services,Other Hired And Contracted Services,265,27-Apr-2012,1204-00064,14950.00,R,Access Intelligence Media And
http://statistics.data.gov.uk/doc/local-authority/00DA,East - North East                    ,East - North East,Construction Services,Supplies and Services,Other Hired And Contracted Services,265,04-Apr-2012,1204-00065,448.00,R,Access Maintenance Solutions Ltd
http://statistics.data.gov.uk/doc/local-authority/00DA,East - North East                    ,East - North East,Construction Services,Supplies and Services,Other Hired And Contracted Services,265,18-Apr-2012,1204-00066,1030.00,R,Access Maintenance Solutions Ltd
http://statistics.data.gov.uk/doc/local-authority/00DA,Leeds City Council,City Development,Recreation,Supplies and Services,Security Services(Non Infrastructure),262,02-Apr-2012,1204-00067,1382.52,R,Acclaimed Security Services
http://statistics.data.gov.uk/doc/local-authority/00DA,Leeds City Council,City Development,Recreation,Supplies and Services,Security Services(Non Infrastructure),262,13-Apr-2012,1204-00068,1500.60,R,Acclaimed Security Services
http://statistics.data.gov.uk/doc/local-authority/00DA,Leeds City Council,City Development,Libraries  Arts & Heritage,Supplies and Services,Operational Materials,205,25-Apr-2012,1204-00069,4219.00,R,Ace Engineers (Morley) Ltd
http://statistics.data.gov.uk/doc/local-authority/00DA,Leeds City Council,City Development,Recreation,Supplies and Services,Operational Materials,205,20-Apr-2012,1204-00070,2500.00,R,Ace Engineers (Morley) Ltd
http://statistics.data.gov.uk/doc/local-authority/00DA,Leeds City Council,City Development,Recreation,Supplies and Services,Operational Materials,205,20-Apr-2012,1204-00071,8320.40,R,Ace Engineers (Morley) Ltd
http://statistics.data.gov.uk/doc/local-authority/00DA,Leeds City Council,City Development,Recreation,Supplies and Services,Other Hired And Contracted Services,265,20-Apr-2012,1204-00072,5110.00,R,Ace Engineers (Morley) Ltd
http://statistics.data.gov.uk/doc/local-authority/00DA,Leeds City Council,Childrens Services,Learning Skills & Universal,Supplies and Services,Other Hired And Contracted Services,265,11-Apr-2012,1204-00073,510.00,R,Ache Community & Young Peoples Centre
http://statistics.data.gov.uk/doc/local-authority/00DA,Leeds City Council,Central & Corporate Functions,Commercial Services Trading Services,Supplies and Services,Operational Furniture And Equipment,203,05-Apr-2012,1204-00074,1184.00,R,Acme
http://statistics.data.gov.uk/doc/local-authority/00DA,Leeds City Council,Central & Corporate Functions,Commercial Services Trading Services,Supplies and Services,Crockery  Cutlery & Utensils,221,05-Apr-2012,1204-00075,1660.00,R,Acme
http://statistics.data.gov.uk/doc/local-authority/00DA,Leeds City Council,Childrens Services,Learning Skills & Universal,Third Party Payments,Services Rendered By Other Organisations,511,16-Apr-2012,1204-00076,12467.52,R,Acorns Nursery
http://statistics.data.gov.uk/doc/local-authority/00DA,Leeds City Council,Adult Social Care,Services For Older People - 65 And Over,Third Party Payments,Nursing Home,570,11-Apr-2012,1204-00077,20590.90,R,Acre Green
http://statistics.data.gov.uk/doc/local-authority/00DA,Leeds City Council,Adult Social Care,Services For Older People Under 65 P/Dis,Third Party Payments,Nursing Home,570,11-Apr-2012,1204-00078,1645.08,R,Acre Green
http://statistics.data.gov.uk/doc/local-authority/00DA,Leeds City Council,Adult Social Care,Services For Older People - 65 And Over,Third Party Payments,Nursing Care Emi,574,11-Apr-2012,1204-00079,1824.68,R,Acre Green
http://statistics.data.gov.uk/doc/local-authority/00DA,Leeds City Council,Adult Social Care,Services For Adults Under 65 Mental/Dis,Third Party Payments,Residential,580,11-Apr-2012,1204-00080,1718.12,R,Acre Green
http://statistics.data.gov.uk/doc/local-authority/00DA,Leeds City Council,Adult Social Care,Services For Older People - 65 And Over,Third Party Payments,Residential,580,11-Apr-2012,1204-00081,13646.56,R,Acre Green
http://statistics.data.gov.uk/doc/local-authority/00DA,Leeds City Council,Adult Social Care,Services For Older People Under 65 P/Dis,Third Party Payments,Residential,580,11-Apr-2012,1204-00082,1259.12,R,Acre Green
http://statistics.data.gov.uk/doc/local-authority/00DA,Leeds City Council,Childrens Services,Learning Skills & Universal,Third Party Payments,Services Rendered By Other Organisations,511,16-Apr-2012,1204-00083,9405.40,R,Acre Wood Childrens Nursery
http://statistics.data.gov.uk/doc/local-authority/00DA,Leeds City Council,Childrens Services,Learning Skills & Universal,Supplies and Services,Other Hired And Contracted Services,265,25-Apr-2012,1204-00084,896.00,R,Acrecliffe Equestrian Centre
http://statistics.data.gov.uk/doc/local-authority/00DA,Leeds City Council,Childrens Services,Safeguarding Targeted & Specialist,Supplies and Services,Other Hired And Contracted Services,265,16-Apr-2012,1204-00085,1050.00,R,Acrecliffe Equestrian Centre
http://statistics.data.gov.uk/doc/local-authority/00DA,Leeds City Council,Childrens Services,Safeguarding Targeted & Specialist,Third Party Payments,Independent Fostering Agencies,509,03-Apr-2012,1204-00086,4375.00,R,Action For Children
http://statistics.data.gov.uk/doc/local-authority/00DA,Leeds City Council,Childrens Services,Safeguarding Targeted & Specialist,Third Party Payments,Independent Fostering Agencies,509,02-Apr-2012,1204-00087,4680.00,R,Action For Children
http://statistics.data.gov.uk/doc/local-authority/00DA,Leeds City Council,Childrens Services,Safeguarding Targeted & Specialist,Third Party Payments,Independent Fostering Agencies,509,02-Apr-2012,1204-00088,4745.00,R,Action For Children
http://statistics.data.gov.uk/doc/local-authority/00DA,Leeds City Council,Childrens Services,Safeguarding Targeted & Specialist,Third Party Payments,Independent Fostering Agencies,509,13-Apr-2012,1204-00089,4750.00,R,Action For Children
http://statistics.data.gov.uk/doc/local-authority/00DA,Leeds City Council,Childrens Services,Safeguarding Targeted & Specialist,Third Party Payments,Independent Fostering Agencies,509,13-Apr-2012,1204-00090,4774.00,R,Action For Children
http://statistics.data.gov.uk/doc/local-authority/00DA,Leeds City Council,Childrens Services,Safeguarding Targeted & Specialist,Third Party Payments,Adoptions - Allowances,560,18-Apr-2012,1204-00091,825.00,R,Action For Children
http://statistics.data.gov.uk/doc/local-authority/00DA,Leeds City Council,Childrens Services,Safeguarding Targeted & Specialist,Third Party Payments,Adoptions - Allowances,560,18-Apr-2012,1204-00092,1194.00,R,Action For Children
http://statistics.data.gov.uk/doc/local-authority/00DA,Leeds City Council,Adult Social Care,Services For Older People - 65 And Over,Third Party Payments,Payments To Voluntary Organisations,561,02-Apr-2012,1204-00093,21005.50,R,Action For Gipton Elderly
http://statistics.data.gov.uk/doc/local-authority/00DA,Leeds City Council,Childrens Services,Learning Skills & Universal,Third Party Payments,Services Rendered By Other Organisations,511,16-Apr-2012,1204-00094,6948.60,R,Active Kids Day Nursery
http://statistics.data.gov.uk/doc/local-authority/00DA,Leeds City Council,Central & Corporate Functions,Executive Support,Supplies and Services,Market Research,260,23-Apr-2012,1204-00095,21000.00,R,Acxiom Limited
http://statistics.data.gov.uk/doc/local-authority/00DA,Leeds City Council,City Development,Recreation,Supplies and Services,Bought In Professional Services,277,10-Apr-2012,1204-00096,4074.22,R,Ad Golf Management Ltd
http://statistics.data.gov.uk/doc/local-authority/00DA,Leeds City Council,Central & Corporate Functions,Support And Facilities Trading Services,Supplies and Services,Other Hired And Contracted Services,265,04-Apr-2012,1204-00097,2705.00,R,Ad3 Envelope Printers Limited
http://statistics.data.gov.uk/doc/local-authority/00DA,Leeds City Council,Childrens Services,Learning Skills & Universal,Supplies and Services,Bought In Professional Services,277,19-Apr-2012,1204-00098,500.00,R,Ada Inc
http://statistics.data.gov.uk/doc/local-authority/00DA,Leeds City Council,Adult Social Care,Services For Older People - 65 And Over,Transfer Payments,Personalised Budgets,627,11-Apr-2012,1204-00099,722.24,R,REDACTED PERSONAL DATA
http://statistics.data.gov.uk/doc/local-authority/00DA,Leeds City Council,Adult Social Care,Services For Older People Under 65 P/Dis,Transfer Payments,Personalised Budgets,627,11-Apr-2012,1204-00100,743.08,R,REDACTED PERSONAL DATA
http://statistics.data.gov.uk/doc/local-authority/00DA,Leeds City Council,Adult Social Care,Services For Older People Under 65 P/Dis,Transfer Payments,Direct Payments,626,11-Apr-2012,1204-00101,1540.68,R,REDACTED PERSONAL DATA
http://statistics.data.gov.uk/doc/local-authority/00DA,Leeds City Council,Adult Social Care,Services For Older People Under 65 P/Dis,Transfer Payments,Personalised Budgets,627,11-Apr-2012,1204-00102,718.12,R,REDACTED PERSONAL DATA
http://statistics.data.gov.uk/doc/local-authority/00DA,Leeds City Council,Adult Social Care,Services For Adults Under 65 Mental/Dis,Transfer Payments,Direct Payments,626,11-Apr-2012,1204-00103,444.40,R,REDACTED PERSONAL DATA
http://statistics.data.gov.uk/doc/local-authority/00DA,Leeds City Council,Adult Social Care,Services For Older People Under 65 P/Dis,Transfer Payments,Direct Payments,626,11-Apr-2012,1204-00104,877.20,R,REDACTED PERSONAL DATA
http://statistics.data.gov.uk/doc/local-authority/00DA,Leeds City Council as Accountable Body,Social Services Pooled Budgets,Jcs For People With Learning Disabilitie,Transfer Payments,Direct Payments,626,11-Apr-2012,1204-00105,859.60,R,REDACTED PERSONAL DATA
http://statistics.data.gov.uk/doc/local-authority/00DA,Leeds City Council,Childrens Services,Learning Skills & Universal,Third Party Payments,Services Rendered By Voluntary Sector,505,16-Apr-2012,1204-00106,7992.00,R,Adel Pre School
http://statistics.data.gov.uk/doc/local-authority/00DA,Leeds City Council,Childrens Services,Safeguarding Targeted & Specialist,Third Party Payments,Adoptions - Allowances,560,13-Apr-2012,1204-00107,1194.00,R,Adoption Matters Northwest
http://statistics.data.gov.uk/doc/local-authority/00DA,Leeds City Council,Childrens Services,Safeguarding Targeted & Specialist,Third Party Payments,Adoptions - Allowances,560,23-Apr-2012,1204-00108,1800.00,R,Adoption Uk
http://statistics.data.gov.uk/doc/local-authority/00DA,West - North West                  ,West - North West,Customer And Tenancy,Premises,H.R.A. - Special Maintenance,106,05-Apr-2012,1204-00109,675.49,R,Adt Fire And Security
http://statistics.data.gov.uk/doc/local-authority/00DA,Leeds City Council,City Development,Asset Management Services,Supplies and Services,Other Hired And Contracted Services,265,02-Apr-2012,1204-00110,1105.81,R,Adt Fire And Security
http://statistics.data.gov.uk/doc/local-authority/00DA,Leeds City Council,Adult Social Care,Services For Adults Under 65 Mental/Dis,Third Party Payments,Nursing Home,570,05-Apr-2012,1204-00111,1562.20,R,Adult Supported Living Ltd
http://statistics.data.gov.uk/doc/local-authority/00DA,Leeds City Council,Childrens Services,Safeguarding Targeted & Specialist,Support Services,Legal Disbursements,411,19-Apr-2012,1204-00112,639.75,R,Advanced Child Care Assessments Ltd
http://statistics.data.gov.uk/doc/local-authority/00DA,Leeds City Council,Childrens Services,Safeguarding Targeted & Specialist,Support Services,Legal Disbursements,411,30-Apr-2012,1204-00113,2727.00,R,Advanced Child Care Assessments Ltd
http://statistics.data.gov.uk/doc/local-authority/00DA,Leeds City Council,Childrens Services,Safeguarding Targeted & Specialist,Support Services,Legal Disbursements,411,16-Apr-2012,1204-00114,3600.00,R,Advanced Child Care Assessments Ltd
http://statistics.data.gov.uk/doc/local-authority/00DA,Leeds City Council as Accountable Body,Social Services Pooled Budgets,Jcs For People With Learning Disabilitie,Third Party Payments,Home Care,568,19-Apr-2012,1204-00115,3116.03,R,Advantage Healthcare Nursing &
http://statistics.data.gov.uk/doc/local-authority/00DA,Leeds City Council as Accountable Body,Social Services Pooled Budgets,Jcs For People With Learning Disabilitie,Third Party Payments,Home Care,568,13-Apr-2012,1204-00116,3171.45,R,Advantage Healthcare Nursing &
http://statistics.data.gov.uk/doc/local-authority/00DA,Leeds City Council as Accountable Body,Social Services Pooled Budgets,Jcs For People With Learning Disabilitie,Third Party Payments,Home Care,568,19-Apr-2012,1204-00117,3237.29,R,Advantage Healthcare Nursing &
http://statistics.data.gov.uk/doc/local-authority/00DA,Leeds City Council as Accountable Body,Social Services Pooled Budgets,Jcs For People With Learning Disabilitie,Third Party Payments,Home Care,568,27-Apr-2012,1204-00118,3237.29,R,Advantage Healthcare Nursing &
http://statistics.data.gov.uk/doc/local-authority/00DA,Leeds City Council as Accountable Body,Social Services Pooled Budgets,Jcs For People With Learning Disabilitie,Third Party Payments,Residential,580,11-Apr-2012,1204-00119,31686.06,R,Advitam Ltd
http://statistics.data.gov.uk/doc/local-authority/00DA,Leeds City Council,Adult Social Care,Services For Older People - 65 And Over,Third Party Payments,Payments To Voluntary Organisations,561,17-Apr-2012,1204-00120,4524.64,R,Advocacy For Mental Health And Dementia
http://statistics.data.gov.uk/doc/local-authority/00DA,Leeds City Council,Adult Social Care,Other Adult Services,Supplies and Services,Recurring & Major Grantss Projects,229,02-Apr-2012,1204-00121,7803.00,R,Advocacy Support Limited
http://statistics.data.gov.uk/doc/local-authority/00DA,Leeds City Council,Adult Social Care,Other Adult Services,Supplies and Services,Recurring & Major Grantss Projects,229,02-Apr-2012,1204-00122,9884.00,R,Advonet
http://statistics.data.gov.uk/doc/local-authority/00DA,Leeds City Council as Accountable Body,Social Services Pooled Budgets,Jcs For People With Learning Disabilitie,Third Party Payments,Day Centre,564,20-Apr-2012,1204-00123,456.64,R,Affinity Trust
http://statistics.data.gov.uk/doc/local-authority/00DA,Leeds City Council as Accountable Body,Social Services Pooled Budgets,Jcs For People With Learning Disabilitie,Third Party Payments,Day Centre,564,20-Apr-2012,1204-00124,469.28,R,Affinity Trust
http://statistics.data.gov.uk/doc/local-authority/00DA,Leeds City Council as Accountable Body,Social Services Pooled Budgets,Jcs For People With Learning Disabilitie,Third Party Payments,Day Centre,564,20-Apr-2012,1204-00125,714.78,R,Affinity Trust
http://statistics.data.gov.uk/doc/local-authority/00DA,Leeds City Council as Accountable Body,Social Services Pooled Budgets,Jcs For People With Learning Disabilitie,Third Party Payments,Day Centre,564,20-Apr-2012,1204-00126,1053.36,R,Affinity Trust
http://statistics.data.gov.uk/doc/local-authority/00DA,Leeds City Council as Accountable Body,Social Services Pooled Budgets,Jcs For People With Learning Disabilitie,Third Party Payments,Day Centre,564,20-Apr-2012,1204-00127,2333.00,R,Affinity Trust
http://statistics.data.gov.uk/doc/local-authority/00DA,Leeds City Council as Accountable Body,Social Services Pooled Budgets,Jcs For People With Learning Disabilitie,Third Party Payments,Day Centre,564,20-Apr-2012,1204-00128,2346.40,R,Affinity Trust
http://statistics.data.gov.uk/doc/local-authority/00DA,Leeds City Council as Accountable Body,Social Services Pooled Budgets,Jcs For People With Learning Disabilitie,Third Party Payments,Day Centre,564,20-Apr-2012,1204-00129,3143.04,R,Affinity Trust
http://statistics.data.gov.uk/doc/local-authority/00DA,Leeds City Council as Accountable Body,Social Services Pooled Budgets,Jcs For People With Learning Disabilitie,Third Party Payments,Day Centre,564,20-Apr-2012,1204-00130,3446.80,R,Affinity Trust
http://statistics.data.gov.uk/doc/local-authority/00DA,Leeds City Council,Adult Social Care,Services For Older People - 65 And Over,Third Party Payments,Home Care,568,04-Apr-2012,1204-00131,807.36,R,Affinity Trust
http://statistics.data.gov.uk/doc/local-authority/00DA,Leeds City Council,Adult Social Care,Services For Older People Under 65 P/Dis,Third Party Payments,Home Care,568,04-Apr-2012,1204-00132,777.84,R,Affinity Trust
http://statistics.data.gov.uk/doc/local-authority/00DA,Leeds City Council,Adult Social Care,Services For Older People Under 65 P/Dis,Third Party Payments,Home Care,568,04-Apr-2012,1204-00133,946.62,R,Affinity Trust
http://statistics.data.gov.uk/doc/local-authority/00DA,Leeds City Council,Adult Social Care,Services For Older People Under 65 P/Dis,Third Party Payments,Home Care,568,04-Apr-2012,1204-00134,1744.96,R,Affinity Trust
http://statistics.data.gov.uk/doc/local-authority/00DA,Leeds City Council,Adult Social Care,Services For Older People Under 65 P/Dis,Third Party Payments,Home Care,568,04-Apr-2012,1204-00135,1916.72,R,Affinity Trust
http://statistics.data.gov.uk/doc/local-authority/00DA,Leeds City Council as Accountable Body,Social Services Pooled Budgets,Jcs For People With Learning Disabilitie,Third Party Payments,Home Care,568,20-Apr-2012,1204-00136,426.60,R,Affinity Trust
http://statistics.data.gov.uk/doc/local-authority/00DA,Leeds City Council as Accountable Body,Social Services Pooled Budgets,Jcs For People With Learning Disabilitie,Third Party Payments,Home Care,568,20-Apr-2012,1204-00137,451.44,R,Affinity Trust
http://statistics.data.gov.uk/doc/local-authority/00DA,Leeds City Council as Accountable Body,Social Services Pooled Budgets,Jcs For People With Learning Disabilitie,Third Party Payments,Home Care,568,20-Apr-2012,1204-00138,538.24,R,Affinity Trust
http://statistics.data.gov.uk/doc/local-authority/00DA,Leeds City Council as Accountable Body,Social Services Pooled Budgets,Jcs For People With Learning Disabilitie,Third Party Payments,Home Care,568,20-Apr-2012,1204-00139,670.40,R,Affinity Trust
http://statistics.data.gov.uk/doc/local-authority/00DA,Leeds City Council as Accountable Body,Social Services Pooled Budgets,Jcs For People With Learning Disabilitie,Third Party Payments,Home Care,568,20-Apr-2012,1204-00140,672.80,R,Affinity Trust
http://statistics.data.gov.uk/doc/local-authority/00DA,Leeds City Council as Accountable Body,Social Services Pooled Budgets,Jcs For People With Learning Disabilitie,Third Party Payments,Home Care,568,20-Apr-2012,1204-00141,804.48,R,Affinity Trust
http://statistics.data.gov.uk/doc/local-authority/00DA,Leeds City Council as Accountable Body,Social Services Pooled Budgets,Jcs For People With Learning Disabilitie,Third Party Payments,Home Care,568,20-Apr-2012,1204-00142,807.36,R,Affinity Trust
http://statistics.data.gov.uk/doc/local-authority/00DA,Leeds City Council as Accountable Body,Social Services Pooled Budgets,Jcs For People With Learning Disabilitie,Third Party Payments,Home Care,568,20-Apr-2012,1204-00143,816.00,R,Affinity Trust
http://statistics.data.gov.uk/doc/local-authority/00DA,Leeds City Council as Accountable Body,Social Services Pooled Budgets,Jcs For People With Learning Disabilitie,Third Party Payments,Home Care,568,20-Apr-2012,1204-00144,941.36,R,Affinity Trust
http://statistics.data.gov.uk/doc/local-authority/00DA,Leeds City Council as Accountable Body,Social Services Pooled Budgets,Jcs For People With Learning Disabilitie,Third Party Payments,Home Care,568,20-Apr-2012,1204-00145,1005.60,R,Affinity Trust
http://statistics.data.gov.uk/doc/local-authority/00DA,Leeds City Council as Accountable Body,Social Services Pooled Budgets,Jcs For People With Learning Disabilitie,Third Party Payments,Home Care,568,20-Apr-2012,1204-00146,1139.68,R,Affinity Trust
http://statistics.data.gov.uk/doc/local-authority/00DA,Leeds City Council as Accountable Body,Social Services Pooled Budgets,Jcs For People With Learning Disabilitie,Third Party Payments,Home Care,568,20-Apr-2012,1204-00147,1319.88,R,Affinity Trust
http://statistics.data.gov.uk/doc/local-authority/00DA,Leeds City Council as Accountable Body,Social Services Pooled Budgets,Jcs For People With Learning Disabilitie,Third Party Payments,Home Care,568,20-Apr-2012,1204-00148,1608.96,R,Affinity Trust
http://statistics.data.gov.uk/doc/local-authority/00DA,Leeds City Council as Accountable Body,Social Services Pooled Budgets,Jcs For People With Learning Disabilitie,Third Party Payments,Home Care,568,20-Apr-2012,1204-00149,4134.32,R,Affinity Trust
http://statistics.data.gov.uk/doc/local-authority/00DA,Leeds City Council as Accountable Body,Social Services Pooled Budgets,Jcs For People With Learning Disabilitie,Third Party Payments,Home Care,568,20-Apr-2012,1204-00150,4810.10,R,Affinity Trust
http://statistics.data.gov.uk/doc/local-authority/00DA,Leeds City Council as Accountable Body,Social Services Pooled Budgets,Jcs For People With Learning Disabilitie,Third Party Payments,Home Care,568,20-Apr-2012,1204-00151,4810.10,R,Affinity Trust
http://statistics.data.gov.uk/doc/local-authority/00DA,Leeds City Council as Accountable Body,Social Services Pooled Budgets,Jcs For People With Learning Disabilitie,Third Party Payments,Home Care,568,20-Apr-2012,1204-00152,7741.65,R,Affinity Trust
http://statistics.data.gov.uk/doc/local-authority/00DA,Leeds City Council,Adult Social Care,Services For Older People - 65 And Over,Third Party Payments,Residential,580,20-Apr-2012,1204-00153,526.68,R,Affinity Trust
http://statistics.data.gov.uk/doc/local-authority/00DA,Leeds City Council as Accountable Body,Social Services Pooled Budgets,Jcs For People With Learning Disabilitie,Third Party Payments,Residential,580,20-Apr-2012,1204-00154,-82734.35,R,Affinity Trust
http://statistics.data.gov.uk/doc/local-authority/00DA,Leeds City Council as Accountable Body,Social Services Pooled Budgets,Jcs For People With Learning Disabilitie,Third Party Payments,Residential,580,20-Apr-2012,1204-00155,804.48,R,Affinity Trust
http://statistics.data.gov.uk/doc/local-authority/00DA,Leeds City Council as Accountable Body,Social Services Pooled Budgets,Jcs For People With Learning Disabilitie,Third Party Payments,Residential,580,20-Apr-2012,1204-00156,1199.99,R,Affinity Trust
http://statistics.data.gov.uk/doc/local-authority/00DA,Leeds City Council as Accountable Body,Social Services Pooled Budgets,Jcs For People With Learning Disabilitie,Third Party Payments,Residential,580,20-Apr-2012,1204-00157,17439.32,R,Affinity Trust
http://statistics.data.gov.uk/doc/local-authority/00DA,Leeds City Council as Accountable Body,Social Services Pooled Budgets,Jcs For People With Learning Disabilitie,Third Party Payments,Residential,580,20-Apr-2012,1204-00158,21474.52,R,Affinity Trust
http://statistics.data.gov.uk/doc/local-authority/00DA,Leeds City Council as Accountable Body,Social Services Pooled Budgets,Jcs For People With Learning Disabilitie,Third Party Payments,Residential,580,20-Apr-2012,1204-00159,23010.24,R,Affinity Trust
http://statistics.data.gov.uk/doc/local-authority/00DA,Leeds City Council as Accountable Body,Social Services Pooled Budgets,Jcs For People With Learning Disabilitie,Third Party Payments,Residential,580,20-Apr-2012,1204-00160,24513.52,R,Affinity Trust
http://statistics.data.gov.uk/doc/local-authority/00DA,Leeds City Council as Accountable Body,Social Services Pooled Budgets,Jcs For People With Learning Disabilitie,Third Party Payments,Residential,580,20-Apr-2012,1204-00161,25919.70,R,Affinity Trust
http://statistics.data.gov.uk/doc/local-authority/00DA,Leeds City Council,Childrens Services,Safeguarding Targeted & Specialist,Third Party Payments,Adoptions - Allowances,560,03-Apr-2012,1204-00162,9550.00,R,After Adoption
http://statistics.data.gov.uk/doc/local-authority/00DA,Leeds City Council,Environment & Neighbourhoods,Learning,Supplies and Services,College Contracts,276,05-Apr-2012,1204-00163,13365.00,R,Age Uk Leeds
http://statistics.data.gov.uk/doc/local-authority/00DA,Leeds City Council,Environment & Neighbourhoods,Strategy & Commissioning,Third Party Payments,Supporting Ppl - Block Gross Chargeable,514,23-Apr-2012,1204-00164,3957.68,R,Age Uk Leeds
http://statistics.data.gov.uk/doc/local-authority/00DA,Leeds City Council,Adult Social Care,Services For Older People - 65 And Over,Third Party Payments,Payments To Voluntary Organisations,561,02-Apr-2012,1204-00165,26636.00,R,Age Uk Leeds
http://statistics.data.gov.uk/doc/local-authority/00DA,Leeds City Council,City Development,Highways,Capital,Construction,3,24-Apr-2012,1204-00166,21455.00,C,Aggregate Industries Uk Ltd
http://statistics.data.gov.uk/doc/local-authority/00DA,Leeds City Council,City Development,Highways,Capital,Construction,3,24-Apr-2012,1204-00167,42500.00,C,Aggregate Industries Uk Ltd
http://statistics.data.gov.uk/doc/local-authority/00DA,Leeds City Council,City Development,Highways,Supplies and Services,Other Hired And Contracted Services,265,24-Apr-2012,1204-00168,1617.00,R,Aggregate Industries Uk Ltd
http://statistics.data.gov.uk/doc/local-authority/00DA,Leeds City Council,City Development,Highways,Supplies and Services,Other Hired And Contracted Services,265,24-Apr-2012,1204-00169,10409.00,R,Aggregate Industries Uk Ltd
http://statistics.data.gov.uk/doc/local-authority/00DA,Leeds City Council,City Development,Highways,Supplies and Services,Other Hired And Contracted Services,265,13-Apr-2012,1204-00170,85500.00,R,Aggregate Industries Uk Ltd
http://statistics.data.gov.uk/doc/local-authority/00DA,Leeds City Council,Adult Social Care,Services For Older People - 65 And Over,Transfer Payments,Direct Payments,626,11-Apr-2012,1204-00171,1206.13,R,REDACTED PERSONAL DATA
http://statistics.data.gov.uk/doc/local-authority/00DA,Leeds City Council,Adult Social Care,Services For Older People - 65 And Over,Transfer Payments,Personalised Budgets,627,11-Apr-2012,1204-00172,604.80,R,REDACTED PERSONAL DATA
http://statistics.data.gov.uk/doc/local-authority/00DA,Leeds City Council,Adult Social Care,Services For Older People Under 65 P/Dis,Third Party Payments,Residential,580,11-Apr-2012,1204-00173,5652.04,R,Agricola House
http://statistics.data.gov.uk/doc/local-authority/00DA,Leeds City Council as Accountable Body,Social Services Pooled Budgets,Leeds Community Equip Store Pooled Budgt,Supplies and Services,Other Equipment,203,05-Apr-2012,1204-00174,946.60,R,Aidapt Bathrooms Ltd
http://statistics.data.gov.uk/doc/local-authority/00DA,Leeds City Council as Accountable Body,Social Services Pooled Budgets,Leeds Community Equip Store Pooled Budgt,Supplies and Services,Other Equipment,203,05-Apr-2012,1204-00175,1185.00,R,Aidapt Bathrooms Ltd
http://statistics.data.gov.uk/doc/local-authority/00DA,Leeds City Council as Accountable Body,Social Services Pooled Budgets,Jcs For People With Learning Disabilitie,Transfer Payments,Personal Budgets,627,11-Apr-2012,1204-00176,2839.32,R,REDACTED PERSONAL DATA
http://statistics.data.gov.uk/doc/local-authority/00DA,Leeds City Council,City Development,Recreation,Supplies and Services,Other Hired And Contracted Services,265,24-Apr-2012,1204-00177,991.76,R,Air China Limited
http://statistics.data.gov.uk/doc/local-authority/00DA,Leeds City Council as Accountable Body,Social Services Pooled Budgets,Jcs For People With Learning Disabilitie,Third Party Payments,Residential,580,11-Apr-2012,1204-00178,7027.24,R,Aire House
http://statistics.data.gov.uk/doc/local-authority/00DA,Leeds City Council,Central & Corporate Functions,Commercial Services Trading Services,Supplies and Services,Other Hired And Contracted Services,265,05-Apr-2012,1204-00179,1446.74,R,Aire Truck Bodies Limited
http://statistics.data.gov.uk/doc/local-authority/00DA,East - North East                    ,East - North East,Business Improvement,Premises,Other,114,27-Apr-2012,1204-00180,7495.00,R,Aire Valley Tree Services Ltd
http://statistics.data.gov.uk/doc/local-authority/00DA,Leeds City Council,Adult Social Care,Services For Older People - 65 And Over,Third Party Payments,Residential Care Emi,571,11-Apr-2012,1204-00181,33973.28,R,Aire View Residential Home
http://statistics.data.gov.uk/doc/local-authority/00DA,Leeds City Council,Adult Social Care,Services For Adults Under 65 Mental/Dis,Third Party Payments,Residential,580,11-Apr-2012,1204-00182,896.92,R,Aire View Residential Home
http://statistics.data.gov.uk/doc/local-authority/00DA,Leeds City Council,Adult Social Care,Services For Older People - 65 And Over,Third Party Payments,Residential,580,11-Apr-2012,1204-00183,8902.08,R,Aire View Residential Home
http://statistics.data.gov.uk/doc/local-authority/00DA,Leeds City Council,Adult Social Care,Services For Older People - 65 And Over,Third Party Payments,Payments To Voluntary Organisations,561,02-Apr-2012,1204-00184,16560.00,R,Aireborough Voluntary Services
http://statistics.data.gov.uk/doc/local-authority/00DA,Leeds City Council,Adult Social Care,Services For Older People - 65 And Over,Third Party Payments,Residential,580,11-Apr-2012,1204-00185,25512.48,R,Airedale (Goldsborough)
http://statistics.data.gov.uk/doc/local-authority/00DA,Leeds City Council,City Development,Libraries  Arts & Heritage,Capital,Construction,3,13-Apr-2012,1204-00186,1265.58,C,Airedale Mechanical & Electrical Ltd
http://statistics.data.gov.uk/doc/local-authority/00DA,Leeds City Council,Environment & Neighbourhoods,Statutory Housing,Supplies and Services,Other Hired And Contracted Services,265,24-Apr-2012,1204-00187,450.00,R,Aireside Housing Partnership
http://statistics.data.gov.uk/doc/local-authority/00DA,Leeds City Council,Environment & Neighbourhoods,Community Safety,Supplies and Services,Other Hired And Contracted Services,265,13-Apr-2012,1204-00188,4585.19,R,Airwave Solutions Ltd
http://statistics.data.gov.uk/doc/local-authority/00DA,Leeds City Council,Adult Social Care,Services For Older People - 65 And Over,Third Party Payments,Home Care,568,20-Apr-2012,1204-00189,3118.50,R,Aj Social Care
http://statistics.data.gov.uk/doc/local-authority/00DA,Leeds City Council,Adult Social Care,Services For Older People - 65 And Over,Third Party Payments,Home Care,568,20-Apr-2012,1204-00190,9810.18,R,Aj Social Care
http://statistics.data.gov.uk/doc/local-authority/00DA,Leeds City Council,Adult Social Care,Services For Older People - 65 And Over,Third Party Payments,Home Care,568,13-Apr-2012,1204-00191,10236.54,R,Aj Social Care
http://statistics.data.gov.uk/doc/local-authority/00DA,Leeds City Council,Adult Social Care,Services For Older People Under 65 P/Dis,Third Party Payments,Home Care,568,13-Apr-2012,1204-00192,978.30,R,Aj Social Care
http://statistics.data.gov.uk/doc/local-authority/00DA,Leeds City Council,Adult Social Care,Services For Older People Under 65 P/Dis,Third Party Payments,Home Care,568,20-Apr-2012,1204-00193,1673.73,R,Aj Social Care
http://statistics.data.gov.uk/doc/local-authority/00DA,East - North East                    ,East - North East,Construction Services,Supplies and Services,Other Materials,205,27-Apr-2012,1204-00194,435.49,R,Ajm Fixings & Power Tools Ltd
http://statistics.data.gov.uk/doc/local-authority/00DA,East - North East                    ,East - North East,Construction Services,Supplies and Services,Other Materials,205,20-Apr-2012,1204-00195,630.05,R,Ajm Fixings & Power Tools Ltd
http://statistics.data.gov.uk/doc/local-authority/00DA,East - North East                    ,East - North East,Construction Services,Supplies and Services,Other Materials,205,11-Apr-2012,1204-00196,671.26,R,Ajm Fixings & Power Tools Ltd
http://statistics.data.gov.uk/doc/local-authority/00DA,East - North East                    ,East - North East,Construction Services,Supplies and Services,Other Materials,205,13-Apr-2012,1204-00197,796.08,R,Ajm Fixings & Power Tools Ltd
http://statistics.data.gov.uk/doc/local-authority/00DA,East - North East                    ,East - North East,Construction Services,Supplies and Services,Other Materials,205,13-Apr-2012,1204-00198,804.60,R,Ajm Fixings & Power Tools Ltd
http://statistics.data.gov.uk/doc/local-authority/00DA,East - North East                    ,East - North East,Construction Services,Supplies and Services,Other Materials,205,11-Apr-2012,1204-00199,846.00,R,Ajm Fixings & Power Tools Ltd
http://statistics.data.gov.uk/doc/local-authority/00DA,East - North East                    ,East - North East,Construction Services,Supplies and Services,Other Materials,205,04-Apr-2012,1204-00200,1027.33,R,Ajm Fixings & Power Tools Ltd
http://statistics.data.gov.uk/doc/local-authority/00DA,East - North East                    ,East - North East,Construction Services,Supplies and Services,Other Materials,205,20-Apr-2012,1204-00201,1130.43,R,Ajm Fixings & Power Tools Ltd
http://statistics.data.gov.uk/doc/local-authority/00DA,East - North East                    ,East - North East,Construction Services,Supplies and Services,Other Materials,205,13-Apr-2012,1204-00202,1252.71,R,Ajm Fixings & Power Tools Ltd
http://statistics.data.gov.uk/doc/local-authority/00DA,East - North East                    ,East - North East,Construction Services,Supplies and Services,Other Materials,205,04-Apr-2012,1204-00203,1271.37,R,Ajm Fixings & Power Tools Ltd
http://statistics.data.gov.uk/doc/local-authority/00DA,East - North East                    ,East - North East,Construction Services,Supplies and Services,Other Materials,205,11-Apr-2012,1204-00204,1274.65,R,Ajm Fixings & Power Tools Ltd
http://statistics.data.gov.uk/doc/local-authority/00DA,East - North East                    ,East - North East,Construction Services,Supplies and Services,Other Materials,205,04-Apr-2012,1204-00205,1508.82,R,Ajm Fixings & Power Tools Ltd
http://statistics.data.gov.uk/doc/local-authority/00DA,Leeds City Council,Central & Corporate Functions,Commercial Services Trading Services,Supplies and Services,Operational Materials,205,18-Apr-2012,1204-00206,615.90,R,Ajm Fixings & Power Tools Ltd
http://statistics.data.gov.uk/doc/local-authority/00DA,Leeds City Council,Adult Social Care,Services For Older People Under 65 P/Dis,Transfer Payments,Direct Payments,626,11-Apr-2012,1204-00207,1729.00,R,REDACTED PERSONAL DATA
http://statistics.data.gov.uk/doc/local-authority/00DA,Leeds City Council,Adult Social Care,Services For Older People Under 65 P/Dis,Transfer Payments,Personalised Budgets,627,11-Apr-2012,1204-00208,2040.08,R,REDACTED PERSONAL DATA
http://statistics.data.gov.uk/doc/local-authority/00DA,Leeds City Council,Adult Social Care,Services For Older People - 65 And Over,Transfer Payments,Direct Payments,626,11-Apr-2012,1204-00209,2557.64,R,REDACTED PERSONAL DATA
http://statistics.data.gov.uk/doc/local-authority/00DA,Leeds City Council,Environment & Neighbourhoods,Streetscene Environmental Services,Transport,External Hire -Occasional,304,03-Apr-2012,1204-00210,594.00,R,Alan Thompson Transport
http://statistics.data.gov.uk/doc/local-authority/00DA,Leeds City Council,Environment & Neighbourhoods,Streetscene Environmental Services,Transport,External Hire -Occasional,304,24-Apr-2012,1204-00211,594.00,R,Alan Thompson Transport
http://statistics.data.gov.uk/doc/local-authority/00DA,Leeds City Council,Environment & Neighbourhoods,Streetscene Environmental Services,Transport,External Hire -Occasional,304,24-Apr-2012,1204-00212,685.00,R,Alan Thompson Transport
http://statistics.data.gov.uk/doc/local-authority/00DA,Leeds City Council,Central & Corporate Functions,Information Technology,Supplies and Services,Software - Expenditure,080,05-Apr-2012,1204-00213,889.00,R,Albany Software Ltd
http://statistics.data.gov.uk/doc/local-authority/00DA,Leeds City Council,Central & Corporate Functions,Information Technology,Supplies and Services,Software - Expenditure,080,05-Apr-2012,1204-00214,1259.00,R,Albany Software Ltd
http://statistics.data.gov.uk/doc/local-authority/00DA,Leeds City Council,Environment & Neighbourhoods,Environmental Action (West North West),Supplies and Services,Clothing & Uniforms,241,20-Apr-2012,1204-00215,593.20,R,Albert Haywood & Sons Ltd
http://statistics.data.gov.uk/doc/local-authority/00DA,Leeds City Council,Adult Social Care,Services For Older People - 65 And Over,Transfer Payments,Personalised Budgets,627,11-Apr-2012,1204-00216,884.76,R,REDACTED PERSONAL DATA
http://statistics.data.gov.uk/doc/local-authority/00DA,Leeds City Council,City Development,Libraries  Arts & Heritage,Transport,Plant Hire - By Directorate,305,02-Apr-2012,1204-00217,1093.29,R,Albury Asset Rentals Ltd
http://statistics.data.gov.uk/doc/local-authority/00DA,Leeds City Council,City Development,Libraries  Arts & Heritage,Supplies and Services,Art Galleries Total Stores,003,27-Apr-2012,1204-00218,452.00,R,Alessi Uk Ltd
http://statistics.data.gov.uk/doc/local-authority/00DA,Leeds City Council,City Development,Libraries  Arts & Heritage,Supplies and Services,Art Galleries Total Stores,003,27-Apr-2012,1204-00219,764.85,R,Alessi Uk Ltd
http://statistics.data.gov.uk/doc/local-authority/00DA,Leeds City Council as Accountable Body,Social Services Pooled Budgets,Jcs For People With Learning Disabilitie,Transfer Payments,Direct Payments,626,11-Apr-2012,1204-00220,1107.92,R,REDACTED PERSONAL DATA
http://statistics.data.gov.uk/doc/local-authority/00DA,Leeds City Council,Adult Social Care,Services For Older People Under 65 P/Dis,Transfer Payments,Direct Payments,626,11-Apr-2012,1204-00221,926.72,R,REDACTED PERSONAL DATA
http://statistics.data.gov.uk/doc/local-authority/00DA,Leeds City Council,Childrens Services,Safeguarding Targeted & Specialist,Support Services,Legal Disbursements,411,12-Apr-2012,1204-00222,847.00,R,Alex Taylor
http://statistics.data.gov.uk/doc/local-authority/00DA,Leeds City Council,Adult Social Care,Services For Adults Under 65 Mental/Dis,Transfer Payments,Personalised Budgets,627,11-Apr-2012,1204-00223,640.00,R,REDACTED PERSONAL DATA
http://statistics.data.gov.uk/doc/local-authority/00DA,Leeds City Council,Adult Social Care,Services For Older People - 65 And Over,Third Party Payments,Residential Care Emi,571,11-Apr-2012,1204-00224,10790.95,R,Alexander Residential Home
http://statistics.data.gov.uk/doc/local-authority/00DA,Leeds City Council,Adult Social Care,Services For Older People - 65 And Over,Third Party Payments,Residential,580,11-Apr-2012,1204-00225,12516.92,R,Alexander Residential Home
http://statistics.data.gov.uk/doc/local-authority/00DA,Leeds City Council as Accountable Body,Social Services Pooled Budgets,Jcs For People With Learning Disabilitie,Third Party Payments,Residential,580,11-Apr-2012,1204-00226,1220.72,R,Alexander Residential Home
http://statistics.data.gov.uk/doc/local-authority/00DA,Leeds City Council as Accountable Body,Social Services Pooled Budgets,Jcs For People With Learning Disabilitie,Transfer Payments,Personal Budgets,627,11-Apr-2012,1204-00227,419.60,R,REDACTED PERSONAL DATA
http://statistics.data.gov.uk/doc/local-authority/00DA,Leeds City Council,Adult Social Care,Services For Older People - 65 And Over,Third Party Payments,Residential Care Emi,571,11-Apr-2012,1204-00228,1238.40,R,Alexandra Court
http://statistics.data.gov.uk/doc/local-authority/00DA,Leeds City Council,Adult Social Care,Services For Older People - 65 And Over,Third Party Payments,Residential,580,11-Apr-2012,1204-00229,9547.68,R,Alexandra Court
http://statistics.data.gov.uk/doc/local-authority/00DA,Leeds City Council,Adult Social Care,Services For Older People - 65 And Over,Transfer Payments,Direct Payments,626,11-Apr-2012,1204-00230,3019.24,R,REDACTED PERSONAL DATA
http://statistics.data.gov.uk/doc/local-authority/00DA,Leeds City Council,City Development,Libraries  Arts & Heritage,Capital,Construction,3,25-Apr-2012,1204-00231,670.00,C,Alfred Bagnall & Sons (Leeds) Ltd
http://statistics.data.gov.uk/doc/local-authority/00DA,Leeds City Council,City Development,Libraries  Arts & Heritage,Capital,Construction,3,18-Apr-2012,1204-00232,17350.00,C,Alfred Bagnall & Sons (Leeds) Ltd
http://statistics.data.gov.uk/doc/local-authority/00DA,Leeds City Council,Central & Corporate Functions,Support And Facilities General Fund,Premises,Maintenance Of Buildings,101,20-Apr-2012,1204-00233,7913.00,R,Alfred Bagnall & Sons (Leeds) Ltd
http://statistics.data.gov.uk/doc/local-authority/00DA,Leeds City Council,City Development,Asset Management Services,Premises,Maintenance Of Buildings,101,25-Apr-2012,1204-00234,5153.07,R,Alfred Bagnall & Sons (Leeds) Ltd
http://statistics.data.gov.uk/doc/local-authority/00DA,Leeds City Council,City Development,Asset Management Services,Premises,Maintenance Of Buildings,101,04-Apr-2012,1204-00235,8164.88,R,Alfred Bagnall & Sons (Leeds) Ltd
http://statistics.data.gov.uk/doc/local-authority/00DA,Leeds City Council,City Development,Asset Management Services,Premises,Maintenance Of Buildings,101,27-Apr-2012,1204-00236,12142.00,R,Alfred Bagnall & Sons (Leeds) Ltd
http://statistics.data.gov.uk/doc/local-authority/00DA,Leeds City Council,City Development,Libraries  Arts & Heritage,Premises,Maintenance Of Buildings,101,18-Apr-2012,1204-00237,1900.00,R,Alfred Bagnall & Sons (Leeds) Ltd
http://statistics.data.gov.uk/doc/local-authority/00DA,Leeds City Council,City Development,Recreation,Premises,Maintenance Of Buildings,101,27-Apr-2012,1204-00238,1072.69,R,Alfred Bagnall & Sons (Leeds) Ltd
http://statistics.data.gov.uk/doc/local-authority/00DA,Leeds City Council,Central & Corporate Functions,Commercial Services Trading Services,Supplies and Services,Other Hired And Contracted Services,265,18-Apr-2012,1204-00239,20885.00,R,Alfred Bagnall & Sons (Leeds) Ltd
http://statistics.data.gov.uk/doc/local-authority/00DA,Leeds City Council,Adult Social Care,Services For Older People - 65 And Over,Transfer Payments,Direct Payments,626,11-Apr-2012,1204-00240,5370.48,R,REDACTED PERSONAL DATA,
http://statistics.data.gov.uk/doc/local-authority/00DA,Leeds City Council as Accountable Body,Social Services Pooled Budgets,Jcs For People With Learning Disabilitie,Transfer Payments,Personal Budgets,627,11-Apr-2012,1204-00241,947.96,R,REDACTED PERSONAL DATA,
http://statistics.data.gov.uk/doc/local-authority/00DA,Leeds City Council,City Development,Libraries  Arts & Heritage,Supplies and Services,Other Hired And Contracted Services,265,04-Apr-2012,1204-00242,525.00,R,Alison Glew,
http://statistics.data.gov.uk/doc/local-authority/00DA,Leeds City Council,City Development,Libraries  Arts & Heritage,Supplies and Services,Bought In Professional Services,277,13-Apr-2012,1204-00243,1816.80,R,Alison Glew,
http://statistics.data.gov.uk/doc/local-authority/00DA,Leeds City Council,City Development,Recreation,Supplies and Services,Other Hired And Contracted Services,265,05-Apr-2012,1204-00244,470.00,R,Alison Rose,
http://statistics.data.gov.uk/doc/local-authority/00DA,Leeds City Council,City Development,Recreation,Supplies and Services,Other Hired And Contracted Services,265,24-Apr-2012,1204-00245,520.00,R,Alison Rose,
http://statistics.data.gov.uk/doc/local-authority/00DA,Leeds City Council,Adult Social Care,Services For Older People Under 65 P/Dis,Transfer Payments,Direct Payments,626,11-Apr-2012,1204-00246,2666.40,R,REDACTED PERSONAL DATA,
http://statistics.data.gov.uk/doc/local-authority/00DA,Leeds City Council,Adult Social Care,Services For Older People Under 65 P/Dis,Transfer Payments,Personalised Budgets,627,11-Apr-2012,1204-00247,-666.60,R,REDACTED PERSONAL DATA,
http://statistics.data.gov.uk/doc/local-authority/00DA,Leeds City Council,Adult Social Care,Services For Adults Under 65 Mental/Dis,Transfer Payments,Direct Payments,626,11-Apr-2012,1204-00248,3020.04,R,REDACTED PERSONAL DATA,
http://statistics.data.gov.uk/doc/local-authority/00DA,Leeds City Council,Adult Social Care,Services For Older People - 65 And Over,Third Party Payments,Residential,580,11-Apr-2012,1204-00249,1103.16,R,Allendale Residential Home,
http://statistics.data.gov.uk/doc/local-authority/00DA,Leeds City Council,Strategic Accounts,Strategic,Supplies and Services,Office Consumables,210,02-Apr-2012,1204-00250,28000.00,R,Allerton Bywater Parish Council,
http://statistics.data.gov.uk/doc/local-authority/00DA,Leeds City Council,Central & Corporate Functions,Revenues,Supplies and Services,Bank Charges,263,04-Apr-2012,1204-00251,1366.69,R,Alliance & Leicester Commercial Bank,
http://statistics.data.gov.uk/doc/local-authority/00DA,Leeds City Council,City Development,Recreation  ,Premises,Cleaning,127,23-Mar-2012,1204-00252,543.12,R,Alliance Disposables,
http://statistics.data.gov.uk/doc/local-authority/00DA,Leeds City Council,Adult Social Care,Other Generic Services,Third Party Payments,Home Care,568,27-Apr-2012,1204-00253,7293.51,R,Allied Healthcare Group Ltd,
http://statistics.data.gov.uk/doc/local-authority/00DA,Leeds City Council,Adult Social Care,Other Generic Services,Third Party Payments,Home Care,568,27-Apr-2012,1204-00254,14712.51,R,Allied Healthcare Group Ltd,
http://statistics.data.gov.uk/doc/local-authority/00DA,Leeds City Council,Adult Social Care,Services For Adults Under 65 Mental/Dis,Third Party Payments,Home Care,568,05-Apr-2012,1204-00255,17074.78,R,Allied Healthcare Group Ltd,
http://statistics.data.gov.uk/doc/local-authority/00DA,Leeds City Council,Adult Social Care,Services For Older People - 65 And Over,Third Party Payments,Home Care,568,13-Apr-2012,1204-00256,4129.81,R,Allied Healthcare Group Ltd
http://statistics.data.gov.uk/doc/local-authority/00DA,Leeds City Council,Adult Social Care,Services For Older People - 65 And Over,Third Party Payments,Home Care,568,05-Apr-2012,1204-00257,4573.86,R,Allied Healthcare Group Ltd
http://statistics.data.gov.uk/doc/local-authority/00DA,Leeds City Council,Adult Social Care,Services For Older People - 65 And Over,Third Party Payments,Home Care,568,05-Apr-2012,1204-00258,7481.82,R,Allied Healthcare Group Ltd
http://statistics.data.gov.uk/doc/local-authority/00DA,Leeds City Council,Adult Social Care,Services For Older People - 65 And Over,Third Party Payments,Home Care,568,13-Apr-2012,1204-00259,8229.37,R,Allied Healthcare Group Ltd
http://statistics.data.gov.uk/doc/local-authority/00DA,Leeds City Council,Adult Social Care,Services For Older People - 65 And Over,Third Party Payments,Home Care,568,13-Apr-2012,1204-00260,9824.57,R,Allied Healthcare Group Ltd
http://statistics.data.gov.uk/doc/local-authority/00DA,Leeds City Council,Adult Social Care,Services For Older People - 65 And Over,Third Party Payments,Home Care,568,05-Apr-2012,1204-00261,16632.64,R,Allied Healthcare Group Ltd
http://statistics.data.gov.uk/doc/local-authority/00DA,Leeds City Council,Adult Social Care,Services For Older People - 65 And Over,Third Party Payments,Home Care,568,10-Apr-2012,1204-00262,16770.10,R,Allied Healthcare Group Ltd
http://statistics.data.gov.uk/doc/local-authority/00DA,Leeds City Council,Adult Social Care,Services For Older People Under 65 P/Dis,Third Party Payments,Home Care,568,13-Apr-2012,1204-00263,1254.75,R,Allied Healthcare Group Ltd
http://statistics.data.gov.uk/doc/local-authority/00DA,Leeds City Council,Adult Social Care,Services For Older People Under 65 P/Dis,Third Party Payments,Home Care,568,13-Apr-2012,1204-00264,2799.29,R,Allied Healthcare Group Ltd
http://statistics.data.gov.uk/doc/local-authority/00DA,Leeds City Council,Adult Social Care,Services For Older People Under 65 P/Dis,Third Party Payments,Home Care,568,13-Apr-2012,1204-00265,8462.64,R,Allied Healthcare Group Ltd
http://statistics.data.gov.uk/doc/local-authority/00DA,Leeds City Council,Adult Social Care,Services For Older People Under 65 P/Dis,Third Party Payments,Home Care,568,10-Apr-2012,1204-00266,8476.33,R,Allied Healthcare Group Ltd
http://statistics.data.gov.uk/doc/local-authority/00DA,Leeds City Council as Accountable Body,Social Services Pooled Budgets,Jcs For People With Learning Disabilitie,Third Party Payments,Home Care,568,20-Apr-2012,1204-00267,493.67,R,Allied Healthcare Group Ltd
http://statistics.data.gov.uk/doc/local-authority/00DA,Leeds City Council as Accountable Body,Social Services Pooled Budgets,Jcs For People With Learning Disabilitie,Third Party Payments,Home Care,568,20-Apr-2012,1204-00268,524.79,R,Allied Healthcare Group Ltd
http://statistics.data.gov.uk/doc/local-authority/00DA,Leeds City Council as Accountable Body,Social Services Pooled Budgets,Jcs For People With Learning Disabilitie,Third Party Payments,Home Care,568,20-Apr-2012,1204-00269,1100.00,R,Allied Healthcare Group Ltd
http://statistics.data.gov.uk/doc/local-authority/00DA,Leeds City Council as Accountable Body,Social Services Pooled Budgets,Jcs For People With Learning Disabilitie,Third Party Payments,Home Care,568,13-Apr-2012,1204-00270,1518.34,R,Allied Healthcare Group Ltd
http://statistics.data.gov.uk/doc/local-authority/00DA,Leeds City Council,Childrens Services,Learning Skills & Universal,Transport,Fuel (Non LCC Supplies),321,10-Apr-2012,1204-00271,2670.08,R,Allstar Business Solutions Ltd
http://statistics.data.gov.uk/doc/local-authority/00DA,Leeds City Council,Environment & Neighbourhoods,Statutory Housing,Supplies and Services,Other Hired And Contracted Services,265,24-Apr-2012,1204-00272,500.00,R,REDACTED PERSONAL DATA,
http://statistics.data.gov.uk/doc/local-authority/00DA,Aire Valley Homes Leeds              ,Aire Valley Homes Leeds,Housing,Supplies and Services,Equipment And Materials,207,05-Apr-2012,1204-00273,970.00,R,Alpha Tools (Northern) Ltd,
http://statistics.data.gov.uk/doc/local-authority/00DA,Leeds City Council,City Development,Libraries  Arts & Heritage,Supplies and Services,Other Hired And Contracted Services,265,11-Apr-2012,1204-00274,772.00,R,Alternative Display Company Limited,
http://statistics.data.gov.uk/doc/local-authority/00DA,Leeds City Council,Childrens Services,Learning Skills & Universal  ,Supplies and Services,Admission Charges to Schools,283,21-Mar-2012,1204-00275,877.50,R,Alton Towers Park,
http://statistics.data.gov.uk/doc/local-authority/00DA,Leeds City Council,Central & Corporate Functions,Commercial Services Trading Services,Supplies and Services,Operational Materials,205,13-Apr-2012,1204-00276,464.16,R,Alvin Morris Ltd,
http://statistics.data.gov.uk/doc/local-authority/00DA,Leeds City Council,Central & Corporate Functions,Commercial Services Trading Services,Supplies and Services,Operational Materials,205,17-Apr-2012,1204-00277,464.16,R,Alvin Morris Ltd,
http://statistics.data.gov.uk/doc/local-authority/00DA,Leeds City Council,Central & Corporate Functions,Commercial Services Trading Services,Supplies and Services,Operational Materials,205,17-Apr-2012,1204-00278,1932.60,R,Alvin Morris Ltd,
http://statistics.data.gov.uk/doc/local-authority/00DA,Leeds City Council,Strategic Accounts,Strategic,Supplies and Services,Office Consumables,210,02-Apr-2012,1204-00279,36720.00,R,Alwoodley Parish Council,
http://statistics.data.gov.uk/doc/local-authority/00DA,Leeds City Council,Adult Social Care,Services For Adults Under 65 Mental/Dis,Transfer Payments,Direct Payments,626,11-Apr-2012,1204-00280,2222.48,R,REDACTED PERSONAL DATA,
http://statistics.data.gov.uk/doc/local-authority/00DA,Leeds City Council,Adult Social Care,Services For Older People Under 65 P/Dis,Transfer Payments,Direct Payments,626,11-Apr-2012,1204-00281,678.72,R,REDACTED PERSONAL DATA,
http://statistics.data.gov.uk/doc/local-authority/00DA,Leeds City Council,Adult Social Care,Services For Older People Under 65 P/Dis,Transfer Payments,Direct Payments,626,11-Apr-2012,1204-00282,898.58,R,REDACTED PERSONAL DATA,
http://statistics.data.gov.uk/doc/local-authority/00DA,Leeds City Council,Childrens Services,Learning Skills & Universal,Third Party Payments,Services Rendered By Other Organisations,511,16-Apr-2012,1204-00283,6926.40,R,Amazing Grace Early Years Childcare,
http://statistics.data.gov.uk/doc/local-authority/00DA,Leeds City Council,Childrens Services,Learning Skills & Universal  ,Supplies and Services,Books & Audio-Visual Materials,206,19-Mar-2012,1204-00284,596.00,R,Amazon *mktplce Eu-Uk,
http://statistics.data.gov.uk/doc/local-authority/00DA,Leeds City Council,Childrens Services,Learning Skills & Universal  ,Supplies and Services,Books & Audio-Visual Materials,206,20-Mar-2012,1204-00285,894.00,R,Amazon *mktplce Eu-Uk,
http://statistics.data.gov.uk/doc/local-authority/00DA,Leeds City Council,Central & Corporate Functions,Commercial Services Trading Services,Supplies and Services,Other Hired And Contracted Services,265,27-Apr-2012,1204-00286,981.87,R,Amber Floors Ltd,
http://statistics.data.gov.uk/doc/local-authority/00DA,Leeds City Council,Childrens Services,Safeguarding Targeted & Specialist,Third Party Payments,General External Residential Placements,507,20-Apr-2012,1204-00287,16554.00,R,Amberleigh Care Ltd,
http://statistics.data.gov.uk/doc/local-authority/00DA,Leeds City Council,City Development,Recreation,Supplies and Services,Operational Materials,205,25-Apr-2012,1204-00288,3207.60,R,Amberol Ltd
http://statistics.data.gov.uk/doc/local-authority/00DA,Leeds City Council,Central & Corporate Functions,Commercial Services Trading Services,Supplies and Services,Operational Materials,205,20-Apr-2012,1204-00289,1593.73,R,Ambi-Rad Limited
http://statistics.data.gov.uk/doc/local-authority/00DA,Leeds City Council,Adult Social Care,Services For Older People - 65 And Over,Third Party Payments,Residential,580,11-Apr-2012,1204-00290,2171.72,R,Amelia House Care Home
http://statistics.data.gov.uk/doc/local-authority/00DA,Leeds City Council,Adult Social Care,Services For Older People - 65 And Over,Transfer Payments,Personalised Budgets,627,11-Apr-2012,1204-00291,810.80,R,REDACTED PERSONAL DATA
http://statistics.data.gov.uk/doc/local-authority/00DA,Leeds City Council,Childrens Services,Safeguarding Targeted & Specialist,Third Party Payments,General External Residential Placements,507,04-Apr-2012,1204-00292,526.30,R,Ampleforth Abbey Trust
http://statistics.data.gov.uk/doc/local-authority/00DA,Leeds City Council,City Development,Libraries  Arts & Heritage,Employees,Central Training,079,13-Apr-2012,1204-00293,800.00,R,Amr Security Services Ltd
http://statistics.data.gov.uk/doc/local-authority/00DA,Leeds City Council,City Development,Economic Development,Supplies and Services,City Centre Enhancement,295,05-Apr-2012,1204-00294,2833.33,R,Amr Security Services Ltd
http://statistics.data.gov.uk/doc/local-authority/00DA,Leeds City Council as Accountable Body,Social Services Pooled Budgets,Jcs For People With Learning Disabilitie,Transfer Payments,Personal Budgets,627,11-Apr-2012,1204-00295,878.96,R,REDACTED PERSONAL DATA
http://statistics.data.gov.uk/doc/local-authority/00DA,Leeds City Council,Adult Social Care,Services For Older People Under 65 P/Dis,Transfer Payments,Direct Payments,626,11-Apr-2012,1204-00296,1124.72,R,REDACTED PERSONAL DATA
http://statistics.data.gov.uk/doc/local-authority/00DA,Leeds City Council,Environment & Neighbourhoods,Strategy & Commissioning,Third Party Payments,Supporting Ppl - Block Gross Chargeable,514,23-Apr-2012,1204-00297,456.54,R,Anchor Trust
http://statistics.data.gov.uk/doc/local-authority/00DA,Leeds City Council,Environment & Neighbourhoods,Strategy & Commissioning,Third Party Payments,Supporting Ppl - Block Gross Chargeable,514,23-Apr-2012,1204-00298,468.48,R,Anchor Trust
http://statistics.data.gov.uk/doc/local-authority/00DA,Leeds City Council,Environment & Neighbourhoods,Strategy & Commissioning,Third Party Payments,Supporting Ppl - Block Gross Chargeable,514,23-Apr-2012,1204-00299,2172.10,R,Anchor Trust
http://statistics.data.gov.uk/doc/local-authority/00DA,Leeds City Council,Adult Social Care,Services For Older People - 65 And Over,Third Party Payments,Nursing Home,570,11-Apr-2012,1204-00300,-1298.31,R,Anchor Trust
http://statistics.data.gov.uk/doc/local-authority/00DA,Leeds City Council,Adult Social Care,Services For Older People Under 65 P/Dis,Third Party Payments,Nursing Home,570,11-Apr-2012,1204-00301,-2096.70,R,Anchor Trust
http://statistics.data.gov.uk/doc/local-authority/00DA,Leeds City Council,Adult Social Care,Services For Older People - 65 And Over,Third Party Payments,Residential Care Emi,571,11-Apr-2012,1204-00302,478.68,R,Anchor Trust
http://statistics.data.gov.uk/doc/local-authority/00DA,Leeds City Council,Adult Social Care,Services For Older People - 65 And Over,Third Party Payments,Residential Care Emi,571,11-Apr-2012,1204-00303,1650.04,R,Anchor Trust
http://statistics.data.gov.uk/doc/local-authority/00DA,Leeds City Council,Adult Social Care,Services For Older People - 65 And Over,Third Party Payments,Residential Care Emi,571,11-Apr-2012,1204-00304,4765.40,R,Anchor Trust
http://statistics.data.gov.uk/doc/local-authority/00DA,Leeds City Council,Adult Social Care,Services For Older People - 65 And Over,Third Party Payments,Nursing Care Emi,574,11-Apr-2012,1204-00305,-1544.54,R,Anchor Trust
http://statistics.data.gov.uk/doc/local-authority/00DA,Leeds City Council,Adult Social Care,Services For Older People - 65 And Over,Third Party Payments,Nursing Care Emi,574,11-Apr-2012,1204-00306,1186.96,R,Anchor Trust
http://statistics.data.gov.uk/doc/local-authority/00DA,Leeds City Council,Adult Social Care,Services For Older People - 65 And Over,Third Party Payments,Residential,580,11-Apr-2012,1204-00307,3131.00,R,Anchor Trust
http://statistics.data.gov.uk/doc/local-authority/00DA,Leeds City Council,Adult Social Care,Services For Older People - 65 And Over,Third Party Payments,Residential,580,11-Apr-2012,1204-00308,12716.72,R,Anchor Trust
http://statistics.data.gov.uk/doc/local-authority/00DA,Leeds City Council,Adult Social Care,Services For Older People - 65 And Over,Third Party Payments,Residential,580,11-Apr-2012,1204-00309,18934.44,R,Anchor Trust
http://statistics.data.gov.uk/doc/local-authority/00DA,Leeds City Council,Adult Social Care,Services For Older People Under 65 P/Dis,Third Party Payments,Residential,580,11-Apr-2012,1204-00310,2608.56,R,Anchor Trust
http://statistics.data.gov.uk/doc/local-authority/00DA,Leeds City Council as Accountable Body,Social Services Pooled Budgets,Jcs For People With Learning Disabilitie,Third Party Payments,Residential,580,20-Apr-2012,1204-00311,588.96,R,Anchor Trust
http://statistics.data.gov.uk/doc/local-authority/00DA,Leeds City Council as Accountable Body,Social Services Pooled Budgets,Jcs For People With Learning Disabilitie,Third Party Payments,Residential,580,20-Apr-2012,1204-00312,5576.78,R,Anchor Trust
http://statistics.data.gov.uk/doc/local-authority/00DA,Leeds City Council,Adult Social Care,Services For Older People - 65 And Over,Third Party Payments,Residential Care Emi,571,11-Apr-2012,1204-00313,2158.17,R,Anchor Trust Simon Marks Court
http://statistics.data.gov.uk/doc/local-authority/00DA,Leeds City Council,Adult Social Care,Services For Older People - 65 And Over,Third Party Payments,Residential,580,11-Apr-2012,1204-00314,11464.44,R,Anchor Trust Simon Marks Court
http://statistics.data.gov.uk/doc/local-authority/00DA,Leeds City Council,Adult Social Care,Services For Older People Under 65 P/Dis,Transfer Payments,Direct Payments,626,11-Apr-2012,1204-00315,5217.68,R,REDACTED PERSONAL DATA
http://statistics.data.gov.uk/doc/local-authority/00DA,Leeds City Council,Childrens Services,Learning Skills & Universal,Third Party Payments,Services Rendered By Other Organisations,511,16-Apr-2012,1204-00316,532.80,R,REDACTED PERSONAL DATA
http://statistics.data.gov.uk/doc/local-authority/00DA,Leeds City Council,Adult Social Care,Services For Adults Under 65 Mental/Dis,Transfer Payments,Personalised Budgets,627,11-Apr-2012,1204-00317,821.52,R,REDACTED PERSONAL DATA
http://statistics.data.gov.uk/doc/local-authority/00DA,Leeds City Council,City Development,Support Services,Employees,Training Costs,071,19-Apr-2012,1204-00318,476.00,R,REDACTED PERSONAL DATA
http://statistics.data.gov.uk/doc/local-authority/00DA,Leeds City Council,Environment & Neighbourhoods,Statutory Housing,Support Services,Legal Disbursements,411,17-Apr-2012,1204-00319,2100.00,R,Andrew Grantham
http://statistics.data.gov.uk/doc/local-authority/00DA,Leeds City Council as Accountable Body,Social Services Pooled Budgets,Jcs For People With Learning Disabilitie,Transfer Payments,Personal Budgets,627,11-Apr-2012,1204-00320,837.40,R,REDACTED PERSONAL DATA
http://statistics.data.gov.uk/doc/local-authority/00DA,Leeds City Council,Adult Social Care,Services For Older People Under 65 P/Dis,Transfer Payments,Direct Payments,626,11-Apr-2012,1204-00321,6293.04,R,REDACTED PERSONAL DATA
http://statistics.data.gov.uk/doc/local-authority/00DA,Leeds City Council,Adult Social Care,Services For Older People Under 65 P/Dis,Transfer Payments,Personalised Budgets,627,11-Apr-2012,1204-00322,1000.00,R,REDACTED PERSONAL DATA
http://statistics.data.gov.uk/doc/local-authority/00DA,Leeds City Council as Accountable Body,Social Services Pooled Budgets,Jcs For People With Learning Disabilitie,Transfer Payments,Direct Payments,626,11-Apr-2012,1204-00323,551.56,R,REDACTED PERSONAL DATA
http://statistics.data.gov.uk/doc/local-authority/00DA,Leeds City Council,Adult Social Care,Services For Older People Under 65 P/Dis,Transfer Payments,Personalised Budgets,627,11-Apr-2012,1204-00324,679.36,R,REDACTED PERSONAL DATA
http://statistics.data.gov.uk/doc/local-authority/00DA,East - North East                    ,East - North East,Construction Services,Supplies and Services,Other Hired And Contracted Services,265,27-Apr-2012,1204-00325,458.38,R,Andrew Miller Builders
http://statistics.data.gov.uk/doc/local-authority/00DA,East - North East                    ,East - North East,Construction Services,Supplies and Services,Other Hired And Contracted Services,265,10-Apr-2012,1204-00326,512.10,R,Andrew Miller Builders
http://statistics.data.gov.uk/doc/local-authority/00DA,East - North East                    ,East - North East,Construction Services,Supplies and Services,Other Hired And Contracted Services,265,23-Apr-2012,1204-00327,520.80,R,Andrew Miller Builders
http://statistics.data.gov.uk/doc/local-authority/00DA,East - North East                    ,East - North East,Construction Services,Supplies and Services,Other Hired And Contracted Services,265,27-Apr-2012,1204-00328,538.40,R,Andrew Miller Builders
http://statistics.data.gov.uk/doc/local-authority/00DA,East - North East                    ,East - North East,Construction Services,Supplies and Services,Other Hired And Contracted Services,265,20-Apr-2012,1204-00329,1311.65,R,Andrew Miller Builders
http://statistics.data.gov.uk/doc/local-authority/00DA,East - North East                    ,East - North East,Construction Services,Supplies and Services,Other Hired And Contracted Services,265,10-Apr-2012,1204-00330,2226.00,R,Andrew Miller Builders
http://statistics.data.gov.uk/doc/local-authority/00DA,Leeds City Council,Adult Social Care,Services For Older People Under 65 P/Dis,Transfer Payments,Direct Payments,626,11-Apr-2012,1204-00331,2021.52,R,REDACTED PERSONAL DATA
http://statistics.data.gov.uk/doc/local-authority/00DA,Leeds City Council as Accountable Body,Social Services Pooled Budgets,Jcs For People With Learning Disabilitie,Transfer Payments,Direct Payments,626,11-Apr-2012,1204-00332,866.12,R,REDACTED PERSONAL DATA
http://statistics.data.gov.uk/doc/local-authority/00DA,Leeds City Council,City Development,Highways,Supplies and Services,Other Hired And Contracted Services,265,19-Apr-2012,1204-00333,600.00,R,Andrew Tate
http://statistics.data.gov.uk/doc/local-authority/00DA,Leeds City Council as Accountable Body,Social Services Pooled Budgets,Jcs For People With Learning Disabilitie,Transfer Payments,Direct Payments,626,11-Apr-2012,1204-00334,433.60,R,REDACTED PERSONAL DATA
http://statistics.data.gov.uk/doc/local-authority/00DA,Leeds City Council,Adult Social Care,Services For Older People Under 65 P/Dis,Transfer Payments,Personalised Budgets,627,11-Apr-2012,1204-00335,458.72,R,REDACTED PERSONAL DATA
http://statistics.data.gov.uk/doc/local-authority/00DA,Leeds City Council as Accountable Body,Social Services Pooled Budgets,Jcs For People With Learning Disabilitie,Third Party Payments,Sheltered Accommodation,569,11-Apr-2012,1204-00336,687.48,R,REDACTED PERSONAL DATA
http://statistics.data.gov.uk/doc/local-authority/00DA,Leeds City Council,Adult Social Care,Services For Older People Under 65 P/Dis,Third Party Payments,Home Care,568,05-Apr-2012,1204-00337,2572.10,R,Angels Home Care Services
http://statistics.data.gov.uk/doc/local-authority/00DA,Leeds City Council,Adult Social Care,Services For Older People Under 65 P/Dis,Transfer Payments,Direct Payments,626,11-Apr-2012,1204-00338,642.24,R,REDACTED PERSONAL DATA
http://statistics.data.gov.uk/doc/local-authority/00DA,Leeds City Council,Adult Social Care,Services For Older People Under 65 P/Dis,Transfer Payments,Direct Payments,626,11-Apr-2012,1204-00339,804.88,R,REDACTED PERSONAL DATA
http://statistics.data.gov.uk/doc/local-authority/00DA,Leeds City Council,Childrens Services,Safeguarding Targeted & Specialist,Support Services,Legal Disbursements,411,20-Apr-2012,1204-00340,640.00,R,Ann M Mortimer
http://statistics.data.gov.uk/doc/local-authority/00DA,Leeds City Council,Adult Social Care,Services For Older People Under 65 P/Dis,Transfer Payments,Direct Payments,626,11-Apr-2012,1204-00341,443.52,R,REDACTED PERSONAL DATA
http://statistics.data.gov.uk/doc/local-authority/00DA,Leeds City Council,Adult Social Care,Services For Older People - 65 And Over,Transfer Payments,Direct Payments,626,11-Apr-2012,1204-00342,643.32,R,REDACTED PERSONAL DATA
http://statistics.data.gov.uk/doc/local-authority/00DA,Leeds City Council,Adult Social Care,Services For Older People Under 65 P/Dis,Transfer Payments,Personalised Budgets,627,11-Apr-2012,1204-00343,620.44,R,REDACTED PERSONAL DATA
http://statistics.data.gov.uk/doc/local-authority/00DA,Leeds City Council,Adult Social Care,Services For Adults Under 65 Mental/Dis,Transfer Payments,Direct Payments,626,11-Apr-2012,1204-00344,702.40,R,REDACTED PERSONAL DATA
http://statistics.data.gov.uk/doc/local-authority/00DA,Leeds City Council,Adult Social Care,Services For Older People - 65 And Over,Transfer Payments,Direct Payments,626,11-Apr-2012,1204-00345,2138.56,R,REDACTED PERSONAL DATA
http://statistics.data.gov.uk/doc/local-authority/00DA,Leeds City Council,Adult Social Care,Services For Older People Under 65 P/Dis,Transfer Payments,Personalised Budgets,627,11-Apr-2012,1204-00346,973.64,R,REDACTED PERSONAL DATA
http://statistics.data.gov.uk/doc/local-authority/00DA,Leeds City Council as Accountable Body,Social Services Pooled Budgets,Jcs For People With Learning Disabilitie,Transfer Payments,Direct Payments,626,11-Apr-2012,1204-00347,1598.00,R,REDACTED PERSONAL DATA
http://statistics.data.gov.uk/doc/local-authority/00DA,Leeds City Council,Adult Social Care,Services For Older People - 65 And Over,Transfer Payments,Personalised Budgets,627,11-Apr-2012,1204-00348,3142.19,R,REDACTED PERSONAL DATA
http://statistics.data.gov.uk/doc/local-authority/00DA,Leeds City Council,Adult Social Care,Services For Older People - 65 And Over,Transfer Payments,Personalised Budgets,627,13-Apr-2012,1204-00349,9529.65,R,REDACTED PERSONAL DATA
http://statistics.data.gov.uk/doc/local-authority/00DA,Leeds City Council,Central & Corporate Functions,Support And Facilities Trading Services,Supplies and Services,Operational Materials,205,27-Apr-2012,1204-00350,469.00,R,Antalis Mcnaughton Limited
http://statistics.data.gov.uk/doc/local-authority/00DA,Leeds City Council,Central & Corporate Functions,Support And Facilities Trading Services,Supplies and Services,Operational Materials,205,13-Apr-2012,1204-00351,469.00,R,Antalis Mcnaughton Limited
http://statistics.data.gov.uk/doc/local-authority/00DA,Leeds City Council,Central & Corporate Functions,Support And Facilities Trading Services,Supplies and Services,Operational Materials,205,05-Apr-2012,1204-00352,469.00,R,Antalis Mcnaughton Limited
http://statistics.data.gov.uk/doc/local-authority/00DA,Leeds City Council,Central & Corporate Functions,Support And Facilities Trading Services,Supplies and Services,Operational Materials,205,05-Apr-2012,1204-00353,469.00,R,Antalis Mcnaughton Limited
http://statistics.data.gov.uk/doc/local-authority/00DA,Leeds City Council,Central & Corporate Functions,Support And Facilities Trading Services,Supplies and Services,Operational Materials,205,05-Apr-2012,1204-00354,641.79,R,Antalis Mcnaughton Limited
http://statistics.data.gov.uk/doc/local-authority/00DA,Leeds City Council,Central & Corporate Functions,Support And Facilities Trading Services,Supplies and Services,Operational Materials,205,11-Apr-2012,1204-00355,832.81,R,Antalis Mcnaughton Limited
http://statistics.data.gov.uk/doc/local-authority/00DA,Leeds City Council,Central & Corporate Functions,Support And Facilities Trading Services,Supplies and Services,Operational Materials,205,18-Apr-2012,1204-00356,1130.49,R,Antalis Mcnaughton Limited
http://statistics.data.gov.uk/doc/local-authority/00DA,Leeds City Council,Adult Social Care,Services For Older People Under 65 P/Dis,Transfer Payments,Direct Payments,626,11-Apr-2012,1204-00357,547.20,R,REDACTED PERSONAL DATA
http://statistics.data.gov.uk/doc/local-authority/00DA,Leeds City Council as Accountable Body,Social Services Pooled Budgets,Jcs For People With Learning Disabilitie,Transfer Payments,Personal Budgets,627,11-Apr-2012,1204-00358,890.00,R,REDACTED PERSONAL DATA
http://statistics.data.gov.uk/doc/local-authority/00DA,Leeds City Council,Adult Social Care,Services For Older People - 65 And Over,Transfer Payments,Direct Payments,626,11-Apr-2012,1204-00359,930.20,R,REDACTED PERSONAL DATA
http://statistics.data.gov.uk/doc/local-authority/00DA,Leeds City Council,City Development,Highways,Capital,Construction,3,26-Apr-2012,1204-00360,2121.30,C,Apa Concrete Repairs Limited
http://statistics.data.gov.uk/doc/local-authority/00DA,Leeds City Council,Central & Corporate Functions,Commercial Services Trading Services,Supplies and Services,Food & Drink,231,11-Apr-2012,1204-00361,939.99,R,Apetito Ltd
http://statistics.data.gov.uk/doc/local-authority/00DA,Leeds City Council,Central & Corporate Functions,Commercial Services Trading Services,Supplies and Services,Food & Drink,231,20-Apr-2012,1204-00362,1092.18,R,Apetito Ltd
http://statistics.data.gov.uk/doc/local-authority/00DA,Leeds City Council,Central & Corporate Functions,Commercial Services Trading Services,Supplies and Services,Food & Drink,231,03-Apr-2012,1204-00363,1508.29,R,Apetito Ltd
http://statistics.data.gov.uk/doc/local-authority/00DA,Leeds City Council,Central & Corporate Functions,Commercial Services Trading Services,Supplies and Services,Food & Drink,231,11-Apr-2012,1204-00364,1608.57,R,Apetito Ltd
http://statistics.data.gov.uk/doc/local-authority/00DA,Leeds City Council,Central & Corporate Functions,Commercial Services Trading Services,Supplies and Services,Food & Drink,231,03-Apr-2012,1204-00365,1648.90,R,Apetito Ltd
http://statistics.data.gov.uk/doc/local-authority/00DA,Leeds City Council,Central & Corporate Functions,Commercial Services Trading Services,Supplies and Services,Food & Drink,231,20-Apr-2012,1204-00366,1826.14,R,Apetito Ltd
http://statistics.data.gov.uk/doc/local-authority/00DA,Leeds City Council,Central & Corporate Functions,Commercial Services Trading Services,Supplies and Services,Food & Drink,231,26-Apr-2012,1204-00367,1975.66,R,Apetito Ltd
http://statistics.data.gov.uk/doc/local-authority/00DA,Leeds City Council,Central & Corporate Functions,Commercial Services Trading Services,Supplies and Services,Food & Drink,231,20-Apr-2012,1204-00368,2115.18,R,Apetito Ltd
http://statistics.data.gov.uk/doc/local-authority/00DA,Leeds City Council,Central & Corporate Functions,Commercial Services Trading Services,Supplies and Services,Food & Drink,231,25-Apr-2012,1204-00369,2272.05,R,Apetito Ltd
http://statistics.data.gov.uk/doc/local-authority/00DA,Leeds City Council,Central & Corporate Functions,Commercial Services Trading Services,Supplies and Services,Food & Drink,231,03-Apr-2012,1204-00370,2634.80,R,Apetito Ltd
http://statistics.data.gov.uk/doc/local-authority/00DA,Leeds City Council,Central & Corporate Functions,Commercial Services Trading Services,Supplies and Services,Food & Drink,231,20-Apr-2012,1204-00371,2646.83,R,Apetito Ltd
http://statistics.data.gov.uk/doc/local-authority/00DA,Leeds City Council,Central & Corporate Functions,Commercial Services Trading Services,Transport,External  Hire- ( Fleet Management),313,03-Apr-2012,1204-00372,-10038.00,R,Apetito Ltd
http://statistics.data.gov.uk/doc/local-authority/00DA,Leeds City Council,Central & Corporate Functions,Commercial Services Trading Services,Transport,External  Hire- ( Fleet Management),313,03-Apr-2012,1204-00373,26073.00,R,Apetito Ltd
http://statistics.data.gov.uk/doc/local-authority/00DA,Leeds City Council,Childrens Services,Safeguarding Targeted & Specialist,Transport,Purchase Of Vehicles,331,16-Apr-2012,1204-00374,4495.00,R,Apple Commercials
http://statistics.data.gov.uk/doc/local-authority/00DA,Leeds City Council,City Development,Economic Development,Supplies and Services,Operational Materials,205,19-Apr-2012,1204-00375,595.00,R,Apple Display & Shopfitting Ltd
http://statistics.data.gov.uk/doc/local-authority/00DA,Leeds City Council as Accountable Body,Social Services Pooled Budgets,Jcs For People With Learning Disabilitie,Third Party Payments,Residential,580,11-Apr-2012,1204-00376,10647.76,R,Applewalk Homes
http://statistics.data.gov.uk/doc/local-authority/00DA,Leeds City Council,Central & Corporate Functions,Commercial Services Trading Services,Supplies and Services,Computer Software & Equipment,214,13-Apr-2012,1204-00377,500.00,R,Appstation
http://statistics.data.gov.uk/doc/local-authority/00DA,Leeds City Council,Central & Corporate Functions,Information Technology,Supplies and Services,Computer Software & Equipment,214,23-Apr-2012,1204-00378,14933.06,R,Appstation
http://statistics.data.gov.uk/doc/local-authority/00DA,Leeds City Council,Central & Corporate Functions,Information Technology,Supplies and Services,Computer Software & Equipment,214,23-Apr-2012,1204-00379,68723.62,R,Appstation
http://statistics.data.gov.uk/doc/local-authority/00DA,Leeds City Council,Environment & Neighbourhoods,South South East,Capital,Construction,3,10-Apr-2012,1204-00380,20309.27,C,Aqua Interiors T/A V & T Plumbing
http://statistics.data.gov.uk/doc/local-authority/00DA,Leeds City Council,Environment & Neighbourhoods,South South East,Capital,Construction,3,05-Apr-2012,1204-00381,27555.35,C,Aqua Interiors T/A V & T Plumbing
http://statistics.data.gov.uk/doc/local-authority/00DA,Leeds City Council,Environment & Neighbourhoods,South South East,Capital,Construction,3,02-Apr-2012,1204-00382,36099.01,C,Aqua Interiors T/A V & T Plumbing
http://statistics.data.gov.uk/doc/local-authority/00DA,Leeds City Council,Environment & Neighbourhoods,South South East,Capital,Construction,3,10-Apr-2012,1204-00383,62395.80,C,Aqua Interiors T/A V & T Plumbing
http://statistics.data.gov.uk/doc/local-authority/00DA,Leeds City Council as Accountable Body,Social Services Pooled Budgets,Leeds Community Equip Store Pooled Budgt,Supplies and Services,Other Equipment,203,17-Apr-2012,1204-00384,3780.00,R,Aqua Joy Bathlifts Ltd
http://statistics.data.gov.uk/doc/local-authority/00DA,Leeds City Council as Accountable Body,Social Services Pooled Budgets,Leeds Community Equip Store Pooled Budgt,Supplies and Services,Other Equipment,203,18-Apr-2012,1204-00385,6187.36,R,Aqua Joy Bathlifts Ltd
http://statistics.data.gov.uk/doc/local-authority/00DA,Leeds City Council as Accountable Body,Social Services Pooled Budgets,Jcs For People With Learning Disabilitie,Third Party Payments,Home Care,568,20-Apr-2012,1204-00386,455.59,R,Arabella Health Staffing Ltd
http://statistics.data.gov.uk/doc/local-authority/00DA,Leeds City Council as Accountable Body,Social Services Pooled Budgets,Jcs For People With Learning Disabilitie,Third Party Payments,Home Care,568,18-Apr-2012,1204-00387,589.49,R,Arabella Health Staffing Ltd
http://statistics.data.gov.uk/doc/local-authority/00DA,Leeds City Council as Accountable Body,Social Services Pooled Budgets,Jcs For People With Learning Disabilitie,Third Party Payments,Home Care,568,18-Apr-2012,1204-00388,631.54,R,Arabella Health Staffing Ltd
http://statistics.data.gov.uk/doc/local-authority/00DA,Leeds City Council as Accountable Body,Social Services Pooled Budgets,Jcs For People With Learning Disabilitie,Third Party Payments,Home Care,568,05-Apr-2012,1204-00389,678.09,R,Arabella Health Staffing Ltd
http://statistics.data.gov.uk/doc/local-authority/00DA,Leeds City Council as Accountable Body,Social Services Pooled Budgets,Jcs For People With Learning Disabilitie,Third Party Payments,Home Care,568,18-Apr-2012,1204-00390,756.34,R,Arabella Health Staffing Ltd
http://statistics.data.gov.uk/doc/local-authority/00DA,Leeds City Council as Accountable Body,Social Services Pooled Budgets,Jcs For People With Learning Disabilitie,Third Party Payments,Home Care,568,20-Apr-2012,1204-00391,842.29,R,Arabella Health Staffing Ltd
http://statistics.data.gov.uk/doc/local-authority/00DA,Leeds City Council as Accountable Body,Social Services Pooled Budgets,Jcs For People With Learning Disabilitie,Third Party Payments,Home Care,568,05-Apr-2012,1204-00392,842.29,R,Arabella Health Staffing Ltd
http://statistics.data.gov.uk/doc/local-authority/00DA,Leeds City Council as Accountable Body,Social Services Pooled Budgets,Jcs For People With Learning Disabilitie,Third Party Payments,Home Care,568,18-Apr-2012,1204-00393,915.13,R,Arabella Health Staffing Ltd
http://statistics.data.gov.uk/doc/local-authority/00DA,Leeds City Council as Accountable Body,Social Services Pooled Budgets,Jcs For People With Learning Disabilitie,Third Party Payments,Home Care,568,13-Apr-2012,1204-00394,986.20,R,Arabella Health Staffing Ltd
http://statistics.data.gov.uk/doc/local-authority/00DA,Leeds City Council as Accountable Body,Social Services Pooled Budgets,Jcs For People With Learning Disabilitie,Third Party Payments,Home Care,568,20-Apr-2012,1204-00395,1025.33,R,Arabella Health Staffing Ltd
http://statistics.data.gov.uk/doc/local-authority/00DA,Leeds City Council as Accountable Body,Social Services Pooled Budgets,Jcs For People With Learning Disabilitie,Third Party Payments,Home Care,568,20-Apr-2012,1204-00396,1096.14,R,Arabella Health Staffing Ltd
http://statistics.data.gov.uk/doc/local-authority/00DA,Leeds City Council as Accountable Body,Social Services Pooled Budgets,Jcs For People With Learning Disabilitie,Third Party Payments,Home Care,568,13-Apr-2012,1204-00397,1167.31,R,Arabella Health Staffing Ltd
http://statistics.data.gov.uk/doc/local-authority/00DA,Leeds City Council as Accountable Body,Social Services Pooled Budgets,Jcs For People With Learning Disabilitie,Third Party Payments,Home Care,568,13-Apr-2012,1204-00398,2201.31,R,Arabella Health Staffing Ltd
http://statistics.data.gov.uk/doc/local-authority/00DA,Leeds City Council as Accountable Body,Social Services Pooled Budgets,Jcs For People With Learning Disabilitie,Third Party Payments,Home Care,568,02-Apr-2012,1204-00399,2432.32,R,Arabella Health Staffing Ltd
http://statistics.data.gov.uk/doc/local-authority/00DA,Leeds City Council,Adult Social Care,Services For Older People Under 65 P/Dis,Transfer Payments,Personalised Budgets,627,11-Apr-2012,1204-00400,490.16,R,REDACTED PERSONAL DATA
http://statistics.data.gov.uk/doc/local-authority/00DA,Leeds City Council,Central & Corporate Functions,Commercial Services Trading Services,Supplies and Services,Other Hired And Contracted Services,265,27-Apr-2012,1204-00401,952.57,R,Archbold Carshop Ltd
http://statistics.data.gov.uk/doc/local-authority/00DA,Leeds City Council,Central & Corporate Functions,Commercial Services Trading Services,Supplies and Services,Other Hired And Contracted Services,265,13-Apr-2012,1204-00402,1042.17,R,Archbold Carshop Ltd
http://statistics.data.gov.uk/doc/local-authority/00DA,Leeds City Council,Central & Corporate Functions,Commercial Services Trading Services,Supplies and Services,Other Hired And Contracted Services,265,05-Apr-2012,1204-00403,1491.82,R,Archbold Carshop Ltd
http://statistics.data.gov.uk/doc/local-authority/00DA,East - North East                    ,East - North East,Business Improvement,Premises,Other,114,02-Apr-2012,1204-00404,1550.00,R,Archway
http://statistics.data.gov.uk/doc/local-authority/00DA,East - North East                    ,East - North East,Construction Services,Supplies and Services,Other Materials,205,13-Apr-2012,1204-00405,432.50,R,Arco Ltd
http://statistics.data.gov.uk/doc/local-authority/00DA,East - North East                    ,East - North East,Construction Services,Supplies and Services,Other Materials,205,25-Apr-2012,1204-00406,503.40,R,Arco Ltd
http://statistics.data.gov.uk/doc/local-authority/00DA,Leeds City Council,Central & Corporate Functions,Commercial Services Trading Services,Supplies and Services,Operational Materials,205,17-Apr-2012,1204-00407,513.00,R,Arco Ltd
http://statistics.data.gov.uk/doc/local-authority/00DA,Leeds City Council,Central & Corporate Functions,Commercial Services Trading Services,Supplies and Services,Operational Materials,205,26-Apr-2012,1204-00408,582.50,R,Arco Ltd
http://statistics.data.gov.uk/doc/local-authority/00DA,Leeds City Council,Central & Corporate Functions,Commercial Services Trading Services,Supplies and Services,Operational Materials,205,17-Apr-2012,1204-00409,1169.64,R,Arco Ltd
http://statistics.data.gov.uk/doc/local-authority/00DA,Aire Valley Homes Leeds              ,Aire Valley Homes Leeds,Housing,Supplies and Services,Clothing & Uniforms,241,05-Apr-2012,1204-00410,1245.75,R,Arco Ltd
http://statistics.data.gov.uk/doc/local-authority/00DA,East - North East                    ,East - North East,Construction Services,Supplies and Services,Clothing & Uniforms,241,04-Apr-2012,1204-00411,541.12,R,Arco Ltd
http://statistics.data.gov.uk/doc/local-authority/00DA,Leeds City Council,Central & Corporate Functions,Commercial Services Trading Services,Supplies and Services,Clothing & Uniforms,241,02-Apr-2012,1204-00412,626.00,R,Arco Ltd
http://statistics.data.gov.uk/doc/local-authority/00DA,Leeds City Council,City Development,Asset Management Services,Supplies and Services,Clothing & Uniforms,241,20-Apr-2012,1204-00413,-773.41,R,Arco Ltd
http://statistics.data.gov.uk/doc/local-authority/00DA,Leeds City Council,City Development,Libraries  Arts & Heritage,Supplies and Services,Clothing & Uniforms,241,27-Apr-2012,1204-00414,795.37,R,Arco Ltd
http://statistics.data.gov.uk/doc/local-authority/00DA,Leeds City Council,City Development,Recreation,Supplies and Services,Clothing & Uniforms,241,20-Apr-2012,1204-00415,932.22,R,Arco Ltd
http://statistics.data.gov.uk/doc/local-authority/00DA,Leeds City Council,City Development,Recreation  ,Supplies and Services,Clothing & Uniforms,241,22-Mar-2012,1204-00416,742.46,R,Arco Ltd,
http://statistics.data.gov.uk/doc/local-authority/00DA,Leeds City Council,Environment & Neighbourhoods,Streetscene Environmental Services,Supplies and Services,Clothing & Uniforms,241,10-Apr-2012,1204-00417,478.80,R,Arco Ltd,
http://statistics.data.gov.uk/doc/local-authority/00DA,Leeds City Council,Environment & Neighbourhoods,Streetscene Environmental Services,Supplies and Services,Clothing & Uniforms,241,25-Apr-2012,1204-00418,661.20,R,Arco Ltd,
http://statistics.data.gov.uk/doc/local-authority/00DA,Leeds City Council,Environment & Neighbourhoods,Streetscene Environmental Services,Supplies and Services,Clothing & Uniforms,241,10-Apr-2012,1204-00419,3680.00,R,Arco Ltd,
http://statistics.data.gov.uk/doc/local-authority/00DA,Leeds City Council,Environment & Neighbourhoods,Streetscene Environmental Services,Supplies and Services,Clothing & Uniforms,241,26-Apr-2012,1204-00420,4560.00,R,Arco Ltd,
http://statistics.data.gov.uk/doc/local-authority/00DA,Aire Valley Homes Leeds              ,Aire Valley Homes Leeds,Property,Supplies and Services,Necessitous Clothing,242,11-Apr-2012,1204-00421,862.65,R,Arco Ltd,
http://statistics.data.gov.uk/doc/local-authority/00DA,Leeds City Council,Environment & Neighbourhoods,East North East,Capital,Construction,3,13-Apr-2012,1204-00422,13575.00,C,Arena Partnership Limited,
http://statistics.data.gov.uk/doc/local-authority/00DA,Aire Valley Homes Leeds              ,Aire Valley Homes Leeds,Aire Valley Homes Leeds,Supplies and Services,Information Technology (Computers),214,27-Apr-2012,1204-00423,600.00,R,Arena Partnership Limited,
http://statistics.data.gov.uk/doc/local-authority/00DA,Aire Valley Homes Leeds              ,Aire Valley Homes Leeds,Aire Valley Homes Leeds,Supplies and Services,Information Technology (Computers),214,04-Apr-2012,1204-00424,3825.00,R,Arena Partnership Limited,
http://statistics.data.gov.uk/doc/local-authority/00DA,Leeds City Council,Childrens Services,Learning Skills & Universal  ,Supplies and Services,Other Equipment,203,01-Mar-2012,1204-00425,662.26,R,Argos Bus Solution,
http://statistics.data.gov.uk/doc/local-authority/00DA,Leeds City Council,Childrens Services,Learning Skills & Universal  ,Supplies and Services,Other Equipment,203,22-Mar-2012,1204-00426,1354.19,R,Argos Bus Solution,
http://statistics.data.gov.uk/doc/local-authority/00DA,Leeds City Council,Adult Social Care,Services For Adults Under 65 Mental/Dis,Supplies and Services,Operational Furniture And Equipment,203,04-Apr-2012,1204-00427,508.32,R,Argos Business Solutions Ltd,
http://statistics.data.gov.uk/doc/local-authority/00DA,Leeds City Council,Childrens Services,Learning Skills & Universal,Supplies and Services,Operational Furniture And Equipment,203,13-Apr-2012,1204-00428,501.75,R,Argos Business Solutions Ltd,
http://statistics.data.gov.uk/doc/local-authority/00DA,Leeds City Council,Childrens Services,Learning Skills & Universal,Supplies and Services,Operational Furniture And Equipment,203,04-Apr-2012,1204-00429,599.94,R,Argos Business Solutions Ltd,
http://statistics.data.gov.uk/doc/local-authority/00DA,Leeds City Council,Childrens Services,Safeguarding Targeted & Specialist,Supplies and Services,Operational Furniture And Equipment,203,11-Apr-2012,1204-00430,1557.42,R,Argos Business Solutions Ltd,
http://statistics.data.gov.uk/doc/local-authority/00DA,Leeds City Council,Childrens Services,Safeguarding Targeted & Specialist,Supplies and Services,Operational Furniture And Equipment,203,03-Apr-2012,1204-00431,1874.91,R,Argos Business Solutions Ltd,
http://statistics.data.gov.uk/doc/local-authority/00DA,Leeds City Council,Childrens Services,Safeguarding Targeted & Specialist,Supplies and Services,Operational Furniture And Equipment,203,05-Apr-2012,1204-00432,2278.18,R,Argos Business Solutions Ltd
http://statistics.data.gov.uk/doc/local-authority/00DA,West - North West                  ,West - North West,Property And Maintenance,Supplies and Services,Project Management Group,260,17-Apr-2012,1204-00433,11404.00,R,Ariba
http://statistics.data.gov.uk/doc/local-authority/00DA,Leeds City Council as Accountable Body,Social Services Pooled Budgets,Leeds Community Equip Store Pooled Budgt,Supplies and Services,Other Equipment,203,16-Apr-2012,1204-00434,880.00,R,Arjo Limited
http://statistics.data.gov.uk/doc/local-authority/00DA,Leeds City Council,Adult Social Care,Services For Older People - 65 And Over,Third Party Payments,Home Care,568,19-Apr-2012,1204-00435,882.15,R,Ark Home Healthcare Ltd
http://statistics.data.gov.uk/doc/local-authority/00DA,Leeds City Council,Adult Social Care,Services For Older People - 65 And Over,Third Party Payments,Home Care,568,18-Apr-2012,1204-00436,3112.93,R,Ark Home Healthcare Ltd
http://statistics.data.gov.uk/doc/local-authority/00DA,Leeds City Council,Adult Social Care,Services For Older People - 65 And Over,Third Party Payments,Home Care,568,05-Apr-2012,1204-00437,4177.70,R,Ark Home Healthcare Ltd
http://statistics.data.gov.uk/doc/local-authority/00DA,Leeds City Council,Adult Social Care,Services For Older People - 65 And Over,Third Party Payments,Home Care,568,05-Apr-2012,1204-00438,5101.99,R,Ark Home Healthcare Ltd
http://statistics.data.gov.uk/doc/local-authority/00DA,Leeds City Council,Adult Social Care,Services For Older People - 65 And Over,Third Party Payments,Home Care,568,05-Apr-2012,1204-00439,5918.19,R,Ark Home Healthcare Ltd
http://statistics.data.gov.uk/doc/local-authority/00DA,Leeds City Council,Adult Social Care,Services For Older People - 65 And Over,Third Party Payments,Home Care,568,05-Apr-2012,1204-00440,7108.42,R,Ark Home Healthcare Ltd
http://statistics.data.gov.uk/doc/local-authority/00DA,Leeds City Council,Adult Social Care,Services For Older People - 65 And Over,Third Party Payments,Home Care,568,05-Apr-2012,1204-00441,9096.73,R,Ark Home Healthcare Ltd
http://statistics.data.gov.uk/doc/local-authority/00DA,Leeds City Council,Adult Social Care,Services For Older People - 65 And Over,Third Party Payments,Home Care,568,05-Apr-2012,1204-00442,9999.29,R,Ark Home Healthcare Ltd
http://statistics.data.gov.uk/doc/local-authority/00DA,Leeds City Council,Adult Social Care,Services For Older People - 65 And Over,Third Party Payments,Home Care,568,05-Apr-2012,1204-00443,16285.54,R,Ark Home Healthcare Ltd
http://statistics.data.gov.uk/doc/local-authority/00DA,Leeds City Council,Adult Social Care,Services For Older People - 65 And Over,Third Party Payments,Home Care,568,05-Apr-2012,1204-00444,22968.69,R,Ark Home Healthcare Ltd
http://statistics.data.gov.uk/doc/local-authority/00DA,Leeds City Council,Adult Social Care,Services For Older People Under 65 P/Dis,Third Party Payments,Home Care,568,05-Apr-2012,1204-00445,831.41,R,Ark Home Healthcare Ltd
http://statistics.data.gov.uk/doc/local-authority/00DA,Leeds City Council,Adult Social Care,Services For Older People Under 65 P/Dis,Third Party Payments,Home Care,568,18-Apr-2012,1204-00446,973.20,R,Ark Home Healthcare Ltd
http://statistics.data.gov.uk/doc/local-authority/00DA,Leeds City Council,Adult Social Care,Services For Older People Under 65 P/Dis,Third Party Payments,Home Care,568,05-Apr-2012,1204-00447,2503.88,R,Ark Home Healthcare Ltd
http://statistics.data.gov.uk/doc/local-authority/00DA,Leeds City Council as Accountable Body,Social Services Pooled Budgets,Jcs For People With Learning Disabilitie,Third Party Payments,Home Care,568,05-Apr-2012,1204-00448,1326.24,R,Ark Home Healthcare Ltd
http://statistics.data.gov.uk/doc/local-authority/00DA,Leeds City Council as Accountable Body,Social Services Pooled Budgets,Jcs For People With Learning Disabilitie,Third Party Payments,Home Care,568,05-Apr-2012,1204-00449,1353.01,R,Ark Home Healthcare Ltd
http://statistics.data.gov.uk/doc/local-authority/00DA,Leeds City Council,Adult Social Care,Services For Older People Under 65 P/Dis,Transfer Payments,Direct Payments,626,11-Apr-2012,1204-00450,1064.82,R,REDACTED PERSONAL DATA
http://statistics.data.gov.uk/doc/local-authority/00DA,Leeds City Council,Central & Corporate Functions,Executive Support,Supplies and Services,Well Being Small Grants Projects,228,13-Apr-2012,1204-00451,500.00,R,Armley Common Right Trust
http://statistics.data.gov.uk/doc/local-authority/00DA,Leeds City Council,Adult Social Care,Services For Older People - 65 And Over,Third Party Payments,Payments To Voluntary Organisations,561,02-Apr-2012,1204-00452,22646.00,R,Armley Helping Hands
http://statistics.data.gov.uk/doc/local-authority/00DA,Leeds City Council,Adult Social Care,Services For Older People - 65 And Over,Supplies and Services,Recurring & Major Grantss Projects,229,19-Apr-2012,1204-00453,2760.00,R,Armley Helping Hands Luncheon Club
http://statistics.data.gov.uk/doc/local-authority/00DA,Leeds City Council,Childrens Services,Learning Skills & Universal,Third Party Payments,Services Rendered By Voluntary Sector,505,27-Apr-2012,1204-00454,11190.00,R,Armley Juniors
http://statistics.data.gov.uk/doc/local-authority/00DA,Leeds City Council,Central & Corporate Functions,Commercial Services Trading Services,Supplies and Services,Other Hired And Contracted Services,265,23-Apr-2012,1204-00455,640.00,R,Armstrong Priestley Ltd
http://statistics.data.gov.uk/doc/local-authority/00DA,Leeds City Council,Central & Corporate Functions,Commercial Services Trading Services,Supplies and Services,Other Hired And Contracted Services,265,23-Apr-2012,1204-00456,640.00,R,Armstrong Priestley Ltd
http://statistics.data.gov.uk/doc/local-authority/00DA,East - North East                    ,East - North East,Construction Services,Supplies and Services,Other Materials,205,27-Apr-2012,1204-00457,719.19,R,Arnold Laver & Co Ltd
http://statistics.data.gov.uk/doc/local-authority/00DA,East - North East                    ,East - North East,Construction Services,Supplies and Services,Other Materials,205,13-Apr-2012,1204-00458,813.35,R,Arnold Laver & Co Ltd
http://statistics.data.gov.uk/doc/local-authority/00DA,East - North East                    ,East - North East,Construction Services,Supplies and Services,Other Materials,205,04-Apr-2012,1204-00459,1521.89,R,Arnold Laver & Co Ltd
http://statistics.data.gov.uk/doc/local-authority/00DA,East - North East                    ,East - North East,Technical Services,Supplies and Services,Other Hired And Contracted Services,265,27-Apr-2012,1204-00460,2200.00,R,Arr Spend Management Solutions
http://statistics.data.gov.uk/doc/local-authority/00DA,Leeds City Council,Adult Social Care,Services For Older People - 65 And Over,Third Party Payments,Nursing Home,570,05-Apr-2012,1204-00461,1347.20,R,Arrigadeen Nursing Home
http://statistics.data.gov.uk/doc/local-authority/00DA,Leeds City Council,City Development,Libraries  Arts & Heritage,Supplies and Services,Art Galleries Total Stores,003,20-Apr-2012,1204-00462,453.60,R,Art Angels Publishing Ltd
http://statistics.data.gov.uk/doc/local-authority/00DA,Leeds City Council,Strategic Accounts,Strategic,Supplies and Services,Office Consumables,210,02-Apr-2012,1204-00463,2000.00,R,Arthington Parish Council
http://statistics.data.gov.uk/doc/local-authority/00DA,Leeds City Council,Central & Corporate Functions,Executive Support,Supplies and Services,Well Being Small Grants Projects,228,05-Apr-2012,1204-00464,485.00,R,Arthington Parish Council
http://statistics.data.gov.uk/doc/local-authority/00DA,Leeds City Council,Adult Social Care,Services For Older People - 65 And Over,Transfer Payments,Personalised Budgets,627,27-Apr-2012,1204-00465,1706.40,R,REDACTED PERSONAL DATA
http://statistics.data.gov.uk/doc/local-authority/00DA,Leeds City Council,Adult Social Care,Services For Adults Under 65 Learn/Dis,Supplies and Services,Non-Recurring Grants,227,23-Apr-2012,1204-00466,7845.06,R,Articulate Advocacy
http://statistics.data.gov.uk/doc/local-authority/00DA,Leeds City Council as Accountable Body,Social Services Pooled Budgets,Jcs For People With Learning Disabilitie,Third Party Payments,Other Agency Services,561,27-Apr-2012,1204-00467,2260.51,R,Articulate Advocacy
http://statistics.data.gov.uk/doc/local-authority/00DA,Leeds City Council,Environment & Neighbourhoods,Strategy & Commissioning,Supplies and Services,Non-Recurring Grants,227,24-Apr-2012,1204-00468,1314.48,R,Artlink West Yorkshire
http://statistics.data.gov.uk/doc/local-authority/00DA,Leeds City Council,City Development,Recreation,Supplies and Services,Resaleable Materials,204,04-Apr-2012,1204-00469,1660.92,R,Asa Awards Scheme
http://statistics.data.gov.uk/doc/local-authority/00DA,Leeds City Council,City Development,Recreation,Supplies and Services,Resaleable Materials,204,23-Apr-2012,1204-00470,2214.50,R,Asa Awards Scheme
http://statistics.data.gov.uk/doc/local-authority/00DA,Leeds City Council,City Development,Recreation,Employees,Training Costs,071,05-Apr-2012,1204-00471,630.00,R,Asa North East Region
http://statistics.data.gov.uk/doc/local-authority/00DA,Leeds City Council,Central & Corporate Functions,Commercial Services Trading Services,Supplies and Services,Other Hired And Contracted Services,265,19-Apr-2012,1204-00472,465.00,R,Asbestos Sample Analysis Limited
http://statistics.data.gov.uk/doc/local-authority/00DA,Leeds City Council,Central & Corporate Functions,Commercial Services Trading Services,Supplies and Services,Other Hired And Contracted Services,265,19-Apr-2012,1204-00473,555.00,R,Asbestos Sample Analysis Limited
http://statistics.data.gov.uk/doc/local-authority/00DA,Leeds City Council,Central & Corporate Functions,Commercial Services Trading Services,Supplies and Services,Other Hired And Contracted Services,265,19-Apr-2012,1204-00474,562.50,R,Asbestos Sample Analysis Limited
http://statistics.data.gov.uk/doc/local-authority/00DA,Leeds City Council,Central & Corporate Functions,Commercial Services Trading Services,Supplies and Services,Other Hired And Contracted Services,265,05-Apr-2012,1204-00475,802.50,R,Asbestos Sample Analysis Limited
http://statistics.data.gov.uk/doc/local-authority/00DA,Leeds City Council,Central & Corporate Functions,Commercial Services Trading Services,Supplies and Services,Other Hired And Contracted Services,265,19-Apr-2012,1204-00476,1222.50,R,Asbestos Sample Analysis Limited
http://statistics.data.gov.uk/doc/local-authority/00DA,Leeds City Council,Childrens Services,Learning Skills & Universal,Third Party Payments,Services Rendered By Other Organisations,511,16-Apr-2012,1204-00477,4262.40,R,Asha Neighbourhood Project
http://statistics.data.gov.uk/doc/local-authority/00DA,Leeds City Council,Adult Social Care,Services For Older People - 65 And Over,Third Party Payments,Residential,580,11-Apr-2012,1204-00478,8882.09,R,Ashcroft House Residential Home
http://statistics.data.gov.uk/doc/local-authority/00DA,Leeds City Council,Adult Social Care,Services For Older People - 65 And Over,Third Party Payments,Nursing Home,570,11-Apr-2012,1204-00479,971.06,R,Ashcroft Nursing Home
http://statistics.data.gov.uk/doc/local-authority/00DA,Leeds City Council,Adult Social Care,Services For Older People - 65 And Over,Third Party Payments,Nursing Home,570,11-Apr-2012,1204-00480,1209.96,R,Ashcroft Nursing Home
http://statistics.data.gov.uk/doc/local-authority/00DA,Leeds City Council,Adult Social Care,Services For Older People - 65 And Over,Third Party Payments,Residential Care Emi,571,11-Apr-2012,1204-00481,782.16,R,Ashcroft Nursing Home
http://statistics.data.gov.uk/doc/local-authority/00DA,Leeds City Council,Adult Social Care,Services For Older People - 65 And Over,Third Party Payments,Residential Care Emi,571,11-Apr-2012,1204-00482,660.48,R,Ashfield Court
http://statistics.data.gov.uk/doc/local-authority/00DA,Leeds City Council,Adult Social Care,Services For Older People - 65 And Over,Third Party Payments,Residential,580,11-Apr-2012,1204-00483,507.28,R,Ashfield Court
http://statistics.data.gov.uk/doc/local-authority/00DA,Leeds City Council,Adult Social Care,Services For Older People - 65 And Over,Third Party Payments,Nursing Home,570,11-Apr-2012,1204-00484,14333.48,R,Ashfield Nursing Home
http://statistics.data.gov.uk/doc/local-authority/00DA,Leeds City Council,Adult Social Care,Services For Adults Under 65 Mental/Dis,Third Party Payments,Residential,580,11-Apr-2012,1204-00485,2318.40,R,Ashfield Nursing Home
http://statistics.data.gov.uk/doc/local-authority/00DA,Leeds City Council,Adult Social Care,Services For Older People - 65 And Over,Third Party Payments,Residential,580,11-Apr-2012,1204-00486,-2824.35,R,Ashfield Nursing Home
http://statistics.data.gov.uk/doc/local-authority/00DA,Leeds City Council,Adult Social Care,Services For Older People - 65 And Over,Third Party Payments,Nursing Home,570,11-Apr-2012,1204-00487,1504.00,R,Ashley Care Ltd
http://statistics.data.gov.uk/doc/local-authority/00DA,Leeds City Council,Environment & Neighbourhoods,Statutory Housing,Supplies and Services,Other Hired And Contracted Services,265,11-Apr-2012,1204-00488,470.00,R,Ashley Lyne
http://statistics.data.gov.uk/doc/local-authority/00DA,Leeds City Council,City Development,Highways,Transport,Plant Hire - By Directorate,305,05-Apr-2012,1204-00489,609.00,R,Ashtead Plant Hire Company Ltd
http://statistics.data.gov.uk/doc/local-authority/00DA,Leeds City Council,City Development,Highways,Transport,Plant Hire - By Directorate,305,05-Apr-2012,1204-00490,609.00,R,Ashtead Plant Hire Company Ltd
http://statistics.data.gov.uk/doc/local-authority/00DA,Leeds City Council,City Development,Highways,Transport,Plant Hire - By Directorate,305,05-Apr-2012,1204-00491,609.00,R,Ashtead Plant Hire Company Ltd
http://statistics.data.gov.uk/doc/local-authority/00DA,Leeds City Council,City Development,Highways,Transport,Plant Hire - By Directorate,305,05-Apr-2012,1204-00492,609.00,R,Ashtead Plant Hire Company Ltd
http://statistics.data.gov.uk/doc/local-authority/00DA,Leeds City Council,City Development,Highways,Transport,Plant Hire - By Directorate,305,05-Apr-2012,1204-00493,609.00,R,Ashtead Plant Hire Company Ltd
http://statistics.data.gov.uk/doc/local-authority/00DA,Leeds City Council,City Development,Highways,Transport,Plant Hire - By Directorate,305,05-Apr-2012,1204-00494,609.00,R,Ashtead Plant Hire Company Ltd
http://statistics.data.gov.uk/doc/local-authority/00DA,Leeds City Council,City Development,Highways,Transport,Plant Hire - By Directorate,305,05-Apr-2012,1204-00495,609.00,R,Ashtead Plant Hire Company Ltd
http://statistics.data.gov.uk/doc/local-authority/00DA,Leeds City Council,City Development,Highways,Transport,Plant Hire - By Directorate,305,05-Apr-2012,1204-00496,609.00,R,Ashtead Plant Hire Company Ltd
http://statistics.data.gov.uk/doc/local-authority/00DA,Leeds City Council,City Development,Highways,Transport,Plant Hire - By Directorate,305,05-Apr-2012,1204-00497,609.00,R,Ashtead Plant Hire Company Ltd
http://statistics.data.gov.uk/doc/local-authority/00DA,Leeds City Council,City Development,Highways,Transport,Plant Hire - By Directorate,305,05-Apr-2012,1204-00498,609.00,R,Ashtead Plant Hire Company Ltd
http://statistics.data.gov.uk/doc/local-authority/00DA,Leeds City Council,City Development,Highways,Transport,Plant Hire - By Directorate,305,05-Apr-2012,1204-00499,609.00,R,Ashtead Plant Hire Company Ltd
http://statistics.data.gov.uk/doc/local-authority/00DA,Leeds City Council,City Development,Highways,Transport,Plant Hire - By Directorate,305,05-Apr-2012,1204-00500,609.00,R,Ashtead Plant Hire Company Ltd
http://statistics.data.gov.uk/doc/local-authority/00DA,Leeds City Council,City Development,Highways,Transport,Plant Hire - By Directorate,305,05-Apr-2012,1204-00501,609.00,R,Ashtead Plant Hire Company Ltd
http://statistics.data.gov.uk/doc/local-authority/00DA,Leeds City Council,City Development,Highways,Transport,Plant Hire - By Directorate,305,05-Apr-2012,1204-00502,609.00,R,Ashtead Plant Hire Company Ltd
http://statistics.data.gov.uk/doc/local-authority/00DA,Leeds City Council,City Development,Highways,Transport,Plant Hire - By Directorate,305,05-Apr-2012,1204-00503,609.00,R,Ashtead Plant Hire Company Ltd
http://statistics.data.gov.uk/doc/local-authority/00DA,Leeds City Council,City Development,Highways,Transport,Plant Hire - By Directorate,305,05-Apr-2012,1204-00504,609.00,R,Ashtead Plant Hire Company Ltd
http://statistics.data.gov.uk/doc/local-authority/00DA,Leeds City Council,City Development,Highways,Transport,Plant Hire - By Directorate,305,05-Apr-2012,1204-00505,609.00,R,Ashtead Plant Hire Company Ltd
http://statistics.data.gov.uk/doc/local-authority/00DA,Leeds City Council,City Development,Highways,Transport,Plant Hire - By Directorate,305,05-Apr-2012,1204-00506,630.00,R,Ashtead Plant Hire Company Ltd
http://statistics.data.gov.uk/doc/local-authority/00DA,Leeds City Council,City Development,Highways,Transport,Plant Hire - By Directorate,305,05-Apr-2012,1204-00507,840.00,R,Ashtead Plant Hire Company Ltd
http://statistics.data.gov.uk/doc/local-authority/00DA,Leeds City Council,City Development,Highways,Transport,Plant Hire - By Directorate,305,05-Apr-2012,1204-00508,840.00,R,Ashtead Plant Hire Company Ltd
http://statistics.data.gov.uk/doc/local-authority/00DA,Leeds City Council,City Development,Highways,Transport,Plant Hire - By Directorate,305,05-Apr-2012,1204-00509,861.00,R,Ashtead Plant Hire Company Ltd
http://statistics.data.gov.uk/doc/local-authority/00DA,Leeds City Council,City Development,Recreation,Transport,Hire Of Movable Plant & Machinery,315,05-Apr-2012,1204-00510,518.70,R,Ashtead Plant Hire Company Ltd
http://statistics.data.gov.uk/doc/local-authority/00DA,Leeds City Council,City Development,Recreation,Transport,Hire Of Movable Plant & Machinery,315,05-Apr-2012,1204-00511,1197.89,R,Ashtead Plant Hire Company Ltd
http://statistics.data.gov.uk/doc/local-authority/00DA,Leeds City Council,City Development,Highways,Transport,Repairs to  External Hire Vehicles,343,24-Apr-2012,1204-00512,2412.05,R,Ashtead Plant Hire Company Ltd
http://statistics.data.gov.uk/doc/local-authority/00DA,Leeds City Council,Adult Social Care,Services For Older People - 65 And Over,Third Party Payments,Residential Care Emi,571,11-Apr-2012,1204-00513,857.96,R,Ashville Care Home
http://statistics.data.gov.uk/doc/local-authority/00DA,Leeds City Council,Adult Social Care,Services For Older People - 65 And Over,Third Party Payments,Residential Care Emi,571,05-Apr-2012,1204-00514,1145.32,R,Ashworth Grange
http://statistics.data.gov.uk/doc/local-authority/00DA,Leeds City Council,Adult Social Care,Services For Older People - 65 And Over,Third Party Payments,Residential,580,05-Apr-2012,1204-00515,1147.00,R,Ashworth Grange
http://statistics.data.gov.uk/doc/local-authority/00DA,Leeds City Council,City Development,Libraries  Arts & Heritage,Supplies and Services,Books & Audio-Visual Materials,206,13-Apr-2012,1204-00516,450.64,R,Askews & Holts Library Services Ltd
http://statistics.data.gov.uk/doc/local-authority/00DA,Leeds City Council,City Development,Libraries  Arts & Heritage,Supplies and Services,Books & Audio-Visual Materials,206,24-Apr-2012,1204-00517,476.29,R,Askews & Holts Library Services Ltd
http://statistics.data.gov.uk/doc/local-authority/00DA,Leeds City Council,City Development,Libraries  Arts & Heritage,Supplies and Services,Books & Audio-Visual Materials,206,05-Apr-2012,1204-00518,531.83,R,Askews & Holts Library Services Ltd
http://statistics.data.gov.uk/doc/local-authority/00DA,Leeds City Council,City Development,Libraries  Arts & Heritage,Supplies and Services,Books & Audio-Visual Materials,206,17-Apr-2012,1204-00519,578.45,R,Askews & Holts Library Services Ltd
http://statistics.data.gov.uk/doc/local-authority/00DA,Leeds City Council,City Development,Libraries  Arts & Heritage,Supplies and Services,Books & Audio-Visual Materials,206,24-Apr-2012,1204-00520,601.85,R,Askews & Holts Library Services Ltd
http://statistics.data.gov.uk/doc/local-authority/00DA,Leeds City Council,City Development,Libraries  Arts & Heritage,Supplies and Services,Books & Audio-Visual Materials,206,03-Apr-2012,1204-00521,679.66,R,Askews & Holts Library Services Ltd
http://statistics.data.gov.uk/doc/local-authority/00DA,Leeds City Council,City Development,Libraries  Arts & Heritage,Supplies and Services,Books & Audio-Visual Materials,206,03-Apr-2012,1204-00522,1044.67,R,Askews & Holts Library Services Ltd
http://statistics.data.gov.uk/doc/local-authority/00DA,Leeds City Council,City Development,Libraries  Arts & Heritage,Supplies and Services,Books & Audio-Visual Materials,206,03-Apr-2012,1204-00523,1457.19,R,Askews & Holts Library Services Ltd
http://statistics.data.gov.uk/doc/local-authority/00DA,Leeds City Council,City Development,Libraries  Arts & Heritage,Supplies and Services,Books & Audio-Visual Materials,206,24-Apr-2012,1204-00524,2242.66,R,Askews & Holts Library Services Ltd
http://statistics.data.gov.uk/doc/local-authority/00DA,Leeds City Council,City Development,Libraries  Arts & Heritage,Supplies and Services,Books & Audio-Visual Materials,206,05-Apr-2012,1204-00525,3919.52,R,Askews & Holts Library Services Ltd
http://statistics.data.gov.uk/doc/local-authority/00DA,Leeds City Council,City Development,Libraries  Arts & Heritage,Supplies and Services,Books & Audio-Visual Materials,206,03-Apr-2012,1204-00526,4538.21,R,Askews & Holts Library Services Ltd
http://statistics.data.gov.uk/doc/local-authority/00DA,Leeds City Council,City Development,Libraries  Arts & Heritage,Supplies and Services,Books & Audio-Visual Materials,206,17-Apr-2012,1204-00527,4879.44,R,Askews & Holts Library Services Ltd
http://statistics.data.gov.uk/doc/local-authority/00DA,Leeds City Council,City Development,Libraries  Arts & Heritage,Supplies and Services,Books & Audio-Visual Materials,206,24-Apr-2012,1204-00528,5016.01,R,Askews & Holts Library Services Ltd
http://statistics.data.gov.uk/doc/local-authority/00DA,Leeds City Council,Central & Corporate Functions,Commercial Services Trading Services,Employees,NVQs,077,04-Apr-2012,1204-00529,870.00,R,Askham Bryan College
http://statistics.data.gov.uk/doc/local-authority/00DA,Leeds City Council,Childrens Services,Learning Skills & Universal,Premises,Maintenance Of Buildings,101,27-Apr-2012,1204-00530,420.00,R,Aspect Building Solutions
http://statistics.data.gov.uk/doc/local-authority/00DA,Leeds City Council,Childrens Services,Learning Skills & Universal,Premises,Maintenance Of Buildings,101,25-Apr-2012,1204-00531,685.47,R,Aspect Building Solutions
http://statistics.data.gov.uk/doc/local-authority/00DA,Leeds City Council,Childrens Services,Learning Skills & Universal,Premises,Maintenance Of Buildings,101,27-Apr-2012,1204-00532,1217.30,R,Aspect Building Solutions
http://statistics.data.gov.uk/doc/local-authority/00DA,Leeds City Council,Childrens Services,Learning Skills & Universal,Premises,Maintenance Of Buildings,101,13-Apr-2012,1204-00533,2625.00,R,Aspect Building Solutions
http://statistics.data.gov.uk/doc/local-authority/00DA,Leeds City Council,Childrens Services,Learning Skills & Universal,Supplies and Services,Schools related grant expenditure,299,13-Apr-2012,1204-00534,1360.00,R,Aspect Building Solutions
http://statistics.data.gov.uk/doc/local-authority/00DA,Leeds City Council,Childrens Services,Learning Skills & Universal,Supplies and Services,Schools related grant expenditure,299,27-Apr-2012,1204-00535,6424.56,R,Aspect Building Solutions
http://statistics.data.gov.uk/doc/local-authority/00DA,Leeds City Council,City Development,Highways,Transport,Plant Hire - By Directorate,305,18-Apr-2012,1204-00536,635.00,R,Asphalt Pavers
http://statistics.data.gov.uk/doc/local-authority/00DA,Leeds City Council,City Development,Highways,Transport,Plant Hire - By Directorate,305,18-Apr-2012,1204-00537,790.00,R,Asphalt Pavers
http://statistics.data.gov.uk/doc/local-authority/00DA,Leeds City Council,City Development,Highways,Transport,Plant Hire - By Directorate,305,04-Apr-2012,1204-00538,790.00,R,Asphalt Pavers
http://statistics.data.gov.uk/doc/local-authority/00DA,Leeds City Council,City Development,Highways,Transport,Plant Hire - By Directorate,305,05-Apr-2012,1204-00539,924.00,R,Asphalt Pavers
http://statistics.data.gov.uk/doc/local-authority/00DA,Leeds City Council,City Development,Highways,Transport,Plant Hire - By Directorate,305,18-Apr-2012,1204-00540,1021.00,R,Asphalt Pavers
http://statistics.data.gov.uk/doc/local-authority/00DA,Leeds City Council,City Development,Highways,Transport,Plant Hire - By Directorate,305,18-Apr-2012,1204-00541,1064.00,R,Asphalt Pavers
http://statistics.data.gov.uk/doc/local-authority/00DA,Leeds City Council,City Development,Highways,Transport,Plant Hire - By Directorate,305,30-Apr-2012,1204-00542,1395.00,R,Asphalt Pavers
http://statistics.data.gov.uk/doc/local-authority/00DA,Leeds City Council,City Development,Highways,Transport,Plant Hire - By Directorate,305,04-Apr-2012,1204-00543,2411.00,R,Asphalt Pavers
http://statistics.data.gov.uk/doc/local-authority/00DA,Leeds City Council,City Development,Highways,Transport,Plant Hire - By Directorate,305,27-Apr-2012,1204-00544,2908.50,R,Asphalt Pavers,
http://statistics.data.gov.uk/doc/local-authority/00DA,Leeds City Council,City Development,Highways,Transport,Plant Hire - By Directorate,305,04-Apr-2012,1204-00545,2921.00,R,Asphalt Pavers,
http://statistics.data.gov.uk/doc/local-authority/00DA,Leeds City Council,City Development,Highways,Transport,Plant Hire - By Directorate,305,18-Apr-2012,1204-00546,3152.00,R,Asphalt Pavers,
http://statistics.data.gov.uk/doc/local-authority/00DA,Leeds City Council,City Development,Highways,Transport,Plant Hire - By Directorate,305,27-Apr-2012,1204-00547,3845.00,R,Asphalt Pavers,
http://statistics.data.gov.uk/doc/local-authority/00DA,Leeds City Council,City Development,Recreation,Capital,Other Costs,7,19-Apr-2012,1204-00548,599.50,C,Aspli Safety Ltd,
http://statistics.data.gov.uk/doc/local-authority/00DA,Leeds City Council,Childrens Services,Learning Skills & Universal,Third Party Payments,Services Rendered By Other Organisations,511,16-Apr-2012,1204-00549,16102.40,R,Asquith Court Nursery,
http://statistics.data.gov.uk/doc/local-authority/00DA,Leeds City Council,Childrens Services,Learning Skills & Universal,Third Party Payments,Services Rendered By Other Organisations,511,16-Apr-2012,1204-00550,7494.72,R,Asquith Nurseries Ltd,
http://statistics.data.gov.uk/doc/local-authority/00DA,Leeds City Council,Central & Corporate Functions,Support And Facilities General Fund  ,Premises,Removal Of Refuse,126,30-Mar-2012,1204-00551,539.33,R,Associated Waste Manag,
http://statistics.data.gov.uk/doc/local-authority/00DA,Leeds City Council,Central & Corporate Functions,Support And Facilities General Fund  ,Premises,Removal Of Refuse,126,30-Mar-2012,1204-00552,619.01,R,Associated Waste Manag,
http://statistics.data.gov.uk/doc/local-authority/00DA,Leeds City Council,Central & Corporate Functions,Support And Facilities General Fund  ,Premises,Removal Of Refuse,126,02-Mar-2012,1204-00553,578.58,R,Associated Waste Manageme,
http://statistics.data.gov.uk/doc/local-authority/00DA,Leeds City Council,Central & Corporate Functions,Support And Facilities General Fund  ,Premises,Removal Of Refuse,126,02-Mar-2012,1204-00554,730.86,R,Associated Waste Manageme,
http://statistics.data.gov.uk/doc/local-authority/00DA,Leeds City Council,Central & Corporate Functions,Commercial Services Trading Services,Premises,Removal Of Workplace Waste,126,13-Apr-2012,1204-00555,472.00,R,Associated Waste Management Limited,
http://statistics.data.gov.uk/doc/local-authority/00DA,Leeds City Council,City Development,Recreation,Premises,Removal Of Workplace Waste,126,13-Apr-2012,1204-00556,426.00,R,Associated Waste Management Limited,
http://statistics.data.gov.uk/doc/local-authority/00DA,Leeds City Council,City Development,Recreation,Premises,Removal Of Workplace Waste,126,20-Apr-2012,1204-00557,691.00,R,Associated Waste Management Limited,
http://statistics.data.gov.uk/doc/local-authority/00DA,Leeds City Council,City Development,Recreation,Premises,Removal Of Workplace Waste,126,30-Apr-2012,1204-00558,747.48,R,Associated Waste Management Limited,
http://statistics.data.gov.uk/doc/local-authority/00DA,Leeds City Council,City Development,Recreation,Premises,Removal Of Workplace Waste,126,04-Apr-2012,1204-00559,838.00,R,Associated Waste Management Limited,
http://statistics.data.gov.uk/doc/local-authority/00DA,Leeds City Council,City Development,Recreation,Premises,Removal Of Workplace Waste,126,05-Apr-2012,1204-00560,876.99,R,Associated Waste Management Limited
http://statistics.data.gov.uk/doc/local-authority/00DA,Leeds City Council,City Development,Recreation,Premises,Removal Of Workplace Waste,126,20-Apr-2012,1204-00561,921.63,R,Associated Waste Management Limited
http://statistics.data.gov.uk/doc/local-authority/00DA,Leeds City Council,City Development,Support Services,Premises,Removal Of Workplace Waste,126,13-Apr-2012,1204-00562,5116.43,R,Associated Waste Management Limited
http://statistics.data.gov.uk/doc/local-authority/00DA,Leeds City Council,City Development,Highways,Supplies and Services,Recycling & Reuse Charges,234,26-Apr-2012,1204-00563,-11336.94,R,Associated Waste Management Limited
http://statistics.data.gov.uk/doc/local-authority/00DA,Leeds City Council,City Development,Highways,Supplies and Services,Recycling & Reuse Charges,234,05-Apr-2012,1204-00564,608.43,R,Associated Waste Management Limited
http://statistics.data.gov.uk/doc/local-authority/00DA,Leeds City Council,Environment & Neighbourhoods,Streetscene Environmental Services,Supplies and Services,Recycling & Reuse Charges,234,04-Apr-2012,1204-00565,8897.13,R,Associated Waste Management Limited
http://statistics.data.gov.uk/doc/local-authority/00DA,Leeds City Council,Environment & Neighbourhoods,Streetscene Environmental Services,Supplies and Services,Recycling & Reuse Charges,234,04-Apr-2012,1204-00566,9351.46,R,Associated Waste Management Limited
http://statistics.data.gov.uk/doc/local-authority/00DA,Leeds City Council,Environment & Neighbourhoods,Streetscene Environmental Services,Supplies and Services,Recycling & Reuse Charges,234,11-Apr-2012,1204-00567,9538.33,R,Associated Waste Management Limited
http://statistics.data.gov.uk/doc/local-authority/00DA,Leeds City Council,Environment & Neighbourhoods,Streetscene Environmental Services,Supplies and Services,Recycling & Reuse Charges,234,04-Apr-2012,1204-00568,9679.97,R,Associated Waste Management Limited
http://statistics.data.gov.uk/doc/local-authority/00DA,Leeds City Council,Environment & Neighbourhoods,Streetscene Environmental Services,Supplies and Services,Recycling & Reuse Charges,234,26-Apr-2012,1204-00569,9728.28,R,Associated Waste Management Limited
http://statistics.data.gov.uk/doc/local-authority/00DA,Leeds City Council,Environment & Neighbourhoods,Streetscene Environmental Services,Supplies and Services,Recycling & Reuse Charges,234,20-Apr-2012,1204-00570,10106.63,R,Associated Waste Management Limited
http://statistics.data.gov.uk/doc/local-authority/00DA,Leeds City Council,Environment & Neighbourhoods,Streetscene Environmental Services,Supplies and Services,Recycling & Reuse Charges,234,10-Apr-2012,1204-00571,10860.01,R,Associated Waste Management Limited
http://statistics.data.gov.uk/doc/local-authority/00DA,Leeds City Council,Environment & Neighbourhoods,Streetscene Environmental Services,Supplies and Services,Waste Disposal Charges,236,04-Apr-2012,1204-00572,16523.24,R,Associated Waste Management Limited
http://statistics.data.gov.uk/doc/local-authority/00DA,Leeds City Council,Environment & Neighbourhoods,Streetscene Environmental Services,Supplies and Services,Waste Disposal Charges,236,04-Apr-2012,1204-00573,17367.02,R,Associated Waste Management Limited
http://statistics.data.gov.uk/doc/local-authority/00DA,Leeds City Council,Environment & Neighbourhoods,Streetscene Environmental Services,Supplies and Services,Waste Disposal Charges,236,11-Apr-2012,1204-00574,17714.03,R,Associated Waste Management Limited
http://statistics.data.gov.uk/doc/local-authority/00DA,Leeds City Council,Environment & Neighbourhoods,Streetscene Environmental Services,Supplies and Services,Waste Disposal Charges,236,10-Apr-2012,1204-00575,17964.82,R,Associated Waste Management Limited
http://statistics.data.gov.uk/doc/local-authority/00DA,Leeds City Council,Environment & Neighbourhoods,Streetscene Environmental Services,Supplies and Services,Waste Disposal Charges,236,04-Apr-2012,1204-00576,17977.13,R,Associated Waste Management Limited
http://statistics.data.gov.uk/doc/local-authority/00DA,Leeds City Council,Environment & Neighbourhoods,Streetscene Environmental Services,Supplies and Services,Waste Disposal Charges,236,26-Apr-2012,1204-00577,18066.79,R,Associated Waste Management Limited
http://statistics.data.gov.uk/doc/local-authority/00DA,Leeds City Council,Environment & Neighbourhoods,Streetscene Environmental Services,Supplies and Services,Waste Disposal Charges,236,20-Apr-2012,1204-00578,18769.50,R,Associated Waste Management Limited
http://statistics.data.gov.uk/doc/local-authority/00DA,Leeds City Council,Environment & Neighbourhoods,Streetscene Environmental Services,Supplies and Services,Waste Disposal Charges,237,04-Apr-2012,1204-00579,29496.37,R,Associated Waste Management Limited
http://statistics.data.gov.uk/doc/local-authority/00DA,Leeds City Council,Environment & Neighbourhoods,Streetscene Environmental Services,Supplies and Services,Waste Disposal Charges,237,10-Apr-2012,1204-00580,30883.22,R,Associated Waste Management Limited
http://statistics.data.gov.uk/doc/local-authority/00DA,Leeds City Council,Environment & Neighbourhoods,Streetscene Environmental Services,Supplies and Services,Waste Disposal Charges,237,04-Apr-2012,1204-00581,31002.61,R,Associated Waste Management Limited
http://statistics.data.gov.uk/doc/local-authority/00DA,Leeds City Council,Environment & Neighbourhoods,Streetscene Environmental Services,Supplies and Services,Waste Disposal Charges,237,11-Apr-2012,1204-00582,31622.14,R,Associated Waste Management Limited
http://statistics.data.gov.uk/doc/local-authority/00DA,Leeds City Council,Environment & Neighbourhoods,Streetscene Environmental Services,Supplies and Services,Waste Disposal Charges,237,04-Apr-2012,1204-00583,32091.70,R,Associated Waste Management Limited
http://statistics.data.gov.uk/doc/local-authority/00DA,Leeds City Council,Environment & Neighbourhoods,Streetscene Environmental Services,Supplies and Services,Waste Disposal Charges,237,26-Apr-2012,1204-00584,32251.86,R,Associated Waste Management Limited
http://statistics.data.gov.uk/doc/local-authority/00DA,Leeds City Council,Environment & Neighbourhoods,Streetscene Environmental Services,Supplies and Services,Waste Disposal Charges,237,20-Apr-2012,1204-00585,33506.20,R,Associated Waste Management Limited
http://statistics.data.gov.uk/doc/local-authority/00DA,Leeds City Council,Central & Corporate Functions,Commercial Services Trading Services,Supplies and Services,Other Hired And Contracted Services,265,05-Apr-2012,1204-00586,743.00,R,Associated Waste Management Limited
http://statistics.data.gov.uk/doc/local-authority/00DA,Leeds City Council,Adult Social Care,Social Services Support Services,Third Party Payments,Payments To Voluntary Organisations,561,02-Apr-2012,1204-00587,6279.00,R,Association Of Blind Asians
http://statistics.data.gov.uk/doc/local-authority/00DA,Leeds City Council,Central & Corporate Functions,Leeds Shared Services,Support Services,Personnel Services Not Functionlly Analy,829,20-Apr-2012,1204-00588,630.00,R,Association Of Educational Psychology
http://statistics.data.gov.uk/doc/local-authority/00DA,Leeds City Council,Adult Social Care,Assessment And Care Management,Support Services,Legal Disbursements,411,05-Apr-2012,1204-00589,1764.00,R,Aswini Weereratne
http://statistics.data.gov.uk/doc/local-authority/00DA,Leeds City Council,Adult Social Care,Services For Older People - 65 And Over,Third Party Payments,Nursing Home,570,11-Apr-2012,1204-00590,19060.12,R,Atkinson Court
http://statistics.data.gov.uk/doc/local-authority/00DA,Leeds City Council,Adult Social Care,Services For Older People - 65 And Over,Third Party Payments,Nursing Care Emi,574,11-Apr-2012,1204-00591,5413.10,R,Atkinson Court
http://statistics.data.gov.uk/doc/local-authority/00DA,Leeds City Council,Childrens Services,Partnership Development & Leadership,Supplies and Services,Other Hired And Contracted Services,265,30-Apr-2012,1204-00592,4000.00,R,Atkinson Rose Llp
http://statistics.data.gov.uk/doc/local-authority/00DA,Leeds City Council,Environment & Neighbourhoods,Environmental Health,Capital,Construction,3,20-Apr-2012,1204-00593,1065.18,C,Atkinsons Fencing Limited
http://statistics.data.gov.uk/doc/local-authority/00DA,Leeds City Council,Central & Corporate Functions,Commercial Services Trading Services,Supplies and Services,Other Hired And Contracted Services,265,23-Apr-2012,1204-00594,459.00,R,Atlas Lift Hydraulics
http://statistics.data.gov.uk/doc/local-authority/00DA,Leeds City Council,Central & Corporate Functions,Commercial Services Trading Services,Supplies and Services,Other Hired And Contracted Services,265,23-Apr-2012,1204-00595,488.70,R,Atlas Lift Hydraulics
http://statistics.data.gov.uk/doc/local-authority/00DA,Leeds City Council,Central & Corporate Functions,Commercial Services Trading Services,Supplies and Services,Other Hired And Contracted Services,265,23-Apr-2012,1204-00596,730.80,R,Atlas Lift Hydraulics
http://statistics.data.gov.uk/doc/local-authority/00DA,Leeds City Council,Adult Social Care,Services For Older People - 65 And Over,Third Party Payments,Nursing Home,570,11-Apr-2012,1204-00597,1584.00,R,Attlee Court
http://statistics.data.gov.uk/doc/local-authority/00DA,Leeds City Council,Adult Social Care,Services For Older People - 65 And Over,Third Party Payments,Nursing Care Emi,574,11-Apr-2012,1204-00598,1143.36,R,Attlee Court
http://statistics.data.gov.uk/doc/local-authority/00DA,Leeds City Council,City Development,Libraries  Arts & Heritage,Supplies and Services,Books & Audio-Visual Materials,206,17-Apr-2012,1204-00599,-797.25,R,Audiogo Ltd
http://statistics.data.gov.uk/doc/local-authority/00DA,Leeds City Council,City Development,Libraries  Arts & Heritage,Supplies and Services,Books & Audio-Visual Materials,206,17-Apr-2012,1204-00600,-723.25,R,Audiogo Ltd
http://statistics.data.gov.uk/doc/local-authority/00DA,Leeds City Council,City Development,Libraries  Arts & Heritage,Supplies and Services,Books & Audio-Visual Materials,206,17-Apr-2012,1204-00601,-691.25,R,Audiogo Ltd
http://statistics.data.gov.uk/doc/local-authority/00DA,Leeds City Council,City Development,Libraries  Arts & Heritage,Supplies and Services,Books & Audio-Visual Materials,206,17-Apr-2012,1204-00602,-690.25,R,Audiogo Ltd
http://statistics.data.gov.uk/doc/local-authority/00DA,Leeds City Council,City Development,Libraries  Arts & Heritage,Supplies and Services,Books & Audio-Visual Materials,206,17-Apr-2012,1204-00603,-681.00,R,Audiogo Ltd
http://statistics.data.gov.uk/doc/local-authority/00DA,Leeds City Council,City Development,Libraries  Arts & Heritage,Supplies and Services,Books & Audio-Visual Materials,206,17-Apr-2012,1204-00604,-669.20,R,Audiogo Ltd
http://statistics.data.gov.uk/doc/local-authority/00DA,Leeds City Council,City Development,Libraries  Arts & Heritage,Supplies and Services,Books & Audio-Visual Materials,206,17-Apr-2012,1204-00605,-656.00,R,Audiogo Ltd
http://statistics.data.gov.uk/doc/local-authority/00DA,Leeds City Council,City Development,Libraries  Arts & Heritage,Supplies and Services,Books & Audio-Visual Materials,206,17-Apr-2012,1204-00606,-631.75,R,Audiogo Ltd
http://statistics.data.gov.uk/doc/local-authority/00DA,Leeds City Council,City Development,Libraries  Arts & Heritage,Supplies and Services,Books & Audio-Visual Materials,206,20-Apr-2012,1204-00607,552.96,R,Audiogo Ltd
http://statistics.data.gov.uk/doc/local-authority/00DA,Leeds City Council,City Development,Libraries  Arts & Heritage,Supplies and Services,Books & Audio-Visual Materials,206,17-Apr-2012,1204-00608,585.30,R,Audiogo Ltd
http://statistics.data.gov.uk/doc/local-authority/00DA,Leeds City Council,City Development,Libraries  Arts & Heritage,Supplies and Services,Books & Audio-Visual Materials,206,17-Apr-2012,1204-00609,586.16,R,Audiogo Ltd
http://statistics.data.gov.uk/doc/local-authority/00DA,Leeds City Council,City Development,Libraries  Arts & Heritage,Supplies and Services,Books & Audio-Visual Materials,206,17-Apr-2012,1204-00610,602.36,R,Audiogo Ltd
http://statistics.data.gov.uk/doc/local-authority/00DA,Leeds City Council,City Development,Libraries  Arts & Heritage,Supplies and Services,Books & Audio-Visual Materials,206,17-Apr-2012,1204-00611,608.66,R,Audiogo Ltd
http://statistics.data.gov.uk/doc/local-authority/00DA,Leeds City Council,City Development,Libraries  Arts & Heritage,Supplies and Services,Books & Audio-Visual Materials,206,17-Apr-2012,1204-00612,613.72,R,Audiogo Ltd
http://statistics.data.gov.uk/doc/local-authority/00DA,Leeds City Council,City Development,Libraries  Arts & Heritage,Supplies and Services,Books & Audio-Visual Materials,206,17-Apr-2012,1204-00613,621.82,R,Audiogo Ltd
http://statistics.data.gov.uk/doc/local-authority/00DA,Leeds City Council,City Development,Libraries  Arts & Heritage,Supplies and Services,Books & Audio-Visual Materials,206,17-Apr-2012,1204-00614,646.42,R,Audiogo Ltd
http://statistics.data.gov.uk/doc/local-authority/00DA,Leeds City Council,City Development,Libraries  Arts & Heritage,Supplies and Services,Books & Audio-Visual Materials,206,17-Apr-2012,1204-00615,680.18,R,Audiogo Ltd
http://statistics.data.gov.uk/doc/local-authority/00DA,Leeds City Council,City Development,Libraries  Arts & Heritage,Supplies and Services,Books & Audio-Visual Materials,206,17-Apr-2012,1204-00616,713.02,R,Audiogo Ltd
http://statistics.data.gov.uk/doc/local-authority/00DA,Leeds City Council,City Development,Libraries  Arts & Heritage,Supplies and Services,Books & Audio-Visual Materials,206,17-Apr-2012,1204-00617,752.25,R,Audiogo Ltd
http://statistics.data.gov.uk/doc/local-authority/00DA,Leeds City Council,Adult Social Care,Services For Older People - 65 And Over,Transfer Payments,Personalised Budgets,627,11-Apr-2012,1204-00618,1338.44,R,REDACTED PERSONAL DATA
http://statistics.data.gov.uk/doc/local-authority/00DA,Leeds City Council,Adult Social Care,Services For Older People Under 65 P/Dis,Transfer Payments,Personalised Budgets,627,11-Apr-2012,1204-00619,602.72,R,REDACTED PERSONAL DATA
http://statistics.data.gov.uk/doc/local-authority/00DA,Leeds City Council,City Development,Recreation,Capital,Other Costs,7,27-Apr-2012,1204-00620,4720.00,C,Austin Signs
http://statistics.data.gov.uk/doc/local-authority/00DA,Leeds City Council as Accountable Body,Social Services Pooled Budgets,Jcs For People With Learning Disabilitie,Third Party Payments,Residential,580,11-Apr-2012,1204-00621,8217.00,R,Autism Care (Uk) Ltd
http://statistics.data.gov.uk/doc/local-authority/00DA,Leeds City Council,Childrens Services,Safeguarding Targeted & Specialist,Third Party Payments,Services Rendered By Other Organisations,511,18-Apr-2012,1204-00622,556.50,R,Autism Partnership Uk Ltd
http://statistics.data.gov.uk/doc/local-authority/00DA,Leeds City Council,Childrens Services,Safeguarding Targeted & Specialist,Third Party Payments,Services Rendered By Other Organisations,511,18-Apr-2012,1204-00623,848.00,R,Autism Partnership Uk Ltd
http://statistics.data.gov.uk/doc/local-authority/00DA,Leeds City Council,Childrens Services,Safeguarding Targeted & Specialist,Third Party Payments,Services Rendered By Other Organisations,511,18-Apr-2012,1204-00624,948.50,R,Autism Partnership Uk Ltd
http://statistics.data.gov.uk/doc/local-authority/00DA,Leeds City Council,Childrens Services,Safeguarding Targeted & Specialist,Third Party Payments,Services Rendered By Other Organisations,511,18-Apr-2012,1204-00625,1965.01,R,Autism Partnership Uk Ltd
http://statistics.data.gov.uk/doc/local-authority/00DA,Leeds City Council,Childrens Services,Safeguarding Targeted & Specialist,Third Party Payments,Services Rendered By Other Organisations,511,18-Apr-2012,1204-00626,1970.04,R,Autism Partnership Uk Ltd
http://statistics.data.gov.uk/doc/local-authority/00DA,Leeds City Council,Childrens Services,Safeguarding Targeted & Specialist,Third Party Payments,Services Rendered By Other Organisations,511,18-Apr-2012,1204-00627,4192.96,R,Autism Partnership Uk Ltd
http://statistics.data.gov.uk/doc/local-authority/00DA,Leeds City Council,City Development,Recreation,Supplies and Services,Food & Drink,231,13-Apr-2012,1204-00628,423.75,R,Autobar Uk Ltd
http://statistics.data.gov.uk/doc/local-authority/00DA,Leeds City Council,City Development,Recreation,Supplies and Services,Food & Drink,231,24-Apr-2012,1204-00629,686.55,R,Autobar Uk Ltd
http://statistics.data.gov.uk/doc/local-authority/00DA,East - North East                    ,East - North East,Housing Services,Premises,Grounds Maintenance (Closed Landfill),134,04-Apr-2012,1204-00630,6133.33,R,Avalon
http://statistics.data.gov.uk/doc/local-authority/00DA,East - North East                    ,East - North East,Construction Services,Supplies and Services,Other Hired And Contracted Services,265,17-Apr-2012,1204-00631,722.00,R,Avalon
http://statistics.data.gov.uk/doc/local-authority/00DA,East - North East                    ,East - North East,Construction Services,Supplies and Services,Other Hired And Contracted Services,265,17-Apr-2012,1204-00632,7599.67,R,Avalon
http://statistics.data.gov.uk/doc/local-authority/00DA,Leeds City Council as Accountable Body,Social Services Pooled Budgets,Jcs For People With Learning Disabilitie,Third Party Payments,Home Care,568,17-Apr-2012,1204-00633,1332.20,R,Avalon
http://statistics.data.gov.uk/doc/local-authority/00DA,Leeds City Council,Central & Corporate Functions,Information Technology,Capital,Furniture And Equipment,5,26-Apr-2012,1204-00634,6625.00,C,Avco Systems Ltd
http://statistics.data.gov.uk/doc/local-authority/00DA,Leeds City Council as Accountable Body,Social Services Pooled Budgets,Jcs For People With Learning Disabilitie,Third Party Payments,Residential,580,25-Apr-2012,1204-00635,4642.20,R,Avens Ltd
http://statistics.data.gov.uk/doc/local-authority/00DA,East - North East                    ,East - North East,Construction Services,Supplies and Services,Other Materials,205,18-Apr-2012,1204-00636,670.00,R,Avocet Hardware (Uk) Ltd
http://statistics.data.gov.uk/doc/local-authority/00DA,East - North East                    ,East - North East,Construction Services,Supplies and Services,Other Materials,205,27-Apr-2012,1204-00637,804.00,R,Avocet Hardware (Uk) Ltd
http://statistics.data.gov.uk/doc/local-authority/00DA,East - North East                    ,East - North East,Construction Services,Supplies and Services,Other Materials,205,05-Apr-2012,1204-00638,837.50,R,Avocet Hardware (Uk) Ltd
http://statistics.data.gov.uk/doc/local-authority/00DA,East - North East                    ,East - North East,Construction Services,Supplies and Services,Other Materials,205,13-Apr-2012,1204-00639,837.50,R,Avocet Hardware (Uk) Ltd
http://statistics.data.gov.uk/doc/local-authority/00DA,East - North East                    ,East - North East,Construction Services,Supplies and Services,Other Materials,205,11-Apr-2012,1204-00640,1105.50,R,Avocet Hardware (Uk) Ltd
http://statistics.data.gov.uk/doc/local-authority/00DA,East - North East                    ,East - North East,Construction Services,Supplies and Services,Other Materials,205,05-Apr-2012,1204-00641,2680.00,R,Avocet Hardware (Uk) Ltd
http://statistics.data.gov.uk/doc/local-authority/00DA,Leeds City Council as Accountable Body,Social Services Pooled Budgets,Jcs For People With Learning Disabilitie,Third Party Payments,Residential,580,11-Apr-2012,1204-00642,4143.32,R,Avon Lodge
http://statistics.data.gov.uk/doc/local-authority/00DA,Leeds City Council,Adult Social Care,Services For Older People - 65 And Over,Third Party Payments,Nursing Care Emi,574,05-Apr-2012,1204-00643,4414.20,R,Avondale Care Home
http://statistics.data.gov.uk/doc/local-authority/00DA,Leeds City Council,Childrens Services,Learning Skills & Universal,Supplies and Services,Books & Audio-Visual Materials,206,05-Apr-2012,1204-00644,2396.67,R,Award Scheme Ltd
http://statistics.data.gov.uk/doc/local-authority/00DA,Leeds City Council,Adult Social Care,Services For Older People - 65 And Over,Transfer Payments,Direct Payments,626,11-Apr-2012,1204-00645,681.32,R,REDACTED PERSONAL DATA
http://statistics.data.gov.uk/doc/local-authority/00DA,Leeds City Council,Adult Social Care,Services For Older People Under 65 P/Dis,Transfer Payments,Direct Payments,626,11-Apr-2012,1204-00646,976.64,R,REDACTED PERSONAL DATA
http://statistics.data.gov.uk/doc/local-authority/00DA,Leeds City Council as Accountable Body,Social Services Pooled Budgets,Jcs For People With Learning Disabilitie,Transfer Payments,Personal Budgets,627,17-Apr-2012,1204-00647,1622.20,R,REDACTED PERSONAL DATA
http://statistics.data.gov.uk/doc/local-authority/00DA,Leeds City Council,Environment & Neighbourhoods,Environmental Health,Capital,Construction,3,10-Apr-2012,1204-00648,1500.00,C,B & K Passmore
http://statistics.data.gov.uk/doc/local-authority/00DA,Leeds City Council,Environment & Neighbourhoods,Environmental Health,Capital,Construction,3,10-Apr-2012,1204-00649,1500.00,C,B & K Passmore
http://statistics.data.gov.uk/doc/local-authority/00DA,Leeds City Council,Environment & Neighbourhoods,Environmental Health,Capital,Construction,3,20-Apr-2012,1204-00650,2890.00,C,B & K Passmore
http://statistics.data.gov.uk/doc/local-authority/00DA,Leeds City Council,Environment & Neighbourhoods,Environmental Health,Capital,Construction,3,20-Apr-2012,1204-00651,2890.00,C,B & K Passmore
http://statistics.data.gov.uk/doc/local-authority/00DA,Leeds City Council,Environment & Neighbourhoods,Environmental Health,Capital,Construction,3,10-Apr-2012,1204-00652,2890.00,C,B & K Passmore
http://statistics.data.gov.uk/doc/local-authority/00DA,Leeds City Council,Environment & Neighbourhoods,Environmental Health,Capital,Construction,3,11-Apr-2012,1204-00653,2890.00,C,B & K Passmore
http://statistics.data.gov.uk/doc/local-authority/00DA,Leeds City Council,Environment & Neighbourhoods,Environmental Health,Capital,Construction,3,20-Apr-2012,1204-00654,2890.00,C,B & K Passmore
http://statistics.data.gov.uk/doc/local-authority/00DA,Leeds City Council,Environment & Neighbourhoods,Environmental Health,Capital,Construction,3,18-Apr-2012,1204-00655,3665.70,C,B & K Passmore
http://statistics.data.gov.uk/doc/local-authority/00DA,Leeds City Council,Environment & Neighbourhoods,Environmental Health,Capital,Construction,3,18-Apr-2012,1204-00656,4150.00,C,B & K Passmore
http://statistics.data.gov.uk/doc/local-authority/00DA,Leeds City Council,Environment & Neighbourhoods,Environmental Health,Capital,Construction,3,18-Apr-2012,1204-00657,4150.00,C,B & K Passmore
http://statistics.data.gov.uk/doc/local-authority/00DA,Leeds City Council,Environment & Neighbourhoods,Environmental Health,Capital,Construction,3,10-Apr-2012,1204-00658,4150.00,C,B & K Passmore
http://statistics.data.gov.uk/doc/local-authority/00DA,Leeds City Council,Environment & Neighbourhoods,Environmental Health,Capital,Construction,3,10-Apr-2012,1204-00659,4150.00,C,B & K Passmore
http://statistics.data.gov.uk/doc/local-authority/00DA,Leeds City Council,Environment & Neighbourhoods,Environmental Health,Capital,Construction,3,10-Apr-2012,1204-00660,4150.00,C,B & K Passmore
http://statistics.data.gov.uk/doc/local-authority/00DA,Leeds City Council,Environment & Neighbourhoods,Environmental Health,Capital,Construction,3,20-Apr-2012,1204-00661,4150.00,C,B & K Passmore
http://statistics.data.gov.uk/doc/local-authority/00DA,Leeds City Council,Environment & Neighbourhoods,Environmental Health,Capital,Construction,3,20-Apr-2012,1204-00662,4150.00,C,B & K Passmore
http://statistics.data.gov.uk/doc/local-authority/00DA,Leeds City Council,Environment & Neighbourhoods,Environmental Health,Capital,Construction,3,20-Apr-2012,1204-00663,4150.00,C,B & K Passmore
http://statistics.data.gov.uk/doc/local-authority/00DA,Leeds City Council,Environment & Neighbourhoods,Environmental Health,Capital,Construction,3,27-Apr-2012,1204-00664,4150.00,C,B & K Passmore
http://statistics.data.gov.uk/doc/local-authority/00DA,Leeds City Council,Environment & Neighbourhoods,Environmental Health,Capital,Construction,3,10-Apr-2012,1204-00665,4150.00,C,B & K Passmore
http://statistics.data.gov.uk/doc/local-authority/00DA,Leeds City Council,Environment & Neighbourhoods,Environmental Health,Capital,Construction,3,20-Apr-2012,1204-00666,4150.00,C,B & K Passmore
http://statistics.data.gov.uk/doc/local-authority/00DA,Leeds City Council,Environment & Neighbourhoods,Environmental Health,Capital,Construction,3,10-Apr-2012,1204-00667,4150.00,C,B & K Passmore
http://statistics.data.gov.uk/doc/local-authority/00DA,Leeds City Council,Environment & Neighbourhoods,Environmental Health,Capital,Construction,3,10-Apr-2012,1204-00668,4150.00,C,B & K Passmore
http://statistics.data.gov.uk/doc/local-authority/00DA,Leeds City Council,Environment & Neighbourhoods,Environmental Health,Capital,Construction,3,20-Apr-2012,1204-00669,4150.00,C,B & K Passmore
http://statistics.data.gov.uk/doc/local-authority/00DA,Leeds City Council,Environment & Neighbourhoods,Environmental Health,Capital,Construction,3,18-Apr-2012,1204-00670,4150.00,C,B & K Passmore
http://statistics.data.gov.uk/doc/local-authority/00DA,Leeds City Council,Environment & Neighbourhoods,Environmental Health,Capital,Construction,3,20-Apr-2012,1204-00671,4150.00,C,B & K Passmore
http://statistics.data.gov.uk/doc/local-authority/00DA,Leeds City Council,Environment & Neighbourhoods,Environmental Health,Capital,Construction,3,20-Apr-2012,1204-00672,4150.00,C,B & K Passmore
http://statistics.data.gov.uk/doc/local-authority/00DA,Leeds City Council,Environment & Neighbourhoods,Environmental Health,Capital,Construction,3,10-Apr-2012,1204-00673,4200.00,C,B & K Passmore
http://statistics.data.gov.uk/doc/local-authority/00DA,Leeds City Council,Environment & Neighbourhoods,Environmental Health,Capital,Construction,3,10-Apr-2012,1204-00674,4420.00,C,B & K Passmore
http://statistics.data.gov.uk/doc/local-authority/00DA,Leeds City Council,Environment & Neighbourhoods,Environmental Health,Capital,Construction,3,10-Apr-2012,1204-00675,4720.00,C,B & K Passmore
http://statistics.data.gov.uk/doc/local-authority/00DA,Leeds City Council,Environment & Neighbourhoods,Environmental Health,Capital,Construction,3,23-Apr-2012,1204-00676,6588.20,C,B & K Passmore
http://statistics.data.gov.uk/doc/local-authority/00DA,Leeds City Council,Environment & Neighbourhoods,Environmental Health,Capital,Construction,3,23-Apr-2012,1204-00677,10333.67,C,B & K Passmore
http://statistics.data.gov.uk/doc/local-authority/00DA,Leeds City Council,Adult Social Care,Adult Social Care,Capital,Other Costs,7,20-Apr-2012,1204-00678,439.90,C,B & K Passmore
http://statistics.data.gov.uk/doc/local-authority/00DA,Leeds City Council,Adult Social Care,Other Generic Services,Third Party Payments,Fees To Carers,563,27-Apr-2012,1204-00679,612.00,R,REDACTED PERSONAL DATA
http://statistics.data.gov.uk/doc/local-authority/00DA,Leeds City Council,City Development,Libraries  Arts & Heritage,Supplies and Services,Other Hired And Contracted Services,265,12-Apr-2012,1204-00680,455.50,R,Bada Bling Limited
http://statistics.data.gov.uk/doc/local-authority/00DA,Aire Valley Homes Leeds              ,Aire Valley Homes Leeds,Aire Valley Homes Leeds,Employees,Temporary Staff-Basic,009,17-Apr-2012,1204-00681,643.13,R,Badenoch & Clark Ltd
http://statistics.data.gov.uk/doc/local-authority/00DA,Aire Valley Homes Leeds              ,Aire Valley Homes Leeds,Aire Valley Homes Leeds,Employees,Temporary Staff-Basic,009,05-Apr-2012,1204-00682,656.25,R,Badenoch & Clark Ltd
http://statistics.data.gov.uk/doc/local-authority/00DA,Aire Valley Homes Leeds              ,Aire Valley Homes Leeds,Aire Valley Homes Leeds,Employees,Temporary Staff-Basic,009,05-Apr-2012,1204-00683,691.25,R,Badenoch & Clark Ltd
http://statistics.data.gov.uk/doc/local-authority/00DA,Aire Valley Homes Leeds              ,Aire Valley Homes Leeds,Aire Valley Homes Leeds,Employees,Temporary Staff-Basic,009,27-Apr-2012,1204-00684,735.00,R,Badenoch & Clark Ltd
http://statistics.data.gov.uk/doc/local-authority/00DA,West - North West                  ,West - North West,Corporate Services,Employees,Temporary Staff-Basic,009,11-Apr-2012,1204-00685,968.36,R,Badenoch & Clark Ltd
http://statistics.data.gov.uk/doc/local-authority/00DA,West - North West                  ,West - North West,Corporate Services,Employees,Temporary Staff-Basic,009,11-Apr-2012,1204-00686,992.27,R,Badenoch & Clark Ltd
http://statistics.data.gov.uk/doc/local-authority/00DA,West - North West                  ,West - North West,Corporate Services,Employees,Temporary Staff-Basic,009,13-Apr-2012,1204-00687,2705.20,R,Badenoch & Clark Ltd
http://statistics.data.gov.uk/doc/local-authority/00DA,West - North West                  ,West - North West,Customer And Tenancy,Employees,Temporary Staff-Basic,009,20-Apr-2012,1204-00688,444.74,R,Badenoch & Clark Ltd
http://statistics.data.gov.uk/doc/local-authority/00DA,West - North West                  ,West - North West,Customer And Tenancy,Employees,Temporary Staff-Basic,009,20-Apr-2012,1204-00689,444.74,R,Badenoch & Clark Ltd
http://statistics.data.gov.uk/doc/local-authority/00DA,West - North West                  ,West - North West,Customer And Tenancy,Employees,Temporary Staff-Basic,009,27-Apr-2012,1204-00690,444.74,R,Badenoch & Clark Ltd
http://statistics.data.gov.uk/doc/local-authority/00DA,West - North West                  ,West - North West,Customer And Tenancy,Employees,Temporary Staff-Basic,009,05-Apr-2012,1204-00691,444.74,R,Badenoch & Clark Ltd
http://statistics.data.gov.uk/doc/local-authority/00DA,West - North West                  ,West - North West,Customer And Tenancy,Employees,Temporary Staff-Basic,009,05-Apr-2012,1204-00692,444.74,R,Badenoch & Clark Ltd
http://statistics.data.gov.uk/doc/local-authority/00DA,West - North West                  ,West - North West,Customer And Tenancy,Employees,Temporary Staff-Basic,009,13-Apr-2012,1204-00693,444.74,R,Badenoch & Clark Ltd
http://statistics.data.gov.uk/doc/local-authority/00DA,West - North West                  ,West - North West,Customer And Tenancy,Employees,Temporary Staff-Basic,009,20-Apr-2012,1204-00694,444.74,R,Badenoch & Clark Ltd
http://statistics.data.gov.uk/doc/local-authority/00DA,West - North West                  ,West - North West,Customer And Tenancy,Employees,Temporary Staff-Basic,009,16-Apr-2012,1204-00695,471.96,R,Badenoch & Clark Ltd
http://statistics.data.gov.uk/doc/local-authority/00DA,West - North West                  ,West - North West,Customer And Tenancy,Employees,Temporary Staff-Basic,009,20-Apr-2012,1204-00696,478.41,R,Badenoch & Clark Ltd
http://statistics.data.gov.uk/doc/local-authority/00DA,West - North West                  ,West - North West,Customer And Tenancy,Employees,Temporary Staff-Basic,009,27-Apr-2012,1204-00697,478.41,R,Badenoch & Clark Ltd
http://statistics.data.gov.uk/doc/local-authority/00DA,West - North West                  ,West - North West,Customer And Tenancy,Employees,Temporary Staff-Basic,009,05-Apr-2012,1204-00698,478.41,R,Badenoch & Clark Ltd
http://statistics.data.gov.uk/doc/local-authority/00DA,West - North West                  ,West - North West,Customer And Tenancy,Employees,Temporary Staff-Basic,009,20-Apr-2012,1204-00699,478.41,R,Badenoch & Clark Ltd
http://statistics.data.gov.uk/doc/local-authority/00DA,West - North West                  ,West - North West,Customer And Tenancy,Employees,Temporary Staff-Basic,009,20-Apr-2012,1204-00700,485.07,R,Badenoch & Clark Ltd
http://statistics.data.gov.uk/doc/local-authority/00DA,West - North West                  ,West - North West,Customer And Tenancy,Employees,Temporary Staff-Basic,009,27-Apr-2012,1204-00701,485.07,R,Badenoch & Clark Ltd
http://statistics.data.gov.uk/doc/local-authority/00DA,West - North West                  ,West - North West,Customer And Tenancy,Employees,Temporary Staff-Basic,009,20-Apr-2012,1204-00702,485.07,R,Badenoch & Clark Ltd
http://statistics.data.gov.uk/doc/local-authority/00DA,West - North West                  ,West - North West,Customer And Tenancy,Employees,Temporary Staff-Basic,009,16-Apr-2012,1204-00703,485.07,R,Badenoch & Clark Ltd
http://statistics.data.gov.uk/doc/local-authority/00DA,West - North West                  ,West - North West,Customer And Tenancy,Employees,Temporary Staff-Basic,009,05-Apr-2012,1204-00704,485.07,R,Badenoch & Clark Ltd
http://statistics.data.gov.uk/doc/local-authority/00DA,West - North West                  ,West - North West,Customer And Tenancy,Employees,Temporary Staff-Basic,009,20-Apr-2012,1204-00705,500.24,R,Badenoch & Clark Ltd
http://statistics.data.gov.uk/doc/local-authority/00DA,West - North West                  ,West - North West,Customer And Tenancy,Employees,Temporary Staff-Basic,009,27-Apr-2012,1204-00706,500.24,R,Badenoch & Clark Ltd
http://statistics.data.gov.uk/doc/local-authority/00DA,West - North West                  ,West - North West,Customer And Tenancy,Employees,Temporary Staff-Basic,009,05-Apr-2012,1204-00707,500.24,R,Badenoch & Clark Ltd
http://statistics.data.gov.uk/doc/local-authority/00DA,West - North West                  ,West - North West,Customer And Tenancy,Employees,Temporary Staff-Basic,009,13-Apr-2012,1204-00708,500.24,R,Badenoch & Clark Ltd
http://statistics.data.gov.uk/doc/local-authority/00DA,West - North West                  ,West - North West,Customer And Tenancy,Employees,Temporary Staff-Basic,009,13-Apr-2012,1204-00709,524.65,R,Badenoch & Clark Ltd
http://statistics.data.gov.uk/doc/local-authority/00DA,West - North West                  ,West - North West,Customer And Tenancy,Employees,Temporary Staff-Basic,009,20-Apr-2012,1204-00710,554.63,R,Badenoch & Clark Ltd
http://statistics.data.gov.uk/doc/local-authority/00DA,West - North West                  ,West - North West,Customer And Tenancy,Employees,Temporary Staff-Basic,009,13-Apr-2012,1204-00711,554.63,R,Badenoch & Clark Ltd
http://statistics.data.gov.uk/doc/local-authority/00DA,West - North West                  ,West - North West,Customer And Tenancy,Employees,Temporary Staff-Basic,009,27-Apr-2012,1204-00712,582.01,R,Badenoch & Clark Ltd
http://statistics.data.gov.uk/doc/local-authority/00DA,West - North West                  ,West - North West,Customer And Tenancy,Employees,Temporary Staff-Basic,009,05-Apr-2012,1204-00713,582.76,R,Badenoch & Clark Ltd
http://statistics.data.gov.uk/doc/local-authority/00DA,West - North West                  ,West - North West,Customer And Tenancy,Employees,Temporary Staff-Basic,009,05-Apr-2012,1204-00714,586.08,R,Badenoch & Clark Ltd
http://statistics.data.gov.uk/doc/local-authority/00DA,West - North West                  ,West - North West,Customer And Tenancy,Employees,Temporary Staff-Basic,009,20-Apr-2012,1204-00715,602.36,R,Badenoch & Clark Ltd
http://statistics.data.gov.uk/doc/local-authority/00DA,West - North West                  ,West - North West,Customer And Tenancy,Employees,Temporary Staff-Basic,009,20-Apr-2012,1204-00716,602.36,R,Badenoch & Clark Ltd
http://statistics.data.gov.uk/doc/local-authority/00DA,West - North West                  ,West - North West,Customer And Tenancy,Employees,Temporary Staff-Basic,009,20-Apr-2012,1204-00717,602.36,R,Badenoch & Clark Ltd
http://statistics.data.gov.uk/doc/local-authority/00DA,West - North West                  ,West - North West,Customer And Tenancy,Employees,Temporary Staff-Basic,009,27-Apr-2012,1204-00718,602.36,R,Badenoch & Clark Ltd
http://statistics.data.gov.uk/doc/local-authority/00DA,West - North West                  ,West - North West,Customer And Tenancy,Employees,Temporary Staff-Basic,009,13-Apr-2012,1204-00719,602.36,R,Badenoch & Clark Ltd
http://statistics.data.gov.uk/doc/local-authority/00DA,West - North West                  ,West - North West,Customer And Tenancy,Employees,Temporary Staff-Basic,009,13-Apr-2012,1204-00720,602.36,R,Badenoch & Clark Ltd
http://statistics.data.gov.uk/doc/local-authority/00DA,West - North West                  ,West - North West,Customer And Tenancy,Employees,Temporary Staff-Basic,009,05-Apr-2012,1204-00721,602.36,R,Badenoch & Clark Ltd
http://statistics.data.gov.uk/doc/local-authority/00DA,West - North West                  ,West - North West,Customer And Tenancy,Employees,Temporary Staff-Basic,009,27-Apr-2012,1204-00722,606.06,R,Badenoch & Clark Ltd
http://statistics.data.gov.uk/doc/local-authority/00DA,West - North West                  ,West - North West,Customer And Tenancy,Employees,Temporary Staff-Basic,009,20-Apr-2012,1204-00723,614.40,R,Badenoch & Clark Ltd
http://statistics.data.gov.uk/doc/local-authority/00DA,West - North West                  ,West - North West,Customer And Tenancy,Employees,Temporary Staff-Basic,009,13-Apr-2012,1204-00724,614.40,R,Badenoch & Clark Ltd
http://statistics.data.gov.uk/doc/local-authority/00DA,West - North West                  ,West - North West,Customer And Tenancy,Employees,Temporary Staff-Basic,009,13-Apr-2012,1204-00725,626.78,R,Badenoch & Clark Ltd
http://statistics.data.gov.uk/doc/local-authority/00DA,West - North West                  ,West - North West,Customer And Tenancy,Employees,Temporary Staff-Basic,009,20-Apr-2012,1204-00726,634.18,R,Badenoch & Clark Ltd
http://statistics.data.gov.uk/doc/local-authority/00DA,West - North West                  ,West - North West,Customer And Tenancy,Employees,Temporary Staff-Basic,009,16-Apr-2012,1204-00727,634.18,R,Badenoch & Clark Ltd
http://statistics.data.gov.uk/doc/local-authority/00DA,West - North West                  ,West - North West,Customer And Tenancy,Employees,Temporary Staff-Basic,009,16-Apr-2012,1204-00728,634.18,R,Badenoch & Clark Ltd
http://statistics.data.gov.uk/doc/local-authority/00DA,West - North West                  ,West - North West,Customer And Tenancy,Employees,Temporary Staff-Basic,009,20-Apr-2012,1204-00729,634.18,R,Badenoch & Clark Ltd
http://statistics.data.gov.uk/doc/local-authority/00DA,West - North West                  ,West - North West,Customer And Tenancy,Employees,Temporary Staff-Basic,009,20-Apr-2012,1204-00730,702.26,R,Badenoch & Clark Ltd
http://statistics.data.gov.uk/doc/local-authority/00DA,West - North West                  ,West - North West,Customer And Tenancy,Employees,Temporary Staff-Basic,009,27-Apr-2012,1204-00731,702.26,R,Badenoch & Clark Ltd
http://statistics.data.gov.uk/doc/local-authority/00DA,West - North West                  ,West - North West,Customer And Tenancy,Employees,Temporary Staff-Basic,009,05-Apr-2012,1204-00732,702.26,R,Badenoch & Clark Ltd
http://statistics.data.gov.uk/doc/local-authority/00DA,West - North West                  ,West - North West,Customer And Tenancy,Employees,Temporary Staff-Basic,009,17-Apr-2012,1204-00733,702.26,R,Badenoch & Clark Ltd
http://statistics.data.gov.uk/doc/local-authority/00DA,West - North West                  ,West - North West,Customer And Tenancy,Employees,Temporary Staff-Basic,009,13-Apr-2012,1204-00734,702.26,R,Badenoch & Clark Ltd
http://statistics.data.gov.uk/doc/local-authority/00DA,West - North West                  ,West - North West,Customer And Tenancy,Employees,Temporary Staff-Basic,009,27-Apr-2012,1204-00735,757.76,R,Badenoch & Clark Ltd
http://statistics.data.gov.uk/doc/local-authority/00DA,West - North West                  ,West - North West,Customer And Tenancy,Employees,Temporary Staff-Basic,009,05-Apr-2012,1204-00736,819.92,R,Badenoch & Clark Ltd
http://statistics.data.gov.uk/doc/local-authority/00DA,West - North West                  ,West - North West,Customer And Tenancy,Employees,Temporary Staff-Basic,009,16-Apr-2012,1204-00737,819.92,R,Badenoch & Clark Ltd
http://statistics.data.gov.uk/doc/local-authority/00DA,West - North West                  ,West - North West,Customer And Tenancy,Employees,Temporary Staff-Basic,009,16-Apr-2012,1204-00738,869.16,R,Badenoch & Clark Ltd
http://statistics.data.gov.uk/doc/local-authority/00DA,West - North West                  ,West - North West,Customer And Tenancy,Employees,Temporary Staff-Basic,009,16-Apr-2012,1204-00739,874.77,R,Badenoch & Clark Ltd
http://statistics.data.gov.uk/doc/local-authority/00DA,West - North West                  ,West - North West,Customer And Tenancy,Employees,Temporary Staff-Basic,009,20-Apr-2012,1204-00740,907.24,R,Badenoch & Clark Ltd
http://statistics.data.gov.uk/doc/local-authority/00DA,West - North West                  ,West - North West,Customer And Tenancy,Employees,Temporary Staff-Basic,009,27-Apr-2012,1204-00741,907.24,R,Badenoch & Clark Ltd
http://statistics.data.gov.uk/doc/local-authority/00DA,West - North West                  ,West - North West,Customer And Tenancy,Employees,Temporary Staff-Basic,009,20-Apr-2012,1204-00742,907.24,R,Badenoch & Clark Ltd
http://statistics.data.gov.uk/doc/local-authority/00DA,West - North West                  ,West - North West,Customer And Tenancy,Employees,Temporary Staff-Basic,009,05-Apr-2012,1204-00743,907.24,R,Badenoch & Clark Ltd
http://statistics.data.gov.uk/doc/local-authority/00DA,West - North West                  ,West - North West,Property And Maintenance,Employees,Temporary Staff-Basic,009,20-Apr-2012,1204-00744,468.75,R,Badenoch & Clark Ltd
http://statistics.data.gov.uk/doc/local-authority/00DA,West - North West                  ,West - North West,Property And Maintenance,Employees,Temporary Staff-Basic,009,20-Apr-2012,1204-00745,468.75,R,Badenoch & Clark Ltd
http://statistics.data.gov.uk/doc/local-authority/00DA,West - North West                  ,West - North West,Property And Maintenance,Employees,Temporary Staff-Basic,009,05-Apr-2012,1204-00746,468.75,R,Badenoch & Clark Ltd
http://statistics.data.gov.uk/doc/local-authority/00DA,West - North West                  ,West - North West,Property And Maintenance,Employees,Temporary Staff-Basic,009,05-Apr-2012,1204-00747,468.75,R,Badenoch & Clark Ltd
http://statistics.data.gov.uk/doc/local-authority/00DA,West - North West                  ,West - North West,Property And Maintenance,Employees,Temporary Staff-Basic,009,20-Apr-2012,1204-00748,507.00,R,Badenoch & Clark Ltd
http://statistics.data.gov.uk/doc/local-authority/00DA,West - North West                  ,West - North West,Property And Maintenance,Employees,Temporary Staff-Basic,009,27-Apr-2012,1204-00749,507.00,R,Badenoch & Clark Ltd
http://statistics.data.gov.uk/doc/local-authority/00DA,West - North West                  ,West - North West,Property And Maintenance,Employees,Temporary Staff-Basic,009,27-Apr-2012,1204-00750,728.16,R,Badenoch & Clark Ltd
http://statistics.data.gov.uk/doc/local-authority/00DA,West - North West                  ,West - North West,Regeneration/Customer Research,Employees,Temporary Staff-Basic,009,05-Apr-2012,1204-00751,740.19,R,Badenoch & Clark Ltd
http://statistics.data.gov.uk/doc/local-authority/00DA,West - North West                  ,West - North West,Regeneration/Customer Research,Employees,Temporary Staff-Basic,009,27-Apr-2012,1204-00752,846.73,R,Badenoch & Clark Ltd
http://statistics.data.gov.uk/doc/local-authority/00DA,West - North West                  ,West - North West,Regeneration/Customer Research,Employees,Temporary Staff-Basic,009,27-Apr-2012,1204-00753,874.77,R,Badenoch & Clark Ltd
http://statistics.data.gov.uk/doc/local-authority/00DA,West - North West                  ,West - North West,Corporate Services,Employees,Car Leasing - Employer'S Contribution,090,18-Apr-2012,1204-00754,573.44,R,Badenoch & Clark Ltd
http://statistics.data.gov.uk/doc/local-authority/00DA,West - North West                  ,West - North West,Corporate Services,Employees,Car Leasing - Employer'S Contribution,090,18-Apr-2012,1204-00755,678.95,R,Badenoch & Clark Ltd
http://statistics.data.gov.uk/doc/local-authority/00DA,West - North West                  ,West - North West,Corporate Services,Employees,Car Leasing - Employer'S Contribution,090,27-Apr-2012,1204-00756,741.21,R,Badenoch & Clark Ltd
http://statistics.data.gov.uk/doc/local-authority/00DA,West - North West                  ,West - North West,Corporate Services,Employees,Car Leasing - Employer'S Contribution,090,20-Apr-2012,1204-00757,926.51,R,Badenoch & Clark Ltd
http://statistics.data.gov.uk/doc/local-authority/00DA,West - North West                  ,West - North West,Corporate Services,Employees,Car Leasing - Employer'S Contribution,090,13-Apr-2012,1204-00758,938.47,R,Badenoch & Clark Ltd
http://statistics.data.gov.uk/doc/local-authority/00DA,Leeds City Council,City Development,Libraries  Arts & Heritage,Supplies and Services,Art Galleries Total Stores,003,26-Apr-2012,1204-00759,678.61,R,Baker & Taylor (Uk) Ltd
http://statistics.data.gov.uk/doc/local-authority/00DA,Leeds City Council,City Development,Libraries  Arts & Heritage,Supplies and Services,Art Galleries Total Stores,003,13-Apr-2012,1204-00760,705.25,R,Baker & Taylor (Uk) Ltd
http://statistics.data.gov.uk/doc/local-authority/00DA,Leeds City Council,City Development,Libraries  Arts & Heritage,Supplies and Services,Art Galleries Total Stores,003,30-Apr-2012,1204-00761,810.22,R,Baker & Taylor (Uk) Ltd
http://statistics.data.gov.uk/doc/local-authority/00DA,Leeds City Council,City Development,Libraries  Arts & Heritage,Supplies and Services,Art Galleries Total Stores,003,05-Apr-2012,1204-00762,1027.44,R,Baker & Taylor (Uk) Ltd
http://statistics.data.gov.uk/doc/local-authority/00DA,Leeds City Council,City Development,Recreation,Supplies and Services,Operational Materials,205,17-Apr-2012,1204-00763,634.06,R,Ball Colegrave Ltd
http://statistics.data.gov.uk/doc/local-authority/00DA,Leeds City Council,City Development,Recreation,Supplies and Services,Operational Materials,205,17-Apr-2012,1204-00764,5569.40,R,Ball Colegrave Ltd
http://statistics.data.gov.uk/doc/local-authority/00DA,Leeds City Council,City Development,Recreation,Supplies and Services,Other Hired And Contracted Services,265,27-Apr-2012,1204-00765,900.00,R,Balloon Studio
http://statistics.data.gov.uk/doc/local-authority/00DA,Leeds City Council,City Development,Recreation,Transport,Plant Spares,346,26-Apr-2012,1204-00766,574.03,R,Balmers Garden Machinery
http://statistics.data.gov.uk/doc/local-authority/00DA,Leeds City Council,City Development,Recreation,Transport,Plant Spares,346,18-Apr-2012,1204-00767,609.59,R,Balmers Garden Machinery
http://statistics.data.gov.uk/doc/local-authority/00DA,Leeds City Council,City Development,Highways,Capital,Construction,3,13-Apr-2012,1204-00768,8462.06,C,Balvac Ltd
http://statistics.data.gov.uk/doc/local-authority/00DA,Leeds City Council,City Development,Asset Management Services,Capital,Construction,3,26-Apr-2012,1204-00769,3480942.00,C,Bam Construction Ltd
http://statistics.data.gov.uk/doc/local-authority/00DA,Leeds City Council,City Development,Highways,Capital,Construction,3,19-Apr-2012,1204-00770,18903.59,C,Banagher Precast Concrete Ltd
http://statistics.data.gov.uk/doc/local-authority/00DA,Leeds City Council,City Development,Recreation,Supplies and Services,Other Hired And Contracted Services,265,27-Apr-2012,1204-00771,7958.00,R,Banana Kick Ltd
http://statistics.data.gov.uk/doc/local-authority/00DA,Leeds City Council,Adult Social Care,Services For Older People - 65 And Over,Transfer Payments,Personalised Budgets,627,11-Apr-2012,1204-00772,579.00,R,REDACTED PERSONAL DATA
http://statistics.data.gov.uk/doc/local-authority/00DA,Leeds City Council,Central & Corporate Functions,Executive Support,Supplies and Services,LATS Allowance,238,11-Apr-2012,1204-00773,13668.00,R,Barca Leeds
http://statistics.data.gov.uk/doc/local-authority/00DA,Leeds City Council,Other Education Services,Refurbishment Works,Capital,Construction,3,03-Apr-2012,1204-00774,2889.00,C,Bardsey Building Contractors Ltd
http://statistics.data.gov.uk/doc/local-authority/00DA,Leeds City Council,Strategic Accounts,Strategic,Supplies and Services,Office Consumables,210,02-Apr-2012,1204-00775,30000.00,R,Bardsey Parish Council
http://statistics.data.gov.uk/doc/local-authority/00DA,East - North East                    ,East - North East,Business Improvement,Premises,Other,114,30-Apr-2012,1204-00776,2000.00,R,Bardsey Sports Club
http://statistics.data.gov.uk/doc/local-authority/00DA,Leeds City Council,City Development,Recreation,Supplies and Services,Operational Materials,205,05-Apr-2012,1204-00777,1587.00,R,Barenbrug Uk Ltd
http://statistics.data.gov.uk/doc/local-authority/00DA,Leeds City Council,Childrens Services,Safeguarding Targeted & Specialist,Third Party Payments,Services Rendered By Voluntary Sector,505,02-Apr-2012,1204-00778,27381.33,R,Barnardo Services Ltd
http://statistics.data.gov.uk/doc/local-authority/00DA,Leeds City Council,Environment & Neighbourhoods,Statutory Housing,Income,Admissions  Booking Fees & Ticket Sales,933,13-Apr-2012,1204-00779,-6657.33,R,Barnsley Mbc
http://statistics.data.gov.uk/doc/local-authority/00DA,Leeds City Council,Environment & Neighbourhoods,Environmental Health,Supplies and Services,Operational Materials,205,05-Apr-2012,1204-00780,449.94,R,Barrettine Environmental Health
http://statistics.data.gov.uk/doc/local-authority/00DA,Leeds City Council,Adult Social Care,Services For Older People Under 65 P/Dis,Transfer Payments,Personalised Budgets,627,11-Apr-2012,1204-00781,661.88,R,REDACTED PERSONAL DATA
http://statistics.data.gov.uk/doc/local-authority/00DA,Leeds City Council,Strategic Accounts,Strategic,Supplies and Services,Office Consumables,210,02-Apr-2012,1204-00782,39000.00,R,Barwick In Elmet & Scholes Parish
http://statistics.data.gov.uk/doc/local-authority/00DA,Leeds City Council,City Development,Asset Management Services,Premises,Plant and Machinery,102,20-Apr-2012,1204-00783,1907.00,R,Bas Ltd
http://statistics.data.gov.uk/doc/local-authority/00DA,Leeds City Council,City Development,Recreation,Supplies and Services,Operational Materials,205,13-Apr-2012,1204-00784,423.90,R,Bata
http://statistics.data.gov.uk/doc/local-authority/00DA,Leeds City Council,City Development,Recreation,Supplies and Services,Operational Materials,205,02-Apr-2012,1204-00785,676.28,R,Bata
http://statistics.data.gov.uk/doc/local-authority/00DA,Leeds City Council,Environment & Neighbourhoods,Regeneration Management,Supplies and Services,Publication And Promotion,267,30-Apr-2012,1204-00786,4100.00,R,Bay Media Ltd
http://statistics.data.gov.uk/doc/local-authority/00DA,Leeds City Council,Childrens Services,Learning Skills & Universal,Premises,Oil,122,27-Apr-2012,1204-00787,2110.80,R,Bayford Oil
http://statistics.data.gov.uk/doc/local-authority/00DA,Leeds City Council,Childrens Services,Learning Skills & Universal,Premises,Oil,122,13-Apr-2012,1204-00788,2604.45,R,Bayford Oil
http://statistics.data.gov.uk/doc/local-authority/00DA,Leeds City Council,City Development,Libraries  Arts & Heritage,Premises,Oil,122,11-Apr-2012,1204-00789,937.90,R,Bayford Oil
http://statistics.data.gov.uk/doc/local-authority/00DA,Leeds City Council,City Development,Libraries  Arts & Heritage,Premises,Oil,122,25-Apr-2012,1204-00790,939.50,R,Bayford Oil
http://statistics.data.gov.uk/doc/local-authority/00DA,Leeds City Council,City Development,Libraries  Arts & Heritage,Premises,Oil,122,18-Apr-2012,1204-00791,1413.40,R,Bayford Oil
http://statistics.data.gov.uk/doc/local-authority/00DA,Leeds City Council,Central & Corporate Functions,Support And Facilities General Fund,Premises,Gas,123,27-Apr-2012,1204-00792,2144.40,R,Bayford Oil
http://statistics.data.gov.uk/doc/local-authority/00DA,Leeds City Council,Central & Corporate Functions,Commercial Services Trading Services,Transport,Fuel (Non LCC Supplies),321,27-Apr-2012,1204-00793,2121.60,R,Bayford Oil
http://statistics.data.gov.uk/doc/local-authority/00DA,Leeds City Council,Central & Corporate Functions,Commercial Services Trading Services,Transport,Fuel (Non LCC Supplies),321,20-Apr-2012,1204-00794,2144.40,R,Bayford Oil
http://statistics.data.gov.uk/doc/local-authority/00DA,Leeds City Council,Central & Corporate Functions,Commercial Services Trading Services,Transport,Fuel (Non LCC Supplies),321,20-Apr-2012,1204-00795,3508.00,R,Bayford Oil
http://statistics.data.gov.uk/doc/local-authority/00DA,Leeds City Council,Central & Corporate Functions,Commercial Services Trading Services,Transport,Fuel (Non LCC Supplies),321,02-Apr-2012,1204-00796,5891.00,R,Bayford Oil
http://statistics.data.gov.uk/doc/local-authority/00DA,Leeds City Council,Central & Corporate Functions,Commercial Services Trading Services,Transport,Fuel (Non LCC Supplies),321,20-Apr-2012,1204-00797,11751.00,R,Bayford Oil
http://statistics.data.gov.uk/doc/local-authority/00DA,Leeds City Council,Central & Corporate Functions,Commercial Services Trading Services,Transport,Fuel (Non LCC Supplies),321,20-Apr-2012,1204-00798,11768.63,R,Bayford Oil
http://statistics.data.gov.uk/doc/local-authority/00DA,Leeds City Council,Central & Corporate Functions,Commercial Services Trading Services,Transport,Fuel (Non LCC Supplies),321,11-Apr-2012,1204-00799,17481.00,R,Bayford Oil
http://statistics.data.gov.uk/doc/local-authority/00DA,Leeds City Council,Central & Corporate Functions,Commercial Services Trading Services,Transport,Fuel (Non LCC Supplies),321,27-Apr-2012,1204-00800,17661.00,R,Bayford Oil
http://statistics.data.gov.uk/doc/local-authority/00DA,Leeds City Council,Central & Corporate Functions,Commercial Services Trading Services,Transport,Fuel (Non LCC Supplies),321,20-Apr-2012,1204-00801,17776.50,R,Bayford Oil
http://statistics.data.gov.uk/doc/local-authority/00DA,Leeds City Council,Central & Corporate Functions,Commercial Services Trading Services,Transport,Fuel (Non LCC Supplies),321,11-Apr-2012,1204-00802,25550.80,R,Bayford Oil
http://statistics.data.gov.uk/doc/local-authority/00DA,Leeds City Council,Central & Corporate Functions,Commercial Services Trading Services,Transport,Fuel (Non LCC Supplies),321,20-Apr-2012,1204-00803,25742.20,R,Bayford Oil
http://statistics.data.gov.uk/doc/local-authority/00DA,Leeds City Council,Central & Corporate Functions,Commercial Services Trading Services,Transport,Fuel (Non LCC Supplies),321,27-Apr-2012,1204-00804,25814.80,R,Bayford Oil
http://statistics.data.gov.uk/doc/local-authority/00DA,Leeds City Council,Central & Corporate Functions,Commercial Services Trading Services,Transport,Fuel (Non LCC Supplies),321,20-Apr-2012,1204-00805,25984.20,R,Bayford Oil
http://statistics.data.gov.uk/doc/local-authority/00DA,Leeds City Council,Central & Corporate Functions,Commercial Services Trading Services,Transport,Fuel (Non LCC Supplies),321,11-Apr-2012,1204-00806,41810.40,R,Bayford Oil
http://statistics.data.gov.uk/doc/local-authority/00DA,Leeds City Council,Central & Corporate Functions,Commercial Services Trading Services,Transport,Fuel (Non LCC Supplies),321,27-Apr-2012,1204-00807,42242.40,R,Bayford Oil
http://statistics.data.gov.uk/doc/local-authority/00DA,Leeds City Council,Central & Corporate Functions,Commercial Services Trading Services,Transport,Fuel (Non LCC Supplies),321,20-Apr-2012,1204-00808,42520.78,R,Bayford Oil
http://statistics.data.gov.uk/doc/local-authority/00DA,Leeds City Council,City Development,Recreation,Transport,Fuel (Non LCC Supplies),321,20-Apr-2012,1204-00809,1045.80,R,Bayford Oil
http://statistics.data.gov.uk/doc/local-authority/00DA,Leeds City Council,City Development,Recreation,Transport,Fuel (Non LCC Supplies),321,20-Apr-2012,1204-00810,1075.20,R,Bayford Oil
http://statistics.data.gov.uk/doc/local-authority/00DA,Leeds City Council,City Development,Recreation,Transport,Fuel (Non LCC Supplies),321,20-Apr-2012,1204-00811,1275.85,R,Bayford Oil
http://statistics.data.gov.uk/doc/local-authority/00DA,Leeds City Council,City Development,Recreation,Transport,Fuel (Non LCC Supplies),321,20-Apr-2012,1204-00812,1310.93,R,Bayford Oil
http://statistics.data.gov.uk/doc/local-authority/00DA,Leeds City Council,City Development,Recreation,Transport,Fuel (Non LCC Supplies),321,20-Apr-2012,1204-00813,1415.56,R,Bayford Oil
http://statistics.data.gov.uk/doc/local-authority/00DA,Leeds City Council,City Development,Recreation,Transport,Fuel (Non LCC Supplies),321,20-Apr-2012,1204-00814,1418.40,R,Bayford Oil
http://statistics.data.gov.uk/doc/local-authority/00DA,Leeds City Council,City Development,Recreation,Transport,Fuel (Non LCC Supplies),321,20-Apr-2012,1204-00815,2433.20,R,Bayford Oil
http://statistics.data.gov.uk/doc/local-authority/00DA,Leeds City Council,City Development,Recreation,Transport,Fuel (Non LCC Supplies),321,20-Apr-2012,1204-00816,3996.74,R,Bayford Oil
http://statistics.data.gov.uk/doc/local-authority/00DA,Leeds City Council,City Development,Recreation,Transport,Fuel (Non LCC Supplies),321,20-Apr-2012,1204-00817,4130.35,R,Bayford Oil
http://statistics.data.gov.uk/doc/local-authority/00DA,Leeds City Council,City Development,Recreation,Transport,Fuel (Non LCC Supplies),321,05-Apr-2012,1204-00818,17621.22,R,Bayford Oil
http://statistics.data.gov.uk/doc/local-authority/00DA,Leeds City Council,City Development,Recreation,Transport,Fuel (Non LCC Supplies),321,20-Apr-2012,1204-00819,17776.50,R,Bayford Oil
http://statistics.data.gov.uk/doc/local-authority/00DA,Leeds City Council,Environment & Neighbourhoods,Streetscene Environmental Services,Transport,Fuel (Non LCC Supplies),321,26-Apr-2012,1204-00820,716.80,R,Bayford Oil
http://statistics.data.gov.uk/doc/local-authority/00DA,Leeds City Council,Environment & Neighbourhoods,Streetscene Environmental Services,Transport,Fuel (Non LCC Supplies),321,25-Apr-2012,1204-00821,796.94,R,Bayford Oil
http://statistics.data.gov.uk/doc/local-authority/00DA,Leeds City Council,Environment & Neighbourhoods,Streetscene Environmental Services,Transport,Fuel (Non LCC Supplies),321,04-Apr-2012,1204-00822,987.84,R,Bayford Oil
http://statistics.data.gov.uk/doc/local-authority/00DA,Leeds City Council,Adult Social Care,Services For Older People Under 65 P/Dis,Third Party Payments,Residential,580,11-Apr-2012,1204-00823,7984.00,R,Baylis Place
http://statistics.data.gov.uk/doc/local-authority/00DA,Leeds City Council,City Development,Libraries  Arts & Heritage,Supplies and Services,Other Hired And Contracted Services,265,18-Apr-2012,1204-00824,22000.00,R,Bbc Public Services Brdc
http://statistics.data.gov.uk/doc/local-authority/00DA,Aire Valley Homes Leeds              ,Aire Valley Homes Leeds,Aire Valley Homes Leeds,Supplies and Services,Audit Fees,261,03-Apr-2012,1204-00825,1000.00,R,Bdo Llp
http://statistics.data.gov.uk/doc/local-authority/00DA,East - North East                    ,East - North East,Construction Services,Supplies and Services,Other Materials,205,11-Apr-2012,1204-00826,425.00,R,Be Modern Ltd
http://statistics.data.gov.uk/doc/local-authority/00DA,Leeds City Council,Childrens Services,Safeguarding Targeted & Specialist,Supplies and Services,Operational Furniture And Equipment,203,05-Apr-2012,1204-00827,750.00,R,Beds For Everyone
http://statistics.data.gov.uk/doc/local-authority/00DA,Leeds City Council,Adult Social Care,Services For Older People - 65 And Over,Third Party Payments,Residential,580,11-Apr-2012,1204-00828,1225.00,R,Beech Lodge Residential Home
http://statistics.data.gov.uk/doc/local-authority/00DA,Leeds City Council,Childrens Services,Learning Skills & Universal,Third Party Payments,Services Rendered By Voluntary Sector,505,16-Apr-2012,1204-00829,10656.00,R,Beechtree Headingley Kindergarten
http://statistics.data.gov.uk/doc/local-authority/00DA,Leeds City Council,Childrens Services,Learning Skills & Universal,Third Party Payments,Services Rendered By Voluntary Sector,505,16-Apr-2012,1204-00830,10416.24,R,Beechtree Kindergarten
http://statistics.data.gov.uk/doc/local-authority/00DA,Leeds City Council,Childrens Services,Safeguarding Targeted & Specialist,Supplies and Services,Teaching Materials,202,05-Apr-2012,1204-00831,427.50,R,Beesneez
http://statistics.data.gov.uk/doc/local-authority/00DA,Leeds City Council,Environment & Neighbourhoods,Strategy & Commissioning,Supplies and Services,Non-Recurring Grants,227,20-Apr-2012,1204-00832,730.00,R,Behind Closed Doors (Bcd),
http://statistics.data.gov.uk/doc/local-authority/00DA,Leeds City Council,Childrens Services,Learning Skills & Universal,Third Party Payments,Services Rendered By Other Organisations,511,16-Apr-2012,1204-00833,1065.60,R,REDACTED PERSONAL DATA,
http://statistics.data.gov.uk/doc/local-authority/00DA,East - North East                    ,East - North East,Technical Services,Premises,H.R.A. - Repairs A To P,107,13-Apr-2012,1204-00834,119111.20,R,Bell Decorating Group Ltd,
http://statistics.data.gov.uk/doc/local-authority/00DA,Leeds City Council,Adult Social Care,Services For Older People - 65 And Over,Third Party Payments,Nursing Home,570,05-Apr-2012,1204-00835,1355.36,R,Belle Green Court Care Home,
http://statistics.data.gov.uk/doc/local-authority/00DA,Leeds City Council,Adult Social Care,Services For Older People - 65 And Over,Third Party Payments,Payments To Voluntary Organisations,561,02-Apr-2012,1204-00836,26054.75,R,Belle Isle Elderly Winter Aid,
http://statistics.data.gov.uk/doc/local-authority/00DA,Leeds City Council,Adult Social Care,Services For Older People - 65 And Over,Supplies and Services,Recurring & Major Grantss Projects,229,19-Apr-2012,1204-00837,1480.00,R,Belle Isle Elderly Winter Aid L/Club,
http://statistics.data.gov.uk/doc/local-authority/00DA,Leeds City Council,Environment & Neighbourhoods,Strategy & Commissioning,Third Party Payments,Supporting Ppl - Block Gross Chargeable,514,23-Apr-2012,1204-00838,1740.31,R,Belle Isle Tenant Management,
http://statistics.data.gov.uk/doc/local-authority/00DA,Leeds City Council,Childrens Services,Safeguarding Targeted & Specialist  ,Third Party Payments,Pathways / UASC grants,556,20-Mar-2012,1204-00839,500.00,R,Bells Domestic Appliance,
http://statistics.data.gov.uk/doc/local-authority/00DA,Leeds City Council,Adult Social Care,Services For Older People - 65 And Over,Third Party Payments,Nursing Home,570,05-Apr-2012,1204-00840,1124.60,R,Belmont House,
http://statistics.data.gov.uk/doc/local-authority/00DA,Leeds City Council,Adult Social Care,Services For Older People Under 65 P/Dis,Transfer Payments,Personalised Budgets,627,11-Apr-2012,1204-00841,506.04,R,REDACTED PERSONAL DATA,
http://statistics.data.gov.uk/doc/local-authority/00DA,Leeds City Council,Adult Social Care,Services For Older People Under 65 P/Dis,Transfer Payments,Personalised Budgets,627,11-Apr-2012,1204-00842,773.36,R,REDACTED PERSONAL DATA,
http://statistics.data.gov.uk/doc/local-authority/00DA,Leeds City Council,Central & Corporate Functions,Corporate Governance,Support Services,Legal Disbursements,411,17-Apr-2012,1204-00843,2000.00,R,Ben Williams,
http://statistics.data.gov.uk/doc/local-authority/00DA,Leeds City Council,Central & Corporate Functions,Corporate Governance,Support Services,Legal Disbursements,411,05-Apr-2012,1204-00844,3500.00,R,Ben Williams,
http://statistics.data.gov.uk/doc/local-authority/00DA,Leeds City Council,Central & Corporate Functions,Commercial Services Trading Services,Transport,Vehicle Spares,345,27-Apr-2012,1204-00845,521.04,R,Benfield Ford Leeds (Parts Invs),
http://statistics.data.gov.uk/doc/local-authority/00DA,Leeds City Council,Central & Corporate Functions,Commercial Services Trading Services,Transport,Vehicle Spares,345,27-Apr-2012,1204-00846,710.55,R,Benfield Ford Leeds (Parts Invs),
http://statistics.data.gov.uk/doc/local-authority/00DA,Leeds City Council,Adult Social Care,Services For Older People Under 65 P/Dis,Transfer Payments,Personalised Budgets,627,11-Apr-2012,1204-00847,7667.40,R,REDACTED PERSONAL DATA,
http://statistics.data.gov.uk/doc/local-authority/00DA,Leeds City Council,City Development,Support Services,Employees,Training Costs,071,19-Apr-2012,1204-00848,476.00,R,REDACTED PERSONAL DATA
http://statistics.data.gov.uk/doc/local-authority/00DA,Leeds City Council,Adult Social Care,Other Adult Services,Third Party Payments,Residential - Drugs & Alcohol,583,11-Apr-2012,1204-00849,1431.52,R,Bennett House
http://statistics.data.gov.uk/doc/local-authority/00DA,Leeds City Council,City Development,Highways,Supplies and Services,Computer Software & Equipment,214,18-Apr-2012,1204-00850,1960.80,R,Bentley Systems International Ltd
http://statistics.data.gov.uk/doc/local-authority/00DA,Leeds City Council,Adult Social Care,Services For Older People - 65 And Over,Third Party Payments,Residential Care Emi,571,11-Apr-2012,1204-00851,34466.21,R,Berkley Court
http://statistics.data.gov.uk/doc/local-authority/00DA,Leeds City Council,Adult Social Care,Services For Older People - 65 And Over,Third Party Payments,Residential,580,11-Apr-2012,1204-00852,27655.36,R,Berkley Court
http://statistics.data.gov.uk/doc/local-authority/00DA,Leeds City Council,City Development,Recreation,Capital,Construction,3,16-Apr-2012,1204-00853,81208.84,C,Bermar Building Company Ltd
http://statistics.data.gov.uk/doc/local-authority/00DA,Leeds City Council,City Development,Asset Management Services,Transfer Payments,Transfer To/From General Reserves,601,20-Apr-2012,1204-00854,35989.82,R,Bermar Building Company Ltd
http://statistics.data.gov.uk/doc/local-authority/00DA,Leeds City Council,Childrens Services,Learning Skills & Universal,Supplies and Services,Bought In Professional Services,277,26-Apr-2012,1204-00855,2000.00,R,Bernadette King
http://statistics.data.gov.uk/doc/local-authority/00DA,Leeds City Council,Adult Social Care,Services For Older People - 65 And Over,Transfer Payments,Direct Payments,626,11-Apr-2012,1204-00856,599.52,R,REDACTED PERSONAL DATA
http://statistics.data.gov.uk/doc/local-authority/00DA,Leeds City Council,Childrens Services,Safeguarding Targeted & Specialist,Employees,Agency Staff,008,05-Apr-2012,1204-00857,2100.00,R,Berrybrown Ltd
http://statistics.data.gov.uk/doc/local-authority/00DA,Leeds City Council,Childrens Services,Safeguarding Targeted & Specialist,Employees,Agency Staff,008,11-Apr-2012,1204-00858,2100.00,R,Berrybrown Ltd
http://statistics.data.gov.uk/doc/local-authority/00DA,Leeds City Council,Childrens Services,Safeguarding Targeted & Specialist,Employees,Agency Staff,008,20-Apr-2012,1204-00859,2100.00,R,Berrybrown Ltd
http://statistics.data.gov.uk/doc/local-authority/00DA,Leeds City Council,Childrens Services,Safeguarding Targeted & Specialist,Employees,Agency Staff,008,27-Apr-2012,1204-00860,2100.00,R,Berrybrown Ltd
http://statistics.data.gov.uk/doc/local-authority/00DA,Leeds City Council,Childrens Services,Safeguarding Targeted & Specialist,Support Services,Legal Disbursements,411,03-Apr-2012,1204-00861,1571.50,R,Berrymans Lace Mawer
http://statistics.data.gov.uk/doc/local-authority/00DA,Leeds City Council,Central & Corporate Functions,Corporate Governance,Supplies and Services,External Counsel - Specialist,751,03-Apr-2012,1204-00862,678.50,R,Berrymans Lace Mawer
http://statistics.data.gov.uk/doc/local-authority/00DA,Leeds City Council as Accountable Body,Social Services Pooled Budgets,Jcs For People With Learning Disabilitie,Third Party Payments,Residential,580,05-Apr-2012,1204-00863,482.32,R,REDACTED PERSONAL DATA
http://statistics.data.gov.uk/doc/local-authority/00DA,Leeds City Council,Adult Social Care,Services For Older People - 65 And Over,Transfer Payments,Direct Payments,626,11-Apr-2012,1204-00864,781.48,R,REDACTED PERSONAL DATA
http://statistics.data.gov.uk/doc/local-authority/00DA,Leeds City Council,Adult Social Care,Services For Older People - 65 And Over,Third Party Payments,Residential Care Emi,571,11-Apr-2012,1204-00865,1760.92,R,Bethel House
http://statistics.data.gov.uk/doc/local-authority/00DA,Leeds City Council,Adult Social Care,Services For Older People - 65 And Over,Transfer Payments,Direct Payments,626,11-Apr-2012,1204-00866,936.76,R,REDACTED PERSONAL DATA
http://statistics.data.gov.uk/doc/local-authority/00DA,Leeds City Council,Adult Social Care,Services For Older People - 65 And Over,Transfer Payments,Personalised Budgets,627,11-Apr-2012,1204-00867,506.04,R,REDACTED PERSONAL DATA
http://statistics.data.gov.uk/doc/local-authority/00DA,Leeds City Council,Adult Social Care,Services For Older People - 65 And Over,Transfer Payments,Direct Payments,626,11-Apr-2012,1204-00868,435.84,R,REDACTED PERSONAL DATA
http://statistics.data.gov.uk/doc/local-authority/00DA,Leeds City Council,Adult Social Care,Services For Older People Under 65 P/Dis,Transfer Payments,Personalised Budgets,627,11-Apr-2012,1204-00869,991.40,R,REDACTED PERSONAL DATA
http://statistics.data.gov.uk/doc/local-authority/00DA,Leeds City Council,Adult Social Care,Services For Older People - 65 And Over,Third Party Payments,Nursing Care Emi,574,11-Apr-2012,1204-00870,1728.00,R,Bewick Lodge
http://statistics.data.gov.uk/doc/local-authority/00DA,Leeds City Council,Adult Social Care,Services For Older People - 65 And Over,Supplies and Services,Recurring & Major Grantss Projects,229,23-Apr-2012,1204-00871,1326.00,R,Bhojan Sangam Group
http://statistics.data.gov.uk/doc/local-authority/00DA,Leeds City Council,Environment & Neighbourhoods,Streetscene Environmental Services,Supplies and Services,Recycling & Reuse Charges,234,30-Apr-2012,1204-00872,1391.88,R,Biffa Waste Services Ltd
http://statistics.data.gov.uk/doc/local-authority/00DA,Leeds City Council,Environment & Neighbourhoods,Streetscene Environmental Services,Supplies and Services,Recycling & Reuse Charges,234,30-Apr-2012,1204-00873,1784.88,R,Biffa Waste Services Ltd
http://statistics.data.gov.uk/doc/local-authority/00DA,Leeds City Council,Environment & Neighbourhoods,Streetscene Environmental Services,Supplies and Services,Recycling & Reuse Charges,234,30-Apr-2012,1204-00874,2351.88,R,Biffa Waste Services Ltd
